Workbook

Sheet Presentation
B3: Available online: http://pi.blieque.co.uk/edu/btec/42.2

Sheet OldPresentation (hidden)
B3: Age group average spending lookup | E3: View all data
B4: Country | C4: <45 | D4: ≥45 | E4: Higher <45 spending?
B5: Thailand | C5: =VLOOKUP($B5,Age!A6:S62,17,FALSE) -> 0 | D5: =VLOOKUP($B5,Age!A6:S62,18,FALSE) -> 15020668.58 | E5: =IF(C5>D5,"Yes","No") -> No
B7: Overall Average | C7: =AVERAGE(Age!R6:R62) -> 53809117.06 | D7: =AVERAGE(Age!S6:S62) -> 50581909.91 | E7: =IF(C7>D7,"Yes","No") -> Yes
B9: Spending by age group | E9: Go to
B10: Group | C10: Total Spending | E10: Spending by home country
B11: 0-15 | C11: =Age!D$64 -> 644471465.7 | E11: Spending by age
B12: 16-24 | C12: =Age!F$64 -> 2775846335
B13: 25-34 | C13: =Age!H$64 -> 4433663188
B14: 35-44 | C14: =Age!J$64 -> 4403366169
B15: 45-54 | C15: =Age!L$64 -> 4759948139
B16: 55-64 | C16: =Age!N$64 -> 2605666164
B17: 65+ | C17: =Age!P$64 -> 1271131714
B19: Files available online: http://pi.blieque.co.uk/edu/btec/42.2

Sheet By Residency
A2: ←Back to Presentation | B2: Visitor home country and reason for visit | M2: Sort Index | O2: Total Spending | Q2: Uses € and spends over £500M | R2: Total Spending in Euros | T2: Total Spending Above Average? | V2: Above/Below Average Count
A3: Nationality | B3: Region | C3: Language | D3: Total Visits | E3: Holiday | G3: Business | I3: Personal | K3: Other
D4: Top 10 green | E4: Visits | F4: Spending | G4: Visits | H4: Spending | I4: Visits | J4: Spending | K4: Visits | L4: Spending
A5: Canada | B5: =VLOOKUP(A5,Ref.Curr!A$1:B$58,2,FALSE) -> North America | C5: =VLOOKUP(A5,Ref.Curr!A$1:D$58,4,FALSE) -> English 59.3%, French 23.2% (both official); other 17.5% | D5: =SUM(E5,G5,I5,K5) -> 743857.645 | E5: 279625.344 | F5: 219295540.7 | G5: 93525.835 | H5: 111765479.1 | I5: 302356.293 | J5: 166840873.1 | K5: 68350.173 | L5: 32742892.69 | M5: 1 | O5: =SUM(F5,H5,J5,L5) -> 530644785.6 | Q5: =IF(AND(O5>500000000,VLOOKUP(A5,Ref.Curr!A$1:C$58,3,FALSE)="Euro"),"Y","N") -> N | R5: =IF(Q5="Y",O5*(Ref.Curr.Rates!B$10/Ref.Curr.Rates!B$17),0) -> 0 | T5: =IF(O5>O$63,"Y","N") -> Y | V5: Above Average | W5: =COUNTIF(T5:T61,"Y") -> 20
A6: USA | B6: =VLOOKUP(A6,Ref.Curr!A$1:B$58,2,FALSE) -> North America | C6: =VLOOKUP(A6,Ref.Curr!A$1:D$58,4,FALSE) -> English 82%, Spanish 11% (2000) | D6: 2790504.3 | E6: 1123148.963 | F6: 980601941.3 | G6: 719134.204 | H6: 905118450.5 | I6: 680446.291 | J6: 405672120.1 | K6: 267774.842 | L6: 250914063 | M6: 2 | O6: =SUM(F6,H6,J6,L6) -> 2542306575 | Q6: =IF(AND(O6>500000000,VLOOKUP(A6,Ref.Curr!A$1:C$58,3,FALSE)="Euro"),"Y","N") -> N | R6: =IF(Q6="Y",O6*(Ref.Curr.Rates!B$10/Ref.Curr.Rates!B$17),0) -> 0 | T6: =IF(O6>O$63,"Y","N") -> Y | V6: Below Average | W6: =COUNTIF(T5:T61,"N") -> 37
A7: Austria | B7: =VLOOKUP(A7,Ref.Curr!A$1:B$58,2,FALSE) -> European Union | C7: =VLOOKUP(A7,Ref.Curr!A$1:D$58,4,FALSE) -> German (official nationwide); Slovene, Croatian, Hungarian (each official in one region) | D7: 275129.228 | E7: 132665.96 | F7: 83868779.96 | G7: 67434.612 | H7: 31406220.68 | I7: 60107.606 | J7: 16171430.3 | K7: 14921.05 | L7: 10066214.63 | M7: 3 | O7: 141512645.6 | Q7: =IF(AND(O7>500000000,VLOOKUP(A7,Ref.Curr!A$1:C$58,3,FALSE)="Euro"),"Y","N") -> N | R7: =IF(Q7="Y",O7*(Ref.Curr.Rates!B$10/Ref.Curr.Rates!B$17),0) -> 0 | T7: =IF(O7>O$63,"Y","N") -> N
A8: Belgium | B8: =VLOOKUP(A8,Ref.Curr!A$1:B$58,2,FALSE) -> European Union | C8: =VLOOKUP(A8,Ref.Curr!A$1:D$58,4,FALSE) -> Dutch (Flemish) 60%, French 40%, German less than 1% (all official) | D8: 1188322 | E8: 544991.437 | F8: 221413653.7 | G8: 323539.249 | H8: 77526478.64 | I8: 221467.531 | J8: 56154956.74 | K8: 98323.783 | L8: 30647514.56 | M8: 4 | O8: 385742603.7 | Q8: =IF(AND(O8>500000000,VLOOKUP(A8,Ref.Curr!A$1:C$58,3,FALSE)="Euro"),"Y","N") -> N | R8: =IF(Q8="Y",O8*(Ref.Curr.Rates!B$10/Ref.Curr.Rates!B$17),0) -> 0 | T8: Y
A9: Bulgaria | B9: =VLOOKUP(A9,Ref.Curr!A$1:B$58,2,FALSE) -> European Union | C9: =VLOOKUP(A9,Ref.Curr!A$1:D$58,4,FALSE) -> Bulgarian 85%, Turkish 10%, Roma 4% | D9: 126463.421 | E9: 21825.166 | F9: 13738103.54 | G9: 56849.567 | H9: 15125244.75 | I9: 38574.694 | J9: 14169321.13 | K9: 9213.994 | L9: 7265696.293 | M9: 5 | O9: 50298365.71 | Q9: =IF(AND(O9>500000000,VLOOKUP(A9,Ref.Curr!A$1:C$58,3,FALSE)="Euro"),"Y","N") -> N | R9: =IF(Q9="Y",O9*(Ref.Curr.Rates!B$10/Ref.Curr.Rates!B$17),0) -> 0 | T9: N
A10: Czech Republic | B10: =VLOOKUP(A10,Ref.Curr!A$1:B$58,2,FALSE) -> European Union | C10: =VLOOKUP(A10,Ref.Curr!A$1:D$58,4,FALSE) -> Czech | D10: 358480.296 | E10: 117405.417 | F10: 41815347.38 | G10: 128101.195 | H10: 33291221.09 | I10: 84400.326 | J10: 21197719.8 | K10: 28573.358 | L10: 25935080.39 | M10: 6 | O10: 122239368.7 | Q10: =IF(AND(O10>500000000,VLOOKUP(A10,Ref.Curr!A$1:C$58,3,FALSE)="Euro"),"Y","N") -> N | R10: =IF(Q10="Y",O10*(Ref.Curr.Rates!B$10/Ref.Curr.Rates!B$17),0) -> 0 | T10: N
A11: Cyprus | B11: =VLOOKUP(A11,Ref.Curr!A$1:B$58,2,FALSE) -> European Union | C11: =VLOOKUP(A11,Ref.Curr!A$1:D$58,4,FALSE) -> Greek, Turkish (both official); English | D11: 123277.385 | E11: 38463.022 | F11: 28935900.34 | G11: 7704.601 | H11: 10629694.29 | I11: 64705.768 | J11: 58296519.01 | K11: 12403.994 | L11: 24818586.49 | M11: 7 | O11: 122680700.1 | Q11: =IF(AND(O11>500000000,VLOOKUP(A11,Ref.Curr!A$1:C$58,3,FALSE)="Euro"),"Y","N") -> N | R11: =IF(Q11="Y",O11*(Ref.Curr.Rates!B$10/Ref.Curr.Rates!B$17),0) -> 0 | T11: N
A12: Denmark | B12: =VLOOKUP(A12,Ref.Curr!A$1:B$58,2,FALSE) -> European Union | C12: =VLOOKUP(A12,Ref.Curr!A$1:D$58,4,FALSE) -> Danish, Faroese, Greenlandic (Inuit dialect), German; English is the predominant second language | D12: 702738.382 | E12: 335426.74 | F12: 229299126.1 | G12: 181090.206 | H12: 101563087.9 | I12: 118212.272 | J12: 40686064.94 | K12: 68009.164 | L12: 68110814.27 | M12: 8 | O12: 439659093.3 | Q12: =IF(AND(O12>500000000,VLOOKUP(A12,Ref.Curr!A$1:C$58,3,FALSE)="Euro"),"Y","N") -> N | R12: =IF(Q12="Y",O12*(Ref.Curr.Rates!B$10/Ref.Curr.Rates!B$17),0) -> 0 | T12: Y
A13: Finland | B13: =VLOOKUP(A13,Ref.Curr!A$1:B$58,2,FALSE) -> European Union | C13: =VLOOKUP(A13,Ref.Curr!A$1:D$58,4,FALSE) -> Finnish 92%, Swedish 6% (both official); small Sami- (Lapp) and Russian-speaking minorities | D13: 215149.825 | E13: 109055.133 | F13: 63312310.77 | G13: 44845.757 | H13: 29688791.29 | I13: 44943.987 | J13: 14978857.26 | K13: 16304.948 | L13: 11444164.12 | M13: 9 | O13: 119424123.4 | Q13: =IF(AND(O13>500000000,VLOOKUP(A13,Ref.Curr!A$1:C$58,3,FALSE)="Euro"),"Y","N") -> N | R13: =IF(Q13="Y",O13*(Ref.Curr.Rates!B$10/Ref.Curr.Rates!B$17),0) -> 0 | T13: N
A14: France | B14: =VLOOKUP(A14,Ref.Curr!A$1:B$58,2,FALSE) -> European Union | C14: =VLOOKUP(A14,Ref.Curr!A$1:D$58,4,FALSE) -> French 100%, rapidly declining regional dialects (Provençal, Breton, Alsatian, Corsican, Catalan, Basque, Flemish) | D14: 3930395.938 | E14: 1760810.417 | F14: 626843585.7 | G14: 800747.406 | H14: 248240225.4 | I14: 1109933.421 | J14: 338545974 | K14: 258904.694 | L14: 134612635.9 | M14: 10 | O14: 1348242421 | Q14: =IF(AND(O14>500000000,VLOOKUP(A14,Ref.Curr!A$1:C$58,3,FALSE)="Euro"),"Y","N") -> Y | R14: =IF(Q14="Y",O14*(Ref.Curr.Rates!B$10/Ref.Curr.Rates!B$17),0) -> 1684777026 | T14: Y
A15: Germany | B15: =VLOOKUP(A15,Ref.Curr!A$1:B$58,2,FALSE) -> European Union | C15: =VLOOKUP(A15,Ref.Curr!A$1:D$58,4,FALSE) -> German | D15: 3161980.155 | E15: 1386055.881 | F15: 674849967.8 | G15: 842786.208 | H15: 358196514.8 | I15: 719667.48 | J15: 191668826.3 | K15: 213470.586 | L15: 182381887.8 | M15: 11 | O15: 1407097197 | Q15: =IF(AND(O15>500000000,VLOOKUP(A15,Ref.Curr!A$1:C$58,3,FALSE)="Euro"),"Y","N") -> Y | R15: =IF(Q15="Y",O15*(Ref.Curr.Rates!B$10/Ref.Curr.Rates!B$17),0) -> 1758322535 | T15: Y
A16: Greece | B16: =VLOOKUP(A16,Ref.Curr!A$1:B$58,2,FALSE) -> European Union | C16: =VLOOKUP(A16,Ref.Curr!A$1:D$58,4,FALSE) -> Greek 99% (official), English, French | D16: 177738.156 | E16: 56381.386 | F16: 38160831.27 | G16: 38882.996 | H16: 34658238.94 | I16: 71051.962 | J16: 35856168.2 | K16: 11421.812 | L16: 37781191.35 | M16: 12 | O16: 146456429.8 | Q16: =IF(AND(O16>500000000,VLOOKUP(A16,Ref.Curr!A$1:C$58,3,FALSE)="Euro"),"Y","N") -> N | R16: =IF(Q16="Y",O16*(Ref.Curr.Rates!B$10/Ref.Curr.Rates!B$17),0) -> 0 | T16: N
A17: Hungary | B17: =VLOOKUP(A17,Ref.Curr!A$1:B$58,2,FALSE) -> European Union | C17: =VLOOKUP(A17,Ref.Curr!A$1:D$58,4,FALSE) -> Magyar (Hungarian) 94%, other 6% | D17: 280554.864 | E17: 50508.938 | F17: 18381648.02 | G17: 152099.539 | H17: 24134203.55 | I17: 62361.891 | J17: 12873344.15 | K17: 15584.496 | L17: 20077217.36 | M17: 13 | O17: 75466413.09 | Q17: =IF(AND(O17>500000000,VLOOKUP(A17,Ref.Curr!A$1:C$58,3,FALSE)="Euro"),"Y","N") -> N | R17: =IF(Q17="Y",O17*(Ref.Curr.Rates!B$10/Ref.Curr.Rates!B$17),0) -> 0 | T17: N
A18: Irish Republic | B18: =VLOOKUP(A18,Ref.Curr!A$1:B$58,2,FALSE) -> European Union | C18: =VLOOKUP(A18,Ref.Curr!A$1:D$58,4,FALSE) -> English, Irish (Gaelic) (both official) | D18: 2394513.309 | E18: 593030.06 | F18: 228594002.1 | G18: 528852.25 | H18: 206485816.6 | I18: 963396.18 | J18: 263382659.3 | K18: 309234.819 | L18: 85898566.19 | M18: 14 | O18: 784361044.1 | Q18: =IF(AND(O18>500000000,VLOOKUP(A18,Ref.Curr!A$1:C$58,3,FALSE)="Euro"),"Y","N") -> Y | R18: =IF(Q18="Y",O18*(Ref.Curr.Rates!B$10/Ref.Curr.Rates!B$17),0) -> 980145296.6 | T18: Y
A19: Italy | B19: =VLOOKUP(A19,Ref.Curr!A$1:B$58,2,FALSE) -> European Union | C19: =VLOOKUP(A19,Ref.Curr!A$1:D$58,4,FALSE) -> Italian (official); German-, French-, and Slovene-speaking minorities | D19: 1665807.802 | E19: 817007.739 | F19: 390175798.1 | G19: 289953.509 | H19: 158270640.2 | I19: 400329.272 | J19: 120782946 | K19: 158517.282 | L19: 160837199.6 | M19: 15 | O19: 830066584 | Q19: =IF(AND(O19>500000000,VLOOKUP(A19,Ref.Curr!A$1:C$58,3,FALSE)="Euro"),"Y","N") -> Y | R19: =IF(Q19="Y",O19*(Ref.Curr.Rates!B$10/Ref.Curr.Rates!B$17),0) -> 1037259390 | T19: Y
A20: Lithuania | B20: =VLOOKUP(A20,Ref.Curr!A$1:B$58,2,FALSE) -> European Union | C20: =VLOOKUP(A20,Ref.Curr!A$1:D$58,4,FALSE) -> Lithuanian 82% (official), Russian 8%, Polish 6% (2001) | D20: 204945.696 | E20: 32565.78 | F20: 15535285.11 | G20: 70055.82 | H20: 6579081.485 | I20: 93748.898 | J20: 28530194.92 | K20: 8575.198 | L20: 15295725.07 | M20: 16 | O20: 65940286.59 | Q20: =IF(AND(O20>500000000,VLOOKUP(A20,Ref.Curr!A$1:C$58,3,FALSE)="Euro"),"Y","N") -> N | R20: =IF(Q20="Y",O20*(Ref.Curr.Rates!B$10/Ref.Curr.Rates!B$17),0) -> 0 | T20: N
A21: Luxembourg | B21: =VLOOKUP(A21,Ref.Curr!A$1:B$58,2,FALSE) -> European Union | C21: =VLOOKUP(A21,Ref.Curr!A$1:D$58,4,FALSE) -> Luxermbourgish (national) French, German (both administrative) | D21: 91820.312 | E21: 39009.745 | F21: 22820670.53 | G21: 28310.672 | H21: 10234148.59 | I21: 19878.157 | J21: 8756075.652 | K21: 4621.738 | L21: 2113371.118 | M21: 17 | O21: 43924265.89 | Q21: =IF(AND(O21>500000000,VLOOKUP(A21,Ref.Curr!A$1:C$58,3,FALSE)="Euro"),"Y","N") -> N | R21: =IF(Q21="Y",O21*(Ref.Curr.Rates!B$10/Ref.Curr.Rates!B$17),0) -> 0 | T21: N | V21: Row Labels | W21: Visits
A22: Malta | B22: =VLOOKUP(A22,Ref.Curr!A$1:B$58,2,FALSE) -> European Union | C22: =VLOOKUP(A22,Ref.Curr!A$1:D$58,4,FALSE) -> Maltese and English (both official) | D22: 84440.469 | E22: 30662.687 | F22: 19673909.07 | G22: 13431.934 | H22: 12193932.86 | I22: 28914.203 | J22: 11866882.38 | K22: 11431.645 | L22: 8972983.489 | M22: 18 | O22: 52707707.8 | Q22: =IF(AND(O22>500000000,VLOOKUP(A22,Ref.Curr!A$1:C$58,3,FALSE)="Euro"),"Y","N") -> N | R22: =IF(Q22="Y",O22*(Ref.Curr.Rates!B$10/Ref.Curr.Rates!B$17),0) -> 0 | T22: N | V22: European Union | W22: 21578569.8
A23: Netherlands | B23: =VLOOKUP(A23,Ref.Curr!A$1:B$58,2,FALSE) -> European Union | C23: =VLOOKUP(A23,Ref.Curr!A$1:D$58,4,FALSE) -> Dutch, Frisian (both official) | D23: 1921941.55 | E23: 705305.947 | F23: 311104712.5 | G23: 635148.196 | H23: 232413340.7 | I23: 469105.743 | J23: 122861735 | K23: 112381.664 | L23: 53551746.02 | M23: 19 | O23: 719931534.2 | Q23: =IF(AND(O23>500000000,VLOOKUP(A23,Ref.Curr!A$1:C$58,3,FALSE)="Euro"),"Y","N") -> Y | R23: =IF(Q23="Y",O23*(Ref.Curr.Rates!B$10/Ref.Curr.Rates!B$17),0) -> 899633545.5 | T23: Y | V23: North America | W23: 3534361.945
A24: Norway | B24: =VLOOKUP(A24,Ref.Curr!A$1:B$58,2,FALSE) -> Europe | C24: =VLOOKUP(A24,Ref.Curr!A$1:D$58,4,FALSE) -> Bokmål Norwegian, Nynorsk Norwegian (both official); small Sami- and Finnish-speaking minorities (Sami is official in six municipalities) | D24: 850214.677 | E24: 374521.702 | F24: 230934424.9 | G24: 185410.633 | H24: 145955179.8 | I24: 157355.49 | J24: 72037488.56 | K24: 132926.852 | L24: 87058017.63 | M24: 20 | O24: 535985110.8 | Q24: =IF(AND(O24>500000000,VLOOKUP(A24,Ref.Curr!A$1:C$58,3,FALSE)="Euro"),"Y","N") -> N | R24: =IF(Q24="Y",O24*(Ref.Curr.Rates!B$10/Ref.Curr.Rates!B$17),0) -> 0 | T24: Y | V24: Europe | W24: 2516025.537
A25: Poland | B25: =VLOOKUP(A25,Ref.Curr!A$1:B$58,2,FALSE) -> European Union | C25: =VLOOKUP(A25,Ref.Curr!A$1:D$58,4,FALSE) -> Polish 98% (2002) | D25: 1357008.375 | E25: 185386.786 | F25: 69466235.62 | G25: 574199.081 | H25: 136449510.2 | I25: 536563.262 | J25: 147788353.5 | K25: 60859.246 | L25: 95323552.72 | M25: 21 | O25: 449027652.1 | Q25: =IF(AND(O25>500000000,VLOOKUP(A25,Ref.Curr!A$1:C$58,3,FALSE)="Euro"),"Y","N") -> N | R25: =IF(Q25="Y",O25*(Ref.Curr.Rates!B$10/Ref.Curr.Rates!B$17),0) -> 0 | T25: Y | V25: Asia | W25: 1790751.016
A26: Portugal | B26: =VLOOKUP(A26,Ref.Curr!A$1:B$58,2,FALSE) -> European Union | C26: =VLOOKUP(A26,Ref.Curr!A$1:D$58,4,FALSE) -> Portuguese (official), Mirandese (official, but locally used) | D26: 285672.564 | E26: 78502.524 | F26: 33999302.91 | G26: 72229.472 | H26: 34242039.97 | I26: 104924.243 | J26: 27692694.37 | K26: 30016.325 | L26: 18736607.17 | M26: 22 | O26: 114670644.4 | Q26: =IF(AND(O26>500000000,VLOOKUP(A26,Ref.Curr!A$1:C$58,3,FALSE)="Euro"),"Y","N") -> N | R26: =IF(Q26="Y",O26*(Ref.Curr.Rates!B$10/Ref.Curr.Rates!B$17),0) -> 0 | T26: N | V26: Oceania | W26: 1236018.666
A27: Romania | B27: =VLOOKUP(A27,Ref.Curr!A$1:B$58,2,FALSE) -> European Union | C27: =VLOOKUP(A27,Ref.Curr!A$1:D$58,4,FALSE) -> Romanian (official), Hungarian, German | D27: 385700.429 | E27: 48192.684 | F27: 31936824.24 | G27: 212618.032 | H27: 47622266.04 | I27: 104542.198 | J27: 50119961.44 | K27: 20347.515 | L27: 28623435.77 | M27: 23 | O27: 158302487.5 | Q27: =IF(AND(O27>500000000,VLOOKUP(A27,Ref.Curr!A$1:C$58,3,FALSE)="Euro"),"Y","N") -> N | R27: =IF(Q27="Y",O27*(Ref.Curr.Rates!B$10/Ref.Curr.Rates!B$17),0) -> 0 | T27: N | V27: Middle East | W27: 799086.601
A28: Russia | B28: =VLOOKUP(A28,Ref.Curr!A$1:B$58,2,FALSE) -> Europe | C28: =VLOOKUP(A28,Ref.Curr!A$1:D$58,4,FALSE) -> Russian, others | D28: 213779.955 | E28: 94504.326 | F28: 102117444.4 | G28: 50376.405 | H28: 44770823.07 | I28: 34009.327 | J28: 44115074.11 | K28: 34889.897 | L28: 66254993.94 | M28: 24 | O28: 257258335.6 | Q28: =IF(AND(O28>500000000,VLOOKUP(A28,Ref.Curr!A$1:C$58,3,FALSE)="Euro"),"Y","N") -> N | R28: =IF(Q28="Y",O28*(Ref.Curr.Rates!B$10/Ref.Curr.Rates!B$17),0) -> 0 | T28: N | V28: Central and South America | W28: 621335.752
A29: Slovakia | B29: =VLOOKUP(A29,Ref.Curr!A$1:B$58,2,FALSE) -> European Union | C29: =VLOOKUP(A29,Ref.Curr!A$1:D$58,4,FALSE) -> Slovak 84% (official), Hungarian 11%, Roma 2%, Ukrainian 1% (2001) | D29: 147718.921 | E29: 41198.401 | F29: 13348730.9 | G29: 61343.025 | H29: 7435830.556 | I29: 37948.876 | J29: 12055107.18 | K29: 7228.619 | L29: 2650200.51 | M29: 25 | O29: 35489869.15 | Q29: =IF(AND(O29>500000000,VLOOKUP(A29,Ref.Curr!A$1:C$58,3,FALSE)="Euro"),"Y","N") -> N | R29: =IF(Q29="Y",O29*(Ref.Curr.Rates!B$10/Ref.Curr.Rates!B$17),0) -> 0 | T29: N | V29: South Africa | W29: 226165.618
A30: Spain | B30: =VLOOKUP(A30,Ref.Curr!A$1:B$58,2,FALSE) -> European Union | C30: =VLOOKUP(A30,Ref.Curr!A$1:D$58,4,FALSE) -> Castilian Spanish 74% (official nationwide); Catalan 17%, Galician 7%, Basque 2% (each official regionally) | D30: 1704475.604 | E30: 626511.924 | F30: 303014414.3 | G30: 345665.584 | H30: 224348651.2 | I30: 598243.023 | J30: 216961710.1 | K30: 134055.073 | L30: 160236325.6 | M30: 26 | O30: 904561101.2 | Q30: =IF(AND(O30>500000000,VLOOKUP(A30,Ref.Curr!A$1:C$58,3,FALSE)="Euro"),"Y","N") -> Y | R30: =IF(Q30="Y",O30*(Ref.Curr.Rates!B$10/Ref.Curr.Rates!B$17),0) -> 1130348473 | T30: Y | V30: Western Africa | W30: 154145.629
A31: Sweden | B31: =VLOOKUP(A31,Ref.Curr!A$1:B$58,2,FALSE) -> European Union | C31: =VLOOKUP(A31,Ref.Curr!A$1:D$58,4,FALSE) -> Swedish, small Sami- and Finnish-speaking minorities | D31: 794295.118 | E31: 386408.565 | F31: 219243236 | G31: 177711.451 | H31: 116714675.8 | I31: 143700.807 | J31: 54255160.63 | K31: 86474.295 | L31: 56249400.91 | M31: 27 | O31: 446462473.4 | Q31: =IF(AND(O31>500000000,VLOOKUP(A31,Ref.Curr!A$1:C$58,3,FALSE)="Euro"),"Y","N") -> N | R31: =IF(Q31="Y",O31*(Ref.Curr.Rates!B$10/Ref.Curr.Rates!B$17),0) -> 0 | T31: Y | V31: Other Africa | W31: 145206.087
A32: Switzerland | B32: =VLOOKUP(A32,Ref.Curr!A$1:B$58,2,FALSE) -> Europe | C32: =VLOOKUP(A32,Ref.Curr!A$1:D$58,4,FALSE) -> German 64%, French 20%, Italian 7% (all official); Romansch 0.5% (national) | D32: 815768.799 | E32: 283873.395 | F32: 205818349.4 | G32: 234225.415 | H32: 140681528 | I32: 225347.484 | J32: 87969356.19 | K32: 72322.505 | L32: 68797244.9 | M32: 28 | O32: 503266478.6 | Q32: =IF(AND(O32>500000000,VLOOKUP(A32,Ref.Curr!A$1:C$58,3,FALSE)="Euro"),"Y","N") -> N | R32: =IF(Q32="Y",O32*(Ref.Curr.Rates!B$10/Ref.Curr.Rates!B$17),0) -> 0 | T32: Y | V32: Northern Africa | W32: 111188.999
A33: Turkey | B33: =VLOOKUP(A33,Ref.Curr!A$1:B$58,2,FALSE) -> Europe | C33: =VLOOKUP(A33,Ref.Curr!A$1:D$58,4,FALSE) -> Turkish (official), Kurdish, Dimli, Azeri, Kabardian | D33: 154186.487 | E33: 45096.935 | F33: 41272101.88 | G33: 50735.203 | H33: 39346869.44 | I33: 41859.929 | J33: 25816236.17 | K33: 16494.42 | L33: 34445240.45 | M33: 29 | O33: 140880447.9 | Q33: =IF(AND(O33>500000000,VLOOKUP(A33,Ref.Curr!A$1:C$58,3,FALSE)="Euro"),"Y","N") -> N | R33: =IF(Q33="Y",O33*(Ref.Curr.Rates!B$10/Ref.Curr.Rates!B$17),0) -> 0 | T33: N | V33: The Caribbean | W33: 89021.638
A34: Rest of Europe | B34: =VLOOKUP(A34,Ref.Curr!A$1:B$58,2,FALSE) -> Europe | C34: =VLOOKUP(A34,Ref.Curr!A$1:D$58,4,FALSE) -> n/a | D34: 482075.619 | E34: 143362.321 | F34: 104547497.4 | G34: 141548.668 | H34: 83632151.68 | I34: 134809.17 | J34: 68273634.05 | K34: 62355.46 | L34: 96668687.6 | M34: 30 | O34: 353121970.7 | Q34: =IF(AND(O34>500000000,VLOOKUP(A34,Ref.Curr!A$1:C$58,3,FALSE)="Euro"),"Y","N") -> N | R34: =IF(Q34="Y",O34*(Ref.Curr.Rates!B$10/Ref.Curr.Rates!B$17),0) -> 0 | T34: N | V34: Rest of World | W34: 11360.702
A35: Egypt | B35: =VLOOKUP(A35,Ref.Curr!A$1:B$58,2,FALSE) -> Northern Africa | C35: =VLOOKUP(A35,Ref.Curr!A$1:D$58,4,FALSE) -> Arabic (official), English and French widely understood by educated classes | D35: 47659.885 | E35: 16227.781 | F35: 30588995.12 | G35: 11764.506 | H35: 23214207.56 | I35: 15813.341 | J35: 21756626.27 | K35: 3854.257 | L35: 3845168.065 | M35: 31 | O35: 79404997.01 | Q35: =IF(AND(O35>500000000,VLOOKUP(A35,Ref.Curr!A$1:C$58,3,FALSE)="Euro"),"Y","N") -> N | R35: =IF(Q35="Y",O35*(Ref.Curr.Rates!B$10/Ref.Curr.Rates!B$17),0) -> 0 | T35: N | V35: Grand Total | W35: 32813237.99
A36: Morocco | B36: =VLOOKUP(A36,Ref.Curr!A$1:B$58,2,FALSE) -> Northern Africa | C36: =VLOOKUP(A36,Ref.Curr!A$1:D$58,4,FALSE) -> Arabic (official), Berber dialects, French often used for business, government, and diplomacy | D36: 26361.517 | E36: 4866.605 | F36: 4654358.315 | G36: 4978.622 | H36: 14959350.44 | I36: 11345.73 | J36: 11888208.7 | K36: 5170.56 | L36: 12141925.45 | M36: 32 | O36: 43643842.91 | Q36: =IF(AND(O36>500000000,VLOOKUP(A36,Ref.Curr!A$1:C$58,3,FALSE)="Euro"),"Y","N") -> N | R36: =IF(Q36="Y",O36*(Ref.Curr.Rates!B$10/Ref.Curr.Rates!B$17),0) -> 0 | T36: N
A37: Tunisia | B37: =VLOOKUP(A37,Ref.Curr!A$1:B$58,2,FALSE) -> Northern Africa | C37: =VLOOKUP(A37,Ref.Curr!A$1:D$58,4,FALSE) -> Arabic (official, commerce), French (commerce) | D37: =SUM(E37,G37,I37,K37) -> 8497.29 | E37: 2054.439 | F37: 1148231.064 | G37: 855.802 | H37: 1321915.656 | I37: 3566.169 | J37: 7768018.481 | K37: 2020.88 | L37: 2282549.386 | M37: 33 | O37: 12520714.59 | Q37: =IF(AND(O37>500000000,VLOOKUP(A37,Ref.Curr!A$1:C$58,3,FALSE)="Euro"),"Y","N") -> N | R37: =IF(Q37="Y",O37*(Ref.Curr.Rates!B$10/Ref.Curr.Rates!B$17),0) -> 0 | T37: N
A38: Other North Africa | B38: =VLOOKUP(A38,Ref.Curr!A$1:B$58,2,FALSE) -> Northern Africa | C38: =VLOOKUP(A38,Ref.Curr!A$1:D$58,4,FALSE) -> n/a | D38: 28670.307 | E38: 5878.577 | F38: 6733160.351 | G38: 10242.093 | H38: 15409303.66 | I38: 7694.07 | J38: 5798413.263 | K38: 4855.567 | L38: 7310131.337 | M38: 34 | O38: =SUM(F38,H38,J38,L38) -> 35251008.61 | Q38: =IF(AND(O38>500000000,VLOOKUP(A38,Ref.Curr!A$1:C$58,3,FALSE)="Euro"),"Y","N") -> N | R38: =IF(Q38="Y",O38*(Ref.Curr.Rates!B$10/Ref.Curr.Rates!B$17),0) -> 0 | T38: N
A39: South Africa | B39: =VLOOKUP(A39,Ref.Curr!A$1:B$58,2,FALSE) -> South Africa | C39: =VLOOKUP(A39,Ref.Curr!A$1:D$58,4,FALSE) -> IsiZulu 23.8%, IsiXhosa 17.6%, Afrikaans 13.3%, Sepedi 9.4%, English 8.2%, Setswana 8.2%, Sesotho 7.9%, Xitsonga 4.4%, other 7.2% | D39: 226165.618 | E39: 60686.418 | F39: 52305503.8 | G39: 52826.705 | H39: 71709829.18 | I39: 100290.828 | J39: 79831067.21 | K39: 12361.667 | L39: 15673473.42 | M39: 35 | O39: 219519873.6 | Q39: =IF(AND(O39>500000000,VLOOKUP(A39,Ref.Curr!A$1:C$58,3,FALSE)="Euro"),"Y","N") -> N | R39: =IF(Q39="Y",O39*(Ref.Curr.Rates!B$10/Ref.Curr.Rates!B$17),0) -> 0 | T39: N
A40: Nigeria | B40: =VLOOKUP(A40,Ref.Curr!A$1:B$58,2,FALSE) -> Western Africa | C40: =VLOOKUP(A40,Ref.Curr!A$1:D$58,4,FALSE) -> English (official), Hausa, Yoruba, Ibo, Fulani, and more than 200 others | D40: 154145.629 | E40: 58760.687 | F40: 93203428.35 | G40: 27117.948 | H40: 77800271.05 | I40: 51646.112 | J40: 65277094.99 | K40: 16620.882 | L40: 34525588.68 | M40: 36 | O40: 270806383.1 | Q40: =IF(AND(O40>500000000,VLOOKUP(A40,Ref.Curr!A$1:C$58,3,FALSE)="Euro"),"Y","N") -> N | R40: =IF(Q40="Y",O40*(Ref.Curr.Rates!B$10/Ref.Curr.Rates!B$17),0) -> 0 | T40: N
A41: Other Africa | B41: =VLOOKUP(A41,Ref.Curr!A$1:B$58,2,FALSE) -> Other Africa | C41: =VLOOKUP(A41,Ref.Curr!A$1:D$58,4,FALSE) -> n/a | D41: 145206.087 | E41: 24778.219 | F41: 34692596.03 | G41: 26289.917 | H41: 45140428.26 | I41: 74239.736 | J41: 57793446.03 | K41: 19898.215 | L41: 25767812.19 | M41: 37 | O41: 163394282.5 | Q41: =IF(AND(O41>500000000,VLOOKUP(A41,Ref.Curr!A$1:C$58,3,FALSE)="Euro"),"Y","N") -> N | R41: =IF(Q41="Y",O41*(Ref.Curr.Rates!B$10/Ref.Curr.Rates!B$17),0) -> 0 | T41: N
A42: Israel | B42: =VLOOKUP(A42,Ref.Curr!A$1:B$58,2,FALSE) -> Middle East | C42: =VLOOKUP(A42,Ref.Curr!A$1:D$58,4,FALSE) -> Hebrew (official), Arabic, English | D42: 158234.196 | E42: 59311.796 | F42: 42404886.52 | G42: 41394.478 | H42: 28690611.31 | I42: 45571.672 | J42: 20131645.28 | K42: 11956.25 | L42: 2913726.595 | M42: 38 | O42: 94140869.7 | Q42: =IF(AND(O42>500000000,VLOOKUP(A42,Ref.Curr!A$1:C$58,3,FALSE)="Euro"),"Y","N") -> N | R42: =IF(Q42="Y",O42*(Ref.Curr.Rates!B$10/Ref.Curr.Rates!B$17),0) -> 0 | T42: N
A43: United Arab Emirates | B43: =VLOOKUP(A43,Ref.Curr!A$1:B$58,2,FALSE) -> Middle East | C43: =VLOOKUP(A43,Ref.Curr!A$1:D$58,4,FALSE) -> Arabic (official), Persian, English, Hindi, Urdu | D43: 262312.575 | E43: 86775.624 | F43: 222141564.5 | G43: 40141.764 | H43: 96825897.85 | I43: 113441.729 | J43: 135381899.2 | K43: 21953.458 | L43: 72059511.75 | M43: 39 | O43: 526408873.4 | Q43: =IF(AND(O43>500000000,VLOOKUP(A43,Ref.Curr!A$1:C$58,3,FALSE)="Euro"),"Y","N") -> N | R43: =IF(Q43="Y",O43*(Ref.Curr.Rates!B$10/Ref.Curr.Rates!B$17),0) -> 0 | T43: Y
A44: Other Middle East | B44: =VLOOKUP(A44,Ref.Curr!A$1:B$58,2,FALSE) -> Middle East | C44: =VLOOKUP(A44,Ref.Curr!A$1:D$58,4,FALSE) -> n/a | D44: 378539.83 | E44: 186789.073 | F44: 622814938.1 | G44: 43973.301 | H44: 161534069.6 | I44: 100224.892 | J44: 176234316.8 | K44: 47552.564 | L44: 167032871.9 | M44: 40 | O44: 1127616196 | Q44: =IF(AND(O44>500000000,VLOOKUP(A44,Ref.Curr!A$1:C$58,3,FALSE)="Euro"),"Y","N") -> N | R44: =IF(Q44="Y",O44*(Ref.Curr.Rates!B$10/Ref.Curr.Rates!B$17),0) -> 0 | T44: Y
A45: Hong Kong (China) | B45: =VLOOKUP(A45,Ref.Curr!A$1:B$58,2,FALSE) -> Asia | C45: =VLOOKUP(A45,Ref.Curr!A$1:D$58,4,FALSE) -> Yue (Cantonese), English | D45: 163314.462 | E45: 63438.205 | F45: 84934593.39 | G45: 29804.514 | H45: 54259812.03 | I45: 56038.245 | J45: 91149488.23 | K45: 14033.498 | L45: 18529112.53 | M45: 41 | O45: 248873006.2 | Q45: =IF(AND(O45>500000000,VLOOKUP(A45,Ref.Curr!A$1:C$58,3,FALSE)="Euro"),"Y","N") -> N | R45: =IF(Q45="Y",O45*(Ref.Curr.Rates!B$10/Ref.Curr.Rates!B$17),0) -> 0 | T45: N
A46: Other China | B46: =VLOOKUP(A46,Ref.Curr!A$1:B$58,2,FALSE) -> Asia | C46: =VLOOKUP(A46,Ref.Curr!A$1:D$58,4,FALSE) -> n/a | D46: 232671.351 | E46: 87155.355 | F46: 141526589.9 | G46: 54976.592 | H46: 98204243.42 | I46: 53383.034 | J46: 75358680.62 | K46: 37156.37 | L46: 219873428.3 | M46: 42 | O46: 534962942.2 | Q46: =IF(AND(O46>500000000,VLOOKUP(A46,Ref.Curr!A$1:C$58,3,FALSE)="Euro"),"Y","N") -> N | R46: =IF(Q46="Y",O46*(Ref.Curr.Rates!B$10/Ref.Curr.Rates!B$17),0) -> 0 | T46: Y
A47: India | B47: =VLOOKUP(A47,Ref.Curr!A$1:B$58,2,FALSE) -> Asia | C47: =VLOOKUP(A47,Ref.Curr!A$1:D$58,4,FALSE) -> Hindi 30%, English, Bengali, Gujarati, Kashmiri, Malayalam, Marathi, Oriya, Punjabi, Tamil, Telugu, Urdu, Kannada, Assamese, Sanskrit, Sindhi (all official); Hindi/Urdu; 1,600+ dialects | D47: 375249.901 | E47: 130356.711 | F47: 82078721.86 | G47: 105448.544 | H47: 208627410.7 | I47: 110746.225 | J47: 60346193.08 | K47: 28698.421 | L47: 89450818.19 | M47: 43 | O47: 440503143.9 | Q47: =IF(AND(O47>500000000,VLOOKUP(A47,Ref.Curr!A$1:C$58,3,FALSE)="Euro"),"Y","N") -> N | R47: =IF(Q47="Y",O47*(Ref.Curr.Rates!B$10/Ref.Curr.Rates!B$17),0) -> 0 | T47: Y
A48: Japan | B48: =VLOOKUP(A48,Ref.Curr!A$1:B$58,2,FALSE) -> Asia | C48: =VLOOKUP(A48,Ref.Curr!A$1:D$58,4,FALSE) -> Japanese | D48: 220705.513 | E48: 111478.086 | F48: 76383178.06 | G48: 61289.806 | H48: 64317985.07 | I48: 26368.873 | J48: 15120518.31 | K48: 21568.748 | L48: 52206343.88 | M48: 44 | O48: 208028025.3 | Q48: =IF(AND(O48>500000000,VLOOKUP(A48,Ref.Curr!A$1:C$58,3,FALSE)="Euro"),"Y","N") -> N | R48: =IF(Q48="Y",O48*(Ref.Curr.Rates!B$10/Ref.Curr.Rates!B$17),0) -> 0 | T48: N
A49: Pakistan | B49: =VLOOKUP(A49,Ref.Curr!A$1:B$58,2,FALSE) -> Asia | C49: =VLOOKUP(A49,Ref.Curr!A$1:D$58,4,FALSE) -> Urdu 8%, English (both official); Punjabi 48%, Sindhi 12%, Siraiki (a Punjabi variant) 10%, Pashtu 8%, Balochi 3%, Hindko 2%, Brahui 1%, Burushaski, and others 8% | D49: 62967.639 | E49: 17629.735 | F49: 55356743.21 | G49: 8991.555 | H49: 15583544.45 | I49: 29301.932 | J49: 32852011.99 | K49: 7044.417 | L49: 11265588.74 | M49: 45 | O49: 115057888.4 | Q49: =IF(AND(O49>500000000,VLOOKUP(A49,Ref.Curr!A$1:C$58,3,FALSE)="Euro"),"Y","N") -> N | R49: =IF(Q49="Y",O49*(Ref.Curr.Rates!B$10/Ref.Curr.Rates!B$17),0) -> 0 | T49: N
A50: Sri Lanka | B50: =VLOOKUP(A50,Ref.Curr!A$1:B$58,2,FALSE) -> Asia | C50: =VLOOKUP(A50,Ref.Curr!A$1:D$58,4,FALSE) -> Sinhala 74% (official and national), Tamil 18% (national), other 8%; English is commonly used in government and spoken competently by about 10% | D50: 24428.273 | E50: 1661.055 | F50: 836460.2 | G50: 5101.173 | H50: 4663846.575 | I50: 15170.701 | J50: 10068468.76 | K50: 2495.344 | L50: 2092452.64 | M50: 46 | O50: 17661228.18 | Q50: =IF(AND(O50>500000000,VLOOKUP(A50,Ref.Curr!A$1:C$58,3,FALSE)="Euro"),"Y","N") -> N | R50: =IF(Q50="Y",O50*(Ref.Curr.Rates!B$10/Ref.Curr.Rates!B$17),0) -> 0 | T50: N
A51: Thailand | B51: =VLOOKUP(A51,Ref.Curr!A$1:B$58,2,FALSE) -> Asia | C51: =VLOOKUP(A51,Ref.Curr!A$1:D$58,4,FALSE) -> Thai (Siamese), English (secondary language of the elite), ethnic and regional dialects | D51: 74551.747 | E51: 32832.338 | F51: 57461084.63 | G51: 7092.727 | H51: 10931240.86 | I51: 28274.834 | J51: 28331211.41 | K51: 6351.848 | L51: 20078460.3 | M51: 47 | O51: 116801997.2 | Q51: =IF(AND(O51>500000000,VLOOKUP(A51,Ref.Curr!A$1:C$58,3,FALSE)="Euro"),"Y","N") -> N | R51: =IF(Q51="Y",O51*(Ref.Curr.Rates!B$10/Ref.Curr.Rates!B$17),0) -> 0 | T51: N
A52: Other Asia | B52: =VLOOKUP(A52,Ref.Curr!A$1:B$58,2,FALSE) -> Asia | C52: =VLOOKUP(A52,Ref.Curr!A$1:D$58,4,FALSE) -> n/a | D52: 636862.13 | E52: 288926.002 | F52: 257156875 | G52: 122897.402 | H52: 164794964.6 | I52: 164945.445 | J52: 220556549.1 | K52: 60093.281 | L52: 173043210.3 | M52: 48 | O52: 815551599.1 | Q52: =IF(AND(O52>500000000,VLOOKUP(A52,Ref.Curr!A$1:C$58,3,FALSE)="Euro"),"Y","N") -> N | R52: =IF(Q52="Y",O52*(Ref.Curr.Rates!B$10/Ref.Curr.Rates!B$17),0) -> 0 | T52: Y
A53: Australia | B53: =VLOOKUP(A53,Ref.Curr!A$1:B$58,2,FALSE) -> Oceania | C53: =VLOOKUP(A53,Ref.Curr!A$1:D$58,4,FALSE) -> English 79%, native and other languages | D53: 1069962.191 | E53: 508647.387 | F53: 536146905.4 | G53: 73118.036 | H53: 113397343.1 | I53: 423087.899 | J53: 491360011.8 | K53: 65108.869 | L53: 49483384.53 | M53: 49 | O53: 1190387645 | Q53: =IF(AND(O53>500000000,VLOOKUP(A53,Ref.Curr!A$1:C$58,3,FALSE)="Euro"),"Y","N") -> N | R53: =IF(Q53="Y",O53*(Ref.Curr.Rates!B$10/Ref.Curr.Rates!B$17),0) -> 0 | T53: Y
A54: New Zealand | B54: =VLOOKUP(A54,Ref.Curr!A$1:B$58,2,FALSE) -> Oceania | C54: =VLOOKUP(A54,Ref.Curr!A$1:D$58,4,FALSE) -> English, Maori (both official) | D54: 166056.475 | E54: 54479.57 | F54: 49022420.17 | G54: 13872.565 | H54: 17744493.96 | I54: 88700.468 | J54: 64524660.62 | K54: 9003.872 | L54: 4717215.296 | M54: 50 | O54: 136008790 | Q54: =IF(AND(O54>500000000,VLOOKUP(A54,Ref.Curr!A$1:C$58,3,FALSE)="Euro"),"Y","N") -> N | R54: =IF(Q54="Y",O54*(Ref.Curr.Rates!B$10/Ref.Curr.Rates!B$17),0) -> 0 | T54: N
A55: Barbados | B55: =VLOOKUP(A55,Ref.Curr!A$1:B$58,2,FALSE) -> The Caribbean | C55: =VLOOKUP(A55,Ref.Curr!A$1:D$58,4,FALSE) -> English | D55: 10132.24 | E55: 1304.186 | F55: 1323748.79 | I55: 4356.488 | J55: 4867175.26 | K55: 4471.566 | L55: 687806.825 | M55: 51 | O55: 6878730.875 | Q55: =IF(AND(O55>500000000,VLOOKUP(A55,Ref.Curr!A$1:C$58,3,FALSE)="Euro"),"Y","N") -> N | R55: =IF(Q55="Y",O55*(Ref.Curr.Rates!B$10/Ref.Curr.Rates!B$17),0) -> 0 | T55: N
A56: Jamaica | B56: =VLOOKUP(A56,Ref.Curr!A$1:B$58,2,FALSE) -> The Caribbean | C56: =VLOOKUP(A56,Ref.Curr!A$1:D$58,4,FALSE) -> English, Jamaican Creole | D56: 9799.038 | E56: 1034.571 | F56: 739718.265 | G56: 1138.811 | H56: 1135394.567 | I56: 7625.656 | J56: 3415569.69 | M56: 52 | O56: 5290682.522 | Q56: =IF(AND(O56>500000000,VLOOKUP(A56,Ref.Curr!A$1:C$58,3,FALSE)="Euro"),"Y","N") -> N | R56: =IF(Q56="Y",O56*(Ref.Curr.Rates!B$10/Ref.Curr.Rates!B$17),0) -> 0 | T56: N
A57: Other Caribbean | B57: =VLOOKUP(A57,Ref.Curr!A$1:B$58,2,FALSE) -> The Caribbean | C57: =VLOOKUP(A57,Ref.Curr!A$1:D$58,4,FALSE) -> n/a | D57: 69090.36 | E57: 14001.464 | F57: 15024468.78 | G57: 10367.983 | H57: 16316535.29 | I57: 32598.785 | J57: 30900053.11 | K57: 12122.128 | L57: 3510064.415 | M57: 53 | O57: 65751121.6 | Q57: =IF(AND(O57>500000000,VLOOKUP(A57,Ref.Curr!A$1:C$58,3,FALSE)="Euro"),"Y","N") -> N | R57: =IF(Q57="Y",O57*(Ref.Curr.Rates!B$10/Ref.Curr.Rates!B$17),0) -> 0 | T57: N
A58: Brazil | B58: =VLOOKUP(A58,Ref.Curr!A$1:B$58,2,FALSE) -> Central and South America | C58: =VLOOKUP(A58,Ref.Curr!A$1:D$58,4,FALSE) -> Portuguese (official), Spanish, English, French | D58: 257187.249 | E58: 175569.587 | F58: 151769210.5 | G58: 28211.573 | H58: 42437285.72 | I58: 33425.564 | J58: 25832453.6 | K58: 19980.525 | L58: 56394134.24 | M58: 54 | O58: 276433084 | Q58: =IF(AND(O58>500000000,VLOOKUP(A58,Ref.Curr!A$1:C$58,3,FALSE)="Euro"),"Y","N") -> N | R58: =IF(Q58="Y",O58*(Ref.Curr.Rates!B$10/Ref.Curr.Rates!B$17),0) -> 0 | T58: N
A59: Mexico | B59: =VLOOKUP(A59,Ref.Curr!A$1:B$58,2,FALSE) -> Central and South America | C59: =VLOOKUP(A59,Ref.Curr!A$1:D$58,4,FALSE) -> Spanish, various Mayan, Nahuatl, and other regional indigenous languages | D59: 108186.37 | E59: 74808.602 | F59: 41866941.66 | G59: 7901.952 | H59: 6836868.935 | I59: 13131.512 | J59: 7382838.232 | K59: 12344.304 | L59: 5348079.851 | M59: 55 | O59: 61434728.68 | Q59: =IF(AND(O59>500000000,VLOOKUP(A59,Ref.Curr!A$1:C$58,3,FALSE)="Euro"),"Y","N") -> N | R59: =IF(Q59="Y",O59*(Ref.Curr.Rates!B$10/Ref.Curr.Rates!B$17),0) -> 0 | T59: N
A60: Other Central & Sth. America | B60: =VLOOKUP(A60,Ref.Curr!A$1:B$58,2,FALSE) -> Central and South America | C60: =VLOOKUP(A60,Ref.Curr!A$1:D$58,4,FALSE) -> n/a | D60: 255962.133 | E60: 168466.877 | F60: 92350786.46 | G60: 26662.336 | H60: 29596430.35 | I60: 40444.123 | J60: 41018213.02 | K60: 20388.797 | L60: 31276756.14 | M60: 56 | O60: 194242186 | Q60: =IF(AND(O60>500000000,VLOOKUP(A60,Ref.Curr!A$1:C$58,3,FALSE)="Euro"),"Y","N") -> N | R60: =IF(Q60="Y",O60*(Ref.Curr.Rates!B$10/Ref.Curr.Rates!B$17),0) -> 0 | T60: N
A61: Rest of the World | B61: =VLOOKUP(A61,Ref.Curr!A$1:B$58,2,FALSE) -> Rest of World | C61: =VLOOKUP(A61,Ref.Curr!A$1:D$58,4,FALSE) -> n/a | D61: 11360.702 | E61: 6784.88 | F61: 4342662.46 | G61: 314.2 | H61: 20423 | I61: 2429.892 | J61: 2858094.464 | K61: 1831.73 | L61: 2460666.15 | M61: 57 | O61: 9681846.074 | Q61: =IF(AND(O61>500000000,VLOOKUP(A61,Ref.Curr!A$1:C$58,3,FALSE)="Euro"),"Y","N") -> N | R61: =IF(Q61="Y",O61*(Ref.Curr.Rates!B$10/Ref.Curr.Rates!B$17),0) -> 0 | T61: =IF(O61>O$63,"Y","N") -> N
A63: Country | B63: Visits per year | C63: Language | L63: Average | O63: =AVERAGE(O5:O61) -> 365683936.9
A64: France | B64: 3930396 | C64: French
A65: Germany | B65: 3161980 | C65: German
A66: USA | B66: 2790504 | C66: English, Spanish
A67: Irish Republic | B67: 2394513 | C67: English, Irish (Gaelic)
A68: Netherlands | B68: 1921942 | C68: Dutch, Frisian
A69: Spain | B69: 1704476 | C69: Castilian Spanish, Catalan, Galician, Basque
A70: Italy | B70: 1665808 | C70: Italian
A71: Poland | B71: 1357008 | C71: Polish
A72: Belgium | B72: 1188322 | C72: Dutch (Flemish), French

Sheet Age
A2: ←Back to Presentation | C2: Visits to and spending in UK: by age group and country of residence 2013
A3: Nationality | B3: Language | C3: Age | R3: Spending in different age groups
C4: 0-15 | E4: 16-24 | G4: 25-34 | I4: 35-44 | K4: 45-54 | M4: 55-64 | O4: 65+ | R4: <45 | S4: ≥45 | U4: Key
C5: Visits | D5: Spending | E5: Visits | F5: Spending | G5: Visits | H5: Spending | I5: Visits | J5: Spending | K5: Visits | L5: Spending | M5: Visits | N5: Spending | O5: Visits | P5: Spending
A6: Canada | B6: =VLOOKUP(A6,Ref.Curr!A$1:D$58,4,FALSE) -> English 59.3%, French 23.2% (both official); other 17.5% | C6: 11097.118 | D6: 2097990.562 | E6: 64404.999 | F6: 36387153.75 | G6: 121728.715 | H6: 83093172.63 | I6: 117459.255 | J6: 88033414.43 | K6: 172596.436 | L6: 143220790.3 | M6: 137393.939 | N6: 98500685.12 | O6: 119177.183 | P6: 81675178.04 | R6: =AVERAGE(D6,F6,H6,J6) -> 52402932.84 | S6: =AVERAGE(L6,N6,P6) -> 107798884.5 | U6: More visitors per year
A7: USA | B7: =VLOOKUP(A7,Ref.Curr!A$1:D$58,4,FALSE) -> English 82%, Spanish 11% (2000) | C7: 48833.301 | D7: 28083431.67 | E7: 267619.817 | F7: 286015411.5 | G7: 459867.563 | H7: 406136347.9 | I7: 598632.547 | J7: 543223267.8 | K7: 678914.508 | L7: 634831604.6 | M7: 453349.156 | N7: 406927958.9 | O7: 281273.872 | P7: 241234303.5 | R7: =AVERAGE(D7,F7,H7,J7) -> 315864614.7 | S7: =AVERAGE(L7,N7,P7) -> 427664622.3
A8: Austria | B8: =VLOOKUP(A8,Ref.Curr!A$1:D$58,4,FALSE) -> German (official nationwide); Slovene, Croatian, Hungarian (each official in one region) | C8: 13109.808 | D8: 5154465.038 | E8: 34709.541 | F8: 16130903.63 | G8: 59809.617 | H8: 25925500.19 | I8: 58098.841 | J8: 29686695.96 | K8: 72609.58 | L8: 45246978.15 | M8: 24447.263 | N8: 13311035.19 | O8: 12344.578 | P8: 6233483.206 | R8: 19224391.2 | S8: 21597165.52
A9: Belgium | B9: =VLOOKUP(A9,Ref.Curr!A$1:D$58,4,FALSE) -> Dutch (Flemish) 60%, French 40%, German less than 1% (all official) | C9: 47394.093 | D9: 15639572.38 | E9: 119942.709 | F9: 30222588.8 | G9: 218084.347 | H9: 60911435.63 | I9: 312426.093 | J9: 93039441.61 | K9: 291753.079 | L9: 87903388.04 | M9: 153825.156 | N9: 56623186.16 | O9: 44896.523 | P9: 41485137.3 | R9: 49953259.61 | S9: 62003903.84
A10: Bulgaria | B10: =VLOOKUP(A10,Ref.Curr!A$1:D$58,4,FALSE) -> Bulgarian 85%, Turkish 10%, Roma 4% | C10: 4610.076 | D10: 480414.655 | E10: 12190.782 | F10: 7366477.972 | G10: 25831.389 | H10: 13208125.77 | I10: 34948.439 | J10: 13106566.28 | K10: 32072.791 | L10: 12092544.79 | M10: 14591.358 | N10: 2248456.841 | O10: 2218.586 | P10: 1860824.367 | R10: 8540396.17 | S10: 5400608.664
A11: Czech Republic | B11: =VLOOKUP(A11,Ref.Curr!A$1:D$58,4,FALSE) -> Czech | C11: 31888.892 | D11: 9438366.164 | E11: 52364.741 | F11: 28279920.67 | G11: 81293.207 | H11: 24695332.7 | I11: 97243.669 | J11: 33931299.18 | K11: 62988.304 | L11: 15717807.15 | M11: 21708.737 | N11: 5432917.358 | O11: 10992.746 | P11: 4779520.741 | R11: 24086229.68 | S11: 8643415.082
A12: Cyprus | B12: =VLOOKUP(A12,Ref.Curr!A$1:D$58,4,FALSE) -> Greek, Turkish (both official); English | C12: 3503.502 | D12: 920943.159 | E12: 8313.001 | F12: 6431756.694 | G12: 17678.879 | H12: 16344240.31 | I12: 20355.536 | J12: 37416994.26 | K12: 30811.19 | L12: 31708880.64 | M12: 28085.275 | N12: 23464692.96 | O12: 14530.002 | P12: 6483509.565 | R12: 15278483.61 | S12: 20552361.06
A13: Denmark | B13: =VLOOKUP(A13,Ref.Curr!A$1:D$58,4,FALSE) -> Danish, Faroese, Greenlandic (Inuit dialect), German; English is the predominant second language | C13: 18020.357 | D13: 8485848.079 | E13: 87718.07 | F13: 50094735.1 | G13: 124374.173 | H13: 58376166.57 | I13: 152394.137 | J13: 141547140.3 | K13: 172197.055 | L13: 102313709.8 | M13: 92870.808 | N13: 54619193.48 | O13: 55163.782 | P13: 24444034.59 | R13: 64625972.5 | S13: 60458979.28
A14: Finland | B14: =VLOOKUP(A14,Ref.Curr!A$1:D$58,4,FALSE) -> Finnish 92%, Swedish 6% (both official); small Sami- (Lapp) and Russian-speaking minorities | C14: 2203.362 | D14: 927786.816 | E14: 22942.901 | F14: 13248805.3 | G14: 50495.651 | H14: 24627142.62 | I14: 55498 | J14: 31850087.97 | K14: 49531.473 | L14: 28730793.45 | M14: 25809.31 | N14: 16491946.34 | O14: 8669.128 | P14: 3898459.987 | R14: 17663455.67 | S14: 16373733.26
A15: France | B15: =VLOOKUP(A15,Ref.Curr!A$1:D$58,4,FALSE) -> French 100%, rapidly declining regional dialects (Provençal, Breton, Alsatian, Corsican, Catalan, Basque, Flemish) | C15: 369259.948 | D15: 116334781.3 | E15: 479343.626 | F15: 191018313.6 | G15: 859532.558 | H15: 282589217.6 | I15: 865061.954 | J15: 286167361 | K15: 737640.234 | L15: 256255097.2 | M15: 403574.509 | N15: 144045730.3 | O15: 215983.109 | P15: 73153046.82 | R15: 219027418.4 | S15: 157817958.1
A16: Germany | B16: =VLOOKUP(A16,Ref.Curr!A$1:D$58,4,FALSE) -> German | C16: 180839.218 | D16: 89078026.9 | E16: 420540.653 | F16: 216516082.4 | G16: 612135.231 | H16: 264464934.8 | I16: 683013.637 | J16: 278579015.6 | K16: 758233.74 | L16: 315516749.8 | M16: 341702.212 | N16: 169737725.9 | O16: 157810.108 | P16: 73143328.48 | R16: 212159514.9 | S16: 186132601.4
A17: Greece | B17: =VLOOKUP(A17,Ref.Curr!A$1:D$58,4,FALSE) -> Greek 99% (official), English, French | C17: 1208.49 | D17: 233384.828 | E17: 17123.73 | F17: 29205360.74 | G17: 46734.189 | H17: 37978669.13 | I17: 31593.836 | J17: 25447992.4 | K17: 36608.079 | L17: 25454142.2 | M17: 31797.594 | N17: 22692726.44 | O17: 12672.238 | P17: 5581137.37 | R17: 23216351.78 | S17: 17909335.34
A18: Hungary | B18: =VLOOKUP(A18,Ref.Curr!A$1:D$58,4,FALSE) -> Magyar (Hungarian) 94%, other 6% | C18: 6826.995 | D18: 1813828.277 | E18: 39635.225 | F18: 25372812.4 | G18: 67814.617 | H18: 21779030.4 | I18: 71078.34 | J18: 10467905.03 | K18: 68688.38 | L18: 10173185.73 | M18: 22502.882 | N18: 4542107.029 | O18: 4008.425 | P18: 1330078.74 | R18: 14858394.03 | S18: 5348457.167
A19: Irish Republic | B19: =VLOOKUP(A19,Ref.Curr!A$1:D$58,4,FALSE) -> English, Irish (Gaelic) (both official) | C19: 88727.04445 | D19: 21656430.79 | E19: 264008.4648 | F19: 73095630.82 | G19: 496110.4708 | H19: 180127697 | I19: 552028.7267 | J19: 180403496.7 | K19: 486532.2483 | L19: 163142161.7 | M19: 314115.1422 | N19: 109369498.3 | O19: 192991.2119 | P19: 89748252.25 | R19: 113820813.8 | S19: 120753304.1
A20: Italy | B20: =VLOOKUP(A20,Ref.Curr!A$1:D$58,4,FALSE) -> Italian (official); German-, French-, and Slovene-speaking minorities | C20: 86346.862 | D20: 54368196.52 | E20: 288515.682 | F20: 202252665.8 | G20: 366605.556 | H20: 181570339.6 | I20: 351003.687 | J20: 146157036.7 | K20: 338635.84 | L20: 144794055 | M20: 160640.987 | N20: 72475335.66 | O20: 74059.188 | P20: 28760454.18 | R20: 146087059.6 | S20: 82009948.28
A21: Lithuania | B21: =VLOOKUP(A21,Ref.Curr!A$1:D$58,4,FALSE) -> Lithuanian 82% (official), Russian 8%, Polish 6% (2001) | C21: 10137.681 | D21: 3503641.016 | E21: 29607.486 | F21: 13486328.82 | G21: 59744.273 | H21: 26205751.2 | I21: 39603.827 | J21: 8841581.618 | K21: 47929.279 | L21: 7921720.506 | M21: 14357.35 | N21: 3152057.157 | O21: 3565.8 | P21: 3023420.986 | R21: 13009325.66 | S21: 4699066.216
A22: Luxembourg | B22: =VLOOKUP(A22,Ref.Curr!A$1:D$58,4,FALSE) -> Luxermbourgish (national) French, German (both administrative) | C22: 680.907 | D22: 65065.141 | E22: 7524.323 | F22: 2827356.49 | G22: 23015.879 | H22: 13439854.95 | I22: 25403.347 | J22: 13496262.98 | K22: 17211.798 | L22: 8513784.413 | M22: 15176.9 | N22: 3550272.363 | O22: 2807.158 | P22: 2108676.685 | R22: 7457134.889 | S22: 4724244.487
A23: Malta | B23: =VLOOKUP(A23,Ref.Curr!A$1:D$58,4,FALSE) -> Maltese and English (both official) | C23: 4941.149 | D23: 2386556.227 | E23: 5086.936 | F23: 9583971.621 | G23: 20760.299 | H23: 12862626.17 | I23: 13343.485 | J23: 8287280.778 | K23: 15352.104 | L23: 7453083.981 | M23: 17995.587 | N23: 8592961.042 | O23: 6960.909 | P23: 3713869.297 | R23: 8280108.698 | S23: 6586638.107
A24: Netherlands | B24: =VLOOKUP(A24,Ref.Curr!A$1:D$58,4,FALSE) -> Dutch, Frisian (both official) | C24: 91171.318 | D24: 29035862.45 | E24: 186156.178 | F24: 73946197.81 | G24: 354899.631 | H24: 124938895.2 | I24: 464013.953 | J24: 164388659.4 | K24: 466101.073 | L24: 187243635.2 | M24: 255645.378 | N24: 99326490.17 | O24: 103954.019 | P24: 41563890.21 | R24: 98077403.72 | S24: 109378005.2
A25: Norway | B25: =VLOOKUP(A25,Ref.Curr!A$1:D$58,4,FALSE) -> Bokmål Norwegian, Nynorsk Norwegian (both official); small Sami- and Finnish-speaking minorities (Sami is official in six municipalities) | C25: 27797.692 | D25: 11787492.54 | E25: 96057.892 | F25: 50766426.59 | G25: 178588.487 | H25: 108085035.6 | I25: 189343.573 | J25: 112498560.9 | K25: 225211.657 | L25: 181157525.5 | M25: 99713.214 | N25: 51709407.24 | O25: 32097.281 | P25: 19619791.83 | R25: 70784378.89 | S25: 84162241.51
A26: Poland | B26: =VLOOKUP(A26,Ref.Curr!A$1:D$58,4,FALSE) -> Polish 98% (2002) | C26: 47857.933 | D26: 14375084.51 | E26: 173151.815 | F26: 120639096.1 | G26: 434558.226 | H26: 137690201.4 | I26: 323853.89 | J26: 80347315.4 | K26: 194711.375 | L26: 45941169.99 | M26: 146671.825 | N26: 40525405.13 | O26: 35062.171 | P26: 9614868.539 | R26: 88262924.34 | S26: 32027147.88
A27: Portugal | B27: =VLOOKUP(A27,Ref.Curr!A$1:D$58,4,FALSE) -> Portuguese (official), Mirandese (official, but locally used) | C27: 13501.11 | D27: 6371303.024 | E27: 24340.367 | F27: 7737859.123 | G27: 62023.714 | H27: 24343008.08 | I27: 67918.173 | J27: 24534149.99 | K27: 63414.594 | L27: 30954024.55 | M27: 27406.685 | N27: 10168644.64 | O27: 27067.921 | P27: 10835806.08 | R27: 15746580.05 | S27: 17319491.75
A28: Romania | B28: =VLOOKUP(A28,Ref.Curr!A$1:D$58,4,FALSE) -> Romanian (official), Hungarian, German | C28: 1979.783 | D28: 678118.302 | E28: 59183.122 | F28: 43438234.86 | G28: 121961.808 | H28: 56041200.97 | I28: 113093.332 | J28: 34999352.92 | K28: 65949.653 | L28: 12037825.54 | M28: 17526.292 | N28: 7877104.771 | O28: 6006.439 | P28: 3589828.154 | R28: 33789226.76 | S28: 7834919.49
A29: Russia | B29: =VLOOKUP(A29,Ref.Curr!A$1:D$58,4,FALSE) -> Russian, others | C29: 17832.644 | D29: 18563404.33 | E29: 25210.594 | F29: 41986026.33 | G29: 53115.474 | H29: 51178946.06 | I29: 56122.952 | J29: 70793155.78 | K29: 38868.233 | L29: 51804206.23 | M29: 14105.174 | N29: 20722945.23 | O29: 8524.884 | P29: 2464132.69 | R29: 45630383.13 | S29: 24997094.72
A30: Slovakia | B30: =VLOOKUP(A30,Ref.Curr!A$1:D$58,4,FALSE) -> Slovak 84% (official), Hungarian 11%, Roma 2%, Ukrainian 1% (2001) | C30: 2602.486 | D30: 404489.806 | E30: 28439.769 | F30: 10130865.32 | G30: 38182.756 | H30: 9461673.544 | I30: 42847.119 | J30: 10144523.75 | K30: 20202.724 | L30: 2247456.439 | M30: 12939.506 | N30: 2260208.175 | O30: 2504.561 | P30: 873772.741 | R30: 7535388.104 | S30: 1793812.452
A31: Spain | B31: =VLOOKUP(A31,Ref.Curr!A$1:D$58,4,FALSE) -> Castilian Spanish 74% (official nationwide); Catalan 17%, Galician 7%, Basque 2% (each official regionally) | C31: 73963.649 | D31: 35177787.02 | E31: 163754.81 | F31: 103990980.5 | G31: 368523.15 | H31: 212985789.9 | I31: 424867.473 | J31: 206888511.8 | K31: 338601.287 | L31: 194482643.4 | M31: 187560.295 | N31: 103990622.2 | O31: 145503.375 | P31: 47140163.93 | R31: 139760767.3 | S31: 115204476.5
A32: Sweden | B32: =VLOOKUP(A32,Ref.Curr!A$1:D$58,4,FALSE) -> Swedish, small Sami- and Finnish-speaking minorities | C32: 26912.116 | D32: 16760413.79 | E32: 99208.771 | F32: 71148333.08 | G32: 146488.564 | H32: 85498554.82 | I32: 187579.96 | J32: 89171425.7 | K32: 185717.089 | L32: 99044527.93 | M32: 109985.39 | N32: 67525955.44 | O32: 37987.198 | P32: 17759877.04 | R32: 65644681.85 | S32: 61443453.47
A33: Switzerland | B33: =VLOOKUP(A33,Ref.Curr!A$1:D$58,4,FALSE) -> German 64%, French 20%, Italian 7% (all official); Romansch 0.5% (national) | C33: 15195.811 | D33: 7202649.779 | E33: 77054.886 | F33: 48736954.7 | G33: 164956.439 | H33: 101700970.3 | I33: 225912.055 | J33: 132136057.8 | K33: 206901.051 | L33: 142061969.6 | M33: 92395.311 | N33: 52175335.66 | O33: 32753.35 | P33: 19260501.45 | R33: 72444158.15 | S33: 71165935.58
A34: Turkey | B34: =VLOOKUP(A34,Ref.Curr!A$1:D$58,4,FALSE) -> Turkish (official), Kurdish, Dimli, Azeri, Kabardian | C34: 3017.864 | D34: 3994306.432 | E34: 12501.756 | F34: 23335811.52 | G34: 37155.742 | H34: 41837203.74 | I34: 44557.057 | J34: 37427523.31 | K34: 36877.147 | L34: 22720537.02 | M34: 16933.13 | N34: 8308498.65 | O34: 2864.452 | P34: 3114132.794 | R34: 26648711.25 | S34: 11381056.16
A35: Rest of Europe | B35: =VLOOKUP(A35,Ref.Curr!A$1:D$58,4,FALSE) -> n/a | C35: 15341.89 | D35: 9775644.75 | E35: 52910.399 | F35: 78725175.53 | G35: 132775.278 | H35: 87461674.88 | I35: 115329.798 | J35: 60013250.35 | K35: 105315.129 | L35: 81963351.07 | M35: 49953.187 | N35: 31485728.55 | O35: 10137.736 | P35: 4289951.264 | R35: 58993936.38 | S35: 39246343.63
A36: Egypt | B36: =VLOOKUP(A36,Ref.Curr!A$1:D$58,4,FALSE) -> Arabic (official), English and French widely understood by educated classes | C36: 1710.909 | D36: 1250719.003 | E36: 5602.922 | F36: 7940810.736 | G36: 7621.376 | H36: 18837167.24 | I36: 11144.274 | J36: 15761673.46 | K36: 12029.312 | L36: 19085612.31 | M36: 5476.795 | N36: 6467209.579 | O36: 4074.297 | P36: 10061804.69 | R36: 10947592.61 | S36: 11871542.19
A37: Morocco | B37: =VLOOKUP(A37,Ref.Curr!A$1:D$58,4,FALSE) -> Arabic (official), Berber dialects, French often used for business, government, and diplomacy | C37: 461.215 | D37: 468133.225 | E37: 1010.939 | F37: 1295266.695 | G37: 9479.077 | H37: 16799881.51 | I37: 5879.202 | J37: 7778880.711 | K37: 4404.155 | L37: 7429711.987 | M37: 3844.838 | N37: 9371953.286 | O37: 1282.091 | P37: 500015.49 | R37: 6585540.536 | S37: 5767226.921
A38: Tunisia | B38: =VLOOKUP(A38,Ref.Curr!A$1:D$58,4,FALSE) -> Arabic (official, commerce), French (commerce) | C38: 461.215 | D38: 683059.415 | E38: 972.909 | F38: 263110.425 | G38: 734.235 | H38: 2053096.981 | I38: 3259.384 | J38: 1905182.149 | K38: 2659.754 | L38: 7405222.222 | M38: 409.793 | N38: 211043.395 | R38: 1226112.243 | S38: 3808132.808
A39: Other North Africa | B39: =VLOOKUP(A39,Ref.Curr!A$1:D$58,4,FALSE) -> n/a | C39: 1453.503 | D39: 942174.005 | E39: 1976.604 | F39: 1086957.857 | G39: 10363.387 | H39: 14479827.27 | I39: 8019.663 | J39: 9338755.642 | K39: 4889.45 | L39: 5772035.938 | M39: 1967.7 | N39: 3646230.2 | R39: 6461928.693 | S39: 4709133.069
A40: South Africa | B40: =VLOOKUP(A40,Ref.Curr!A$1:D$58,4,FALSE) -> IsiZulu 23.8%, IsiXhosa 17.6%, Afrikaans 13.3%, Sepedi 9.4%, English 8.2%, Setswana 8.2%, Sesotho 7.9%, Xitsonga 4.4%, other 7.2% | C40: 2209.586 | D40: 1088709.901 | E40: 13950.413 | F40: 6718760.886 | G40: 27835.493 | H40: 28277769.88 | I40: 56627.159 | J40: 59171177.25 | K40: 47706.777 | L40: 49913116.26 | M40: 40981.755 | N40: 47329602.05 | O40: 36379.795 | P40: 28702793.66 | R40: 23814104.48 | S40: 41981837.32
A41: Nigeria | B41: =VLOOKUP(A41,Ref.Curr!A$1:D$58,4,FALSE) -> English (official), Hausa, Yoruba, Ibo, Fulani, and more than 200 others | C41: 4540.358 | D41: 4432962.301 | E41: 5870.242 | F41: 11892491.26 | G41: 27153.074 | H41: 45585083.61 | I41: 51175.691 | J41: 101603147.3 | K41: 42461.196 | L41: 69019529.09 | M41: 20390.036 | N41: 36146868.29 | O41: 2555.032 | P41: 4011709.885 | R41: 40878421.13 | S41: 36392702.42
A42: Other Africa | B42: =VLOOKUP(A42,Ref.Curr!A$1:D$58,4,FALSE) -> n/a | C42: 3721.264 | D42: 1369867.458 | E42: 4808.758 | F42: 4047138.168 | G42: 24588.958 | H42: 29678544.7 | I42: 37413.882 | J42: 40098521.22 | K42: 38350.413 | L42: 51805945.14 | M42: 22414.326 | N42: 25384320.53 | O42: 13908.486 | P42: 12280968.29 | R42: 18798517.89 | S42: 29823744.65
A43: Israel | B43: =VLOOKUP(A43,Ref.Curr!A$1:D$58,4,FALSE) -> Hebrew (official), Arabic, English | C43: 5322.139 | D43: 2789912.147 | E43: 13574.845 | F43: 5173556.55 | G43: 27341.58 | H43: 14110248.39 | I43: 45128.885 | J43: 30320048.06 | K43: 27258.367 | L43: 21704518.7 | M43: 19920.811 | N43: 11344055.13 | O43: 18064.724 | P43: 7894172.039 | R43: 13098441.29 | S43: 13647581.95
A44: United Arab Emirates | B44: =VLOOKUP(A44,Ref.Curr!A$1:D$58,4,FALSE) -> Arabic (official), Persian, English, Hindi, Urdu | C44: 10261.827 | D44: 12452034.55 | E44: 19867.227 | F44: 51876354.36 | G44: 69301.636 | H44: 172358105.5 | I44: 77527.071 | J44: 128834445.2 | K44: 53297.091 | L44: 122110351.5 | M44: 27428.728 | N44: 34366196.2 | O44: 4628.995 | P44: 4619391.725 | R44: 91380234.9 | S44: 53698646.49
A45: Other Middle East | B45: =VLOOKUP(A45,Ref.Curr!A$1:D$58,4,FALSE) -> n/a | C45: 15896.662 | D45: 24497691.63 | E45: 37198.77 | F45: 137934094.4 | G45: 97108.162 | H45: 322566898.9 | I45: 93693.15 | J45: 222365827.1 | K45: 95061.833 | L45: 327723214.9 | M45: 33426.413 | N45: 77824748.57 | O45: 6154.84 | P45: 16035622.56 | R45: 176841128 | S45: 140527862
A46: Hong Kong (China) | B46: =VLOOKUP(A46,Ref.Curr!A$1:D$58,4,FALSE) -> Yue (Cantonese), English | C46: 3289.442 | D46: 3568321.877 | E46: 16070.566 | F46: 16675752.66 | G46: 31688.884 | H46: 44065708.85 | I46: 41889.696 | J46: 58416886.62 | K46: 43861.713 | L46: 85902383.84 | M46: 19284.251 | N46: 36338888.82 | O46: 6897.01 | P46: 3131196.655 | R46: 30681667.5 | S46: 41790823.1
A47: Other China | B47: =VLOOKUP(A47,Ref.Curr!A$1:D$58,4,FALSE) -> n/a | C47: 12932.982 | D47: 23381491.65 | E47: 30714.55 | F47: 148081876.3 | G47: 67353.15 | H47: 168270262.6 | I47: 53312.102 | J47: 78096569.85 | K47: 48786.826 | L47: 85427121.44 | M47: 14679.269 | N47: 21479898.07 | O47: 3796.895 | P47: 8515043.257 | R47: 104457550.1 | S47: 38474020.92
A48: India | B48: =VLOOKUP(A48,Ref.Curr!A$1:D$58,4,FALSE) -> Hindi 30%, English, Bengali, Gujarati, Kashmiri, Malayalam, Marathi, Oriya, Punjabi, Tamil, Telugu, Urdu, Kannada, Assamese, Sanskrit, Sindhi (all official); Hindi/Urdu; 1,600+ dialects | C48: 6754.136 | D48: 1941390.567 | E48: 35181.213 | F48: 44170994.98 | G48: 68397.113 | H48: 192944275.2 | I48: 99512.014 | J48: 90762977.86 | K48: 68674.008 | L48: 64335653.81 | M48: 58899.255 | N48: 32932807.44 | O48: 37832.162 | P48: 13614182.66 | R48: 82454909.64 | S48: 36960881.3
A49: Japan | B49: =VLOOKUP(A49,Ref.Curr!A$1:D$58,4,FALSE) -> Japanese | C49: 5600.206 | D49: 8945065.037 | E49: 33443.615 | F49: 44160097.49 | G49: 44189.472 | H49: 29710784.25 | I49: 48898.196 | J49: 48100034.55 | K49: 49073.332 | L49: 42016331.79 | M49: 25559.576 | N49: 25160288.97 | O49: 13008.742 | P49: 9415881.102 | R49: 32728995.33 | S49: 25530833.95
A50: Pakistan | B50: =VLOOKUP(A50,Ref.Curr!A$1:D$58,4,FALSE) -> Urdu 8%, English (both official); Punjabi 48%, Sindhi 12%, Siraiki (a Punjabi variant) 10%, Pashtu 8%, Balochi 3%, Hindko 2%, Brahui 1%, Burushaski, and others 8% | C50: 2162.03 | D50: 2159071.112 | E50: 6878.115 | F50: 8153740.374 | G50: 7833.428 | H50: 15320790.06 | I50: 16106.556 | J50: 26192193.58 | K50: 16428.494 | L50: 32074157.13 | M50: 8516.808 | N50: 15727096.34 | O50: 5042.208 | P50: 15433568.21 | R50: 12956448.78 | S50: 21078273.89
A51: Sri Lanka | B51: =VLOOKUP(A51,Ref.Curr!A$1:D$58,4,FALSE) -> Sinhala 74% (official and national), Tamil 18% (national), other 8%; English is commonly used in government and spoken competently by about 10% | E51: 1266.651 | F51: 1863224.145 | G51: 2554.03 | H51: 987636.359 | I51: 5296.735 | J51: 5077645.504 | K51: 7029.073 | L51: 3566096.44 | M51: 6001.622 | N51: 4239566.304 | O51: 2280.162 | P51: 1927059.424 | R51: 2642835.336 | S51: 3244240.723
A52: Thailand | B52: =VLOOKUP(A52,Ref.Curr!A$1:D$58,4,FALSE) -> Thai (Siamese), English (secondary language of the elite), ethnic and regional dialects | C52: 758.899 | D52: 1117972.947 | E52: 4682.102 | F52: 16469911.99 | G52: 19512.812 | H52: 18640457.69 | I52: 19312.491 | J52: 23854331.69 | K52: 14029.917 | L52: 17853632.56 | M52: 10251.122 | N52: 30006038.23 | O52: 5536.741 | P52: 8075965.703 | R52: 15020668.58 | S52: 18645212.16
A53: Other Asia | B53: =VLOOKUP(A53,Ref.Curr!A$1:D$58,4,FALSE) -> n/a | C53: 14928.104 | D53: 11092183.56 | E53: 87826.003 | F53: 158192357 | G53: 150154.948 | H53: 144329513.5 | I53: 149196.513 | J53: 171274366.8 | K53: 144538.042 | L53: 225966387.3 | M53: 70771.202 | N53: 83499943.27 | O53: 19133.118 | P53: 21260400.87 | R53: 121222105.2 | S53: 110242243.8
A54: Australia | B54: =VLOOKUP(A54,Ref.Curr!A$1:D$58,4,FALSE) -> English 79%, native and other languages | C54: 21333.246 | D54: 19979874.42 | E54: 113544.951 | F54: 101420985.6 | G54: 208525.156 | H54: 219576071.5 | I54: 168926.99 | J54: 154842582.3 | K54: 213039.628 | L54: 250147009.5 | M54: 199480.101 | N54: 269534891.5 | O54: 144724.472 | P54: 177699967.5 | R54: 123954878.5 | S54: 232460622.8
A55: New Zealand | B55: =VLOOKUP(A55,Ref.Curr!A$1:D$58,4,FALSE) -> English, Maori (both official) | C55: 1777.861 | D55: 324210.585 | E55: 7886.522 | F55: 5053612.791 | G55: 32945.565 | H55: 21559235.86 | I55: 22679.405 | J55: 17677033.98 | K55: 37388.161 | L55: 35768997.95 | M55: 35261.826 | N55: 30669045.67 | O55: 28117.135 | P55: 25034446.39 | R55: 11153523.3 | S55: 30490830
A56: Barbados | B56: =VLOOKUP(A56,Ref.Curr!A$1:D$58,4,FALSE) -> English | E56: 1451.546 | F56: 384659.69 | G56: 1304.186 | H56: 1323748.79 | I56: 1881.209 | J56: 166489.815 | K56: 1698.688 | L56: 2078848.9 | M56: 2657.8 | N56: 2795887.1 | O56: 1138.811 | P56: 136657.32 | R56: 624966.0983 | S56: 1670464.44
A57: Jamaica | B57: =VLOOKUP(A57,Ref.Curr!A$1:D$58,4,FALSE) -> English, Jamaican Creole | I57: 3354.258 | J57: 2222836.472 | K57: 2486.117 | L57: 1342109.855 | M57: 2999.88 | N57: 1423719.55 | O57: 958.783 | P57: 302016.645 | R57: 2222836.472 | S57: 1022615.35
A58: Other Caribbean | B58: =VLOOKUP(A58,Ref.Curr!A$1:D$58,4,FALSE) -> n/a | D58: 0 | E58: 2151.716 | F58: 1252626.072 | G58: 13684.149 | H58: 12710751.69 | I58: 11264.981 | J58: 12833236.98 | K58: 16579.965 | L58: 20281406.66 | M58: 17071.709 | N58: 13587354.75 | O58: 8337.84 | P58: 5241265.115 | R58: 6699153.684 | S58: 13036675.51
A59: Brazil | B59: =VLOOKUP(A59,Ref.Curr!A$1:D$58,4,FALSE) -> Portuguese (official), Spanish, English, French | C59: 3664.003 | D59: 3097123.333 | E59: 43189.474 | F59: 50253931.01 | G59: 59097.111 | H59: 73530257.34 | I59: 54205.765 | J59: 58931615.4 | K59: 53257.646 | L59: 44019157.89 | M59: 34206.38 | N59: 33964148.86 | O59: 9566.87 | P59: 13049525.52 | R59: 46453231.77 | S59: 30344277.42
A60: Mexico | B60: =VLOOKUP(A60,Ref.Curr!A$1:D$58,4,FALSE) -> Spanish, various Mayan, Nahuatl, and other regional indigenous languages | C60: 947.334 | D60: 412170.348 | E60: 19020.36 | F60: 12898948.6 | G60: 19461.113 | H60: 12670942.16 | I60: 20232.328 | J60: 14062646.18 | K60: 22976.996 | L60: 11263575.62 | M60: 17727.761 | N60: 6925806.942 | O60: 7269.254 | P60: 2406751.383 | R60: 10011176.82 | S60: 6865377.98
A61: Other Central & Sth. America | B61: =VLOOKUP(A61,Ref.Curr!A$1:D$58,4,FALSE) -> n/a | C61: 7788.942 | D61: 3682040.325 | E61: 28163.736 | F61: 26466837.18 | G61: 49339.779 | H61: 37043435.56 | I61: 42597.293 | J61: 30130467.6 | K61: 60180.688 | L61: 60946717.75 | M61: 53029.025 | N61: 27287040.05 | O61: 14862.67 | P61: 8997875.008 | R61: 24330695.17 | S61: 32410544.27
A62: Rest of the World | B62: =VLOOKUP(A62,Ref.Curr!A$1:D$58,4,FALSE) -> n/a | G62: 1201.768 | H62: 673953.07 | I62: 1403.751 | J62: 521267.999 | K62: 2808.006 | L62: 2339942.94 | M62: 5947.177 | N62: 6146682.065 | R62: 597610.5345 | S62: 4243312.503
A64: Totals | C64: =SUM(C6:C62) -> 1394778.962 | D64: =SUM(D6:D62) -> 644471465.7 | E64: 3755867.795 | F64: 2775846335 | G64: 6883615.525 | H64: 4433663188 | I64: 7484565.336 | J64: 4403366169 | K64: 7149132.778 | L64: 4759948139 | M64: 4063385.511 | N64: 2605666164 | O64: 2060139.067 | P64: =SUM(P6:P62) -> 1271131714 | R64: =AVERAGE(R6:R62) -> 53809117.06 | S64: =AVERAGE(S6:S62) -> 50581909.91
B68: Age Group | C68: 0-15 | D68: 16-24 | E68: 25-34 | F68: 35-44 | G68: 45-54 | H68: 55-64 | I68: 65+
B69: Total Visitors | C69: 1394778.962 | D69: 3755867.795 | E69: 6883615.525 | F69: 7484565.336 | G69: 7149132.778 | H69: 4063385.511 | I69: 2060139.067

Sheet Dest. (hidden)
A2: Destinations and Purposes of Visitors
A3: Destination | B3: Holiday | C3: Business | D3: Personal | E3: Other
A4: Bedfordshire | B4: 41571.00369 | C4: 80816.86544 | D4: 116039.2597 | E4: 25606.12642
A5: Berkshire | B5: 138544.1171 | C5: 184148.9246 | D5: 191237.9546 | E5: 34198.23291
A6: Bristol UA | B6: 142990.3045 | C6: 103581.248 | D6: 156251.7481 | E6: 25423.94322
A7: Buckinghamshire | B7: 52444.91194 | C7: 111477.0716 | D7: 128961.1693 | E7: 13770.33345
A8: Cambridgeshire | B8: 152723.1806 | C8: 146969.2791 | D8: 211185.1738 | E8: 46166.23244
A9: Cheshire | B9: 70948.12768 | C9: 74223.37478 | D9: 142325.2849 | E9: 16048.14734
A10: Cornwall | B10: 217217.9313 | C10: 14370.50135 | D10: 84973.96726 | E10: 2932.755389
A11: Cumbria | B11: 123180.25 | C11: 27469.40975 | D11: 80336.67767 | E11: 6691.387767
A12: Derbyshire | B12: 57344.8767 | C12: 62804.14789 | D12: 71448.41153 | E12: 4693.54304
A13: Devon | B13: 267013.4688 | C13: 57162.0556 | D13: 166550.2698 | E13: 45230.8372
A14: Dorset | B14: 136948.4132 | C14: 32090.31561 | D14: 159846.1329 | E14: 27240.09691
A15: Durham | B15: 30069.18319 | C15: 26970.96978 | D15: 19989.10764 | E15: 3531.389486
A16: East Sussex | B16: 352953.9297 | C16: 64494.09031 | D16: 211769.8731 | E16: 60752.12371
A17: East Yorkshire | B17: 9029.281657 | C17: 2898.419184 | D17: 17068.55815 | E17: 1046.350148
A18: Essex | B18: 105411.5903 | C18: 98634.66185 | D18: 199280.0383 | E18: 35448.62936
A19: Gloucestershire | B19: 97482.8732 | C19: 39617.95454 | D19: 101788.6895 | E19: 12499.255
A20: Hampshire | B20: 186961.6931 | C20: 170530.8773 | D20: 284572.1782 | E20: 46822.52452
A21: Hereford/Worcs | B21: 41000.34555 | C21: 32426.27207 | D21: 66178.15789 | E21: 8093.295415
A22: Hertfordshire | B22: 94796.33325 | C22: 81181.61543 | D22: 201569.1946 | E22: 23503.17255
A23: Hull UA | B23: 7044.515402 | C23: 21155.17542 | D23: 33503.77947 | E23: 618.9387126
A24: Isle of Wight | B24: 27137.34738 | C24: 1917.341331 | D24: 17848.45547 | E24: 1539.146322
A25: Kent | B25: 412279.7827 | C25: 263949.5823 | D25: 275996.3892 | E25: 76019.44129
A26: Lancashire | B26: 57221.44088 | C26: 64287.90388 | D26: 112173.354 | E26: 19280.72602
A27: Leicestershire | B27: 34372.79126 | C27: 74139.64399 | D27: 96924.76402 | E27: 13799.99439
A28: Lincolnshire | B28: 49234.50793 | C28: 49224.52021 | D28: 90779.6822 | E28: 3461.296666
A29: London | B29: 8501466.378 | C29: 3239421.26 | D29: 3773352.82 | E29: 1269908.231
A30: Greater Manchester | B30: 248320.4145 | C30: 361058.5724 | D30: 367967.791 | E30: 193293.0906
A31: Merseyside | B31: 201825.4906 | C31: 137838.7832 | D31: 176896.5868 | E31: 107443.8642
A32: Norfolk | B32: 48332.35803 | C32: 28528.83793 | D32: 93153.96246 | E32: 7063.146792
A33: Northamptonshire | B33: 28989.54612 | C33: 91878.78527 | D33: 90632.51214 | E33: 23809.15838
A34: Northumberland | B34: 22559.07248 | C34: 1265.502677 | D34: 23206.82968 | E34: 642.735
A35: North Yorkshire | B35: 199920.7944 | C35: 65443.44643 | D35: 122501.0596 | E35: 17343.68022
A36: Nottinghamshire | B36: 54673.53207 | C36: 99766.85242 | D36: 120519.044 | E36: 25388.3389
A37: Oxfordshire | B37: 212892.54 | C37: 162351.6509 | D37: 168496.1049 | E37: 53269.234
A38: Shropshire | B38: 38630.66872 | C38: 16641.64343 | D38: 57193.40771 | E38: 2962.407901
A39: Somerset | B39: 269832.752 | C39: 36390.10114 | D39: 168015.5991 | E39: 21887.36549
A40: South Yorkshire | B40: 33047.18511 | C40: 94480.44216 | D40: 107847.1542 | E40: 20511.86624
A41: Staffordshire | B41: 42720.88904 | C41: 57209.73403 | D41: 76415.33643 | E41: 8703.761567
A42: Surrey | B42: 121420.7541 | C42: 100327.736 | D42: 273048.791 | E42: 23386.45598
A43: Suffolk | B43: 72505.51637 | C43: 59215.77909 | D43: 87209.09472 | E43: 11622.36952
A44: Tees Valley | B44: 10307.28273 | C44: 8338.632435 | D44: 35169.04302 | E44: 1284.570324
A45: Tyne & Wear | B45: 74892.79832 | C45: 72098.52917 | D45: 92751.00797 | E45: 12389.8791
A46: Warwickshire | B46: 94156.19639 | C46: 73850.99031 | D46: 78237.11751 | E46: 17510.81998
A47: West Midlands | B47: 211388.9652 | C47: 553624.7325 | D47: 353885.0683 | E47: 83316.31826
A48: West Sussex | B48: 121433.2298 | C48: 93775.78934 | D48: 152240.4435 | E48: 125059.772
A49: West Yorkshire | B49: 80850.65921 | C49: 164479.0142 | D49: 188354.4529 | E49: 32117.99965
A50: Wiltshire | B50: 114484.8097 | C50: 44249.10244 | D50: 83553.42421 | E50: 6450.656285
A51: England unspecified | B51: 327.1296504
A52: Argyle | B52: 103146.5201 | C52: 1765.32197 | D52: 23126.78638 | E52: 464.448901
A53: Borders | B53: 25284.51294 | C53: 1495.814563 | D53: 15783.67598
A54: Central | B54: 84565.79417 | C54: 1977.78431 | D54: 40405.77891 | E54: 1507.351444
A55: Dumfries & Galloway | B55: 19169.49008 | C55: 7238.996442 | D55: 13373.3665 | E55: 272.484
A56: Fife | B56: 74493.5046 | C56: 13111.51076 | D56: 59010.9101 | E56: 2406.557461
A57: Grampian | B57: 119195.8399 | C57: 133712.2793 | D57: 56967.29482 | E57: 7790.500666
A58: Greater Glasgow | B58: 285006.1507 | C58: 91996.46748 | D58: 209112.407 | E58: 26482.04268
A59: Highlands | B59: 346384.1809 | C59: 8724.54847 | D59: 51123.02125 | E59: 3234.110357
A60: Islands | B60: 148525.3094 | C60: 5857.148719 | D60: 13153.9623 | E60: 580.228
A61: Lothian | B61: 855653.7727 | C61: 142050.8239 | D61: 300795.4184 | E61: 56526.97893
A62: Strathclyde | B62: 51353.81676 | C62: 3289.79293 | D62: 31184.85389 | E62: 855.9986938
A63: Tayside | B63: 136810.2539 | C63: 23864.20184 | D63: 75159.05152 | E63: 2151.519434
A64: Scotland unspecified | B64: 12335.2122 | C64: 1812.639391 | D64: 1058.654212 | E64: 1683.568973
A65: Aberconwy/Colwyn | B65: 32020.40708 | C65: 1510.706937 | D65: 15345.45311 | E65: 2144.910684
A66: Anglesey | B66: 15255.28989 | C66: 8293.33384 | D66: 14784.39417 | E66: 1324.399314
A67: Blaenau Gwent | B67: 1141.18717 | C67: 424.7817838 | D67: 1512.864
A68: Bridgend | B68: 7294.407174 | C68: 2999.130879 | D68: 13564.02408 | E68: 349.679608
A69: Caernarfonshire/Meirionnydd | B69: 34458.93864 | C69: 4487.3784 | D69: 25477.42928 | E69: 2661.311397
A70: Caerphilly | B70: 3299.979224 | C70: 2734.236 | D70: 5210.526791
A71: Cardiff | B71: 128888.5332 | C71: 71446.82141 | D71: 73945.34364 | E71: 24077.69277
A72: Cardiganshire | B72: 15197.73948 | C72: 1673.292653 | D72: 7139.516451 | E72: 1584.528642
A73: Carmarthenshire | B73: 17490.61677 | C73: 12451.94752 | D73: 7726.521016 | E73: 1028.809308
A74: Denbighshire | B74: 14192.21133 | D74: 10591.00495 | E74: 3695.684842
A75: Flintshire | B75: 3931.271056 | C75: 2637.232874 | D75: 9234.559638
A76: Merthyr Tydfil | B76: 3058.901622 | C76: 1308.041726 | D76: 1808.981338 | E76: 327.8390456
A77: Monmouthshire | B77: 17364.4868 | C77: 1720.498069 | D77: 14893.02795
A78: Neath/Port Talbot | B78: 1211.031369 | D78: 5511.668967 | E78: 311.8756524
A79: Newport | B79: 11633.88412 | C79: 21140.7407 | D79: 16543.60252 | E79: 2947.361828
A80: Pembrokeshire | B80: 55289.76755 | C80: 6237.856247 | D80: 12172.53634 | E80: 6239.440303
A81: Powys | B81: 18044.5941 | C81: 3028.260032 | D81: 16210.16515 | E81: 584.7555855
A82: Rhondda | B82: 1981.319681 | C82: 464.624995 | D82: 3002.715235
A83: Swansea | B83: 30044.56471 | C83: 12454.48687 | D83: 35868.55632 | E83: 3315.206254
A84: Torfaen | C84: 1355.412 | D84: 1530.884593 | E84: 300.126
A85: Vale of Glamorgan | B85: 2234.736195 | C85: 1733.232339 | D85: 5021.397446
A86: Wrexham | B86: 2378.942956 | C86: 8362.951907 | D86: 17804.12176 | E86: 2057.953475
A87: Wales unspecified | B87: 9976.924739 | C87: 1458.619537 | D87: 892.7806484
A88: Northern Ireland | B88: 102636.6301 | C88: 69778.66798 | D88: 145786.1173 | E88: 47443.87057
A89: Nights spent Travelling | B89: 19570.72379 | C89: 58832.08549 | D89: 3058.705349 | E89: 29544.89156
A90: Isle Of Man | B90: 3995.133498 | C90: 966.0766383 | D90: 6692.499752 | E90: 831.756
A91: Channel Islands | B91: 2171.554362 | D91: 3564.26268 | E91: 893.287
A92: UK area unknown | B92: 26581.13934 | C92: 5371.009034 | D92: 11683.41425 | E92: 642.735

Sheet Quarter
A2: 2013: Visits to and spending in UK; by residence, quarter, and purpose of visit
A3: Nationality | B3: January - March | D3: April - June | F3: July - September | H3: October - December
B4: Visits | C4: Spending | D4: Visits | E4: Spending | F4: Visits | G4: Spending | H4: Visits | I4: Spending | L4: Jan-Mar | M4: Apr-Jun | N4: Jul-Sep | O4: Oct-Dec
A5: North America | K5: Holiday | L5: 152686.2138 | M5: 270210.9634 | N5: 291482.6139 | O5: 1934933.107
A6: Holiday | B6: 14492.8183 | C6: 114203465.9 | D6: 44457.7256 | E6: 350402405.8 | F6: 60339.1392 | G6: 553832425.4 | H6: 209877.476 | I6: 181459184.9 | K6: Business | L6: 149907.6214 | M6: 165765.8582 | N6: 144108.5674 | O6: 1718076.216
A7: Business | B7: 19083.0286 | C7: 220724428.7 | D7: 22260.0958 | E7: 315140177.1 | F7: 19510.5543 | G7: 248208557.8 | H7: 204123.252 | I7: 232810766 | K7: Personal | L7: 144164.6441 | M7: 166419.017 | N7: 173068.679 | O7: 1853579.799
A8: Personal | B8: 16894.6583 | C8: 79447275.3 | D8: 25069.0426 | E8: 157691522.9 | F8: 33765.035 | G8: 212059359.5 | H8: 225515.225 | I8: 123314835.5 | K8: Miscellaneous | L8: 39080.937 | M8: 51475.1931 | N8: 55265.8194 | O8: 551644.937
A9: Miscellaneous | B9: 6648.3471 | C9: 49438573.77 | D9: 9096.2061 | E9: 49046335.88 | F9: 11368.3363 | G9: 80823902.97 | H9: 64996.12 | I9: 104348143
A10: All visits | B10: 57118.8523 | C10: 464694178.1 | D10: 100883.0701 | E10: 875253744.1 | F10: 124983.0648 | G10: 1097338967 | H10: 704512.073 | I10: 643423245.1
A11: Europe
A12: Purpose | B12: Q1 | C12: 1 | D12: Q2 | E12: 2 | F12: Q3 | G12: 3 | H12: Q4 | I12: 4
A13: Holiday | B13: 152686.2138 | C13: 691446794.1 | D13: 270210.9634 | E13: 1249124341 | F13: 291482.6139 | G13: 1669687314 | H13: 1934933.107 | I13: 879074324.8
A14: Business | B14: 149907.6214 | C14: 569065676.1 | D14: 165765.8582 | E14: 621170150.2 | F14: 144108.5674 | G14: 600477842 | H14: 1718076.216 | I14: 821122739.1
A15: Personal | B15: 144164.6441 | C15: 460007688.2 | D15: 166419.017 | E15: 489123345.1 | F15: 173068.679 | G15: 644390073.3 | H15: 1853579.799 | I15: 570343344.9
A16: Miscellaneous | B16: 39080.937 | C16: 248939888.2 | D16: 51475.1931 | E16: 354419373.1 | F16: 55265.8194 | G16: 509029087.2 | H16: 551644.937 | I16: 482465953.5
A17: All visits | B17: 485839.4163 | C17: 1971691262 | D17: 653871.0317 | E17: 2717870982 | F17: 663925.6797 | G17: 3455618542 | H17: 6058234.059 | I17: 2756951704
A18: Other Countries
A19: Holiday | B19: 33045.6686 | C19: 449549425.4 | D19: 60231.679 | E19: 639010762.2 | F19: 92000.2631 | G19: 1092687895 | H19: 391927.723 | I19: 577760688.5
A20: Business | B20: 16701.2026 | C20: 261171661.5 | D20: 23834.4499 | E20: 399161706.3 | F20: 20899.1022 | G20: 409012295.5 | H20: 202427.358 | I20: 316128044
A21: Personal | B21: 30912.7164 | C21: 293406944.1 | D21: 37862.6905 | E21: 438988443.9 | F21: 59660.7717 | G21: 646574399.2 | H21: 369502.169 | I21: 408833140.4
A22: Miscellaneous | B22: 9672.2427 | C22: 147993726.8 | D22: 10219.7922 | E22: 219327776.7 | F22: 16677.9051 | G22: 486788266.1 | H22: 103238.618 | I22: 229860511.5
A23: All visits | B23: 90331.8303 | C23: 1154606295 | D23: 132148.6116 | E23: 1701370613 | F23: 189238.0421 | G23: 2637449235 | H23: 1067095.868 | I23: 1535958511

Sheet Visit Length (hidden)
A2: Visits to and spending in UK: by length of stay and country of residence 2013
A3: Nationality | B3: Time
B4: 0 | D4: 1-3 nights | F4: 4-13 nights | H4: 14-27 nights | J4: 28-90 nights | L4: 3-6 months | N4: 6-12 months
B5: Visits | C5: Spending | D5: Visits | E5: Spending | F5: Visits | G5: Spending | H5: Visits | I5: Spending | J5: Visits | K5: Spending | L5: Visits | M5: Spending | N5: Visits | O5: Spending
A6: Canada | B6: 3848.268 | C6: 2614675.951 | D6: 190928.383 | E6: 70839625.26 | F6: 382753.724 | G6: 273178402.8 | H6: 124345.563 | I6: 123061622.3 | J6: 38272.947 | K6: 45962525.54 | L6: 1882.041 | M6: 8982714.184 | N6: 1826.719 | O6: 8368818.835
A7: USA | B7: 31976.12 | C7: 8731376.415 | D7: 936273.622 | E7: 456512073.8 | F7: 1435515.765 | G7: 1464045645 | H7: 291328.181 | I7: 395695299 | J7: 80648.856 | K7: 154727657.4 | L7: 12997.731 | M7: 60798121.36 | N7: 1764.025 | O7: 7191576.45
A8: Austria | B8: 6606.846 | C8: 1052612.938 | D8: 110456.754 | E8: 41748732.66 | F8: 136744.936 | G8: 75652195.59 | H8: 19566.073 | I8: 20241611.84 | J8: 1754.619 | K8: 2993908.335
A9: Belgium | B9: 166193.495 | C9: 13282341.08 | D9: 726761.556 | E9: 220785056.9 | F9: 270090.125 | G9: 135545302.9 | H9: 17470.773 | I9: 9104194.623 | J9: 6972.92 | K9: 6857915.118 | L9: 833.131 | M9: 249939.3
A10: Bulgaria | B10: 3522.893 | C10: 97452.435 | D10: 67549.083 | E10: 15809755.89 | F10: 39734.745 | G10: 21005581.37 | H10: 7937.946 | I10: 5103749.97 | J10: 6576.156 | K10: 4556106.87 | L10: 680.884 | M10: 3599152.824 | N10: 461.714 | O10: 191611.31
A11: Czech Republic | B11: 5660.328 | C11: 657571.6 | D11: 136549.863 | E11: 25080285.34 | F11: 170250.878 | G11: 61363836.76 | H11: 23475.677 | I11: 11193235.52 | J11: 18196.624 | K11: 12441833.34 | L11: 3685.3 | M11: 6668834.053 | N11: 661.626 | O11: 4869567.36
A12: Cyprus | D12: 21449.268 | E12: 10301964.66 | F12: 72269.306 | G12: 68456549.19 | H12: 22744.203 | I12: 19402042.62 | J12: 5441.627 | K12: 6889599.205 | L12: 367.259 | M12: 187302.09 | N12: 1005.722 | O12: 17443242.37
A13: Denmark | B13: 36456.452 | C13: 2933596.868 | D13: 325735.24 | E13: 145659629.8 | F13: 315682.974 | G13: 228570469.2 | H13: 19412.384 | I13: 44876729.57 | J13: 4217.604 | K13: 10694649.88 | L13: 1233.728 | M13: 7145752.576
A14: Finland | B14: 5011.279 | C14: 1085750.941 | D14: 78760.228 | E14: 36390276.33 | F14: 113910.961 | G14: 66158374.59 | H14: 13464.141 | I14: 11576661.15 | J14: 3653.535 | K14: 4432129.737 | N14: 349.681 | O14: 131829.737
A15: France | B15: 483104.682 | C15: 32834923.44 | D15: 1808908.509 | E15: 501984844 | F15: 1399136.053 | G15: 586808890.7 | H15: 168668.593 | I15: 105864128.2 | J15: 60745.447 | K15: 88691844.07 | L15: 9832.654 | M15: 33378917.36
A16: Germany | B16: 191200.317 | C16: 20635291.13 | D16: 1313356.596 | E16: 403625729 | F16: 1364805.856 | G16: 667158222.9 | H16: 240736.055 | I16: 177358515.4 | J16: 39345.749 | K16: 73434363.13 | L16: 10852.337 | M16: 53489181.57 | N16: 1683.245 | O16: 12305435.67
A17: Greece | B17: 1034.634 | C17: 457155.213 | D17: 48236.166 | E17: 23375977.23 | F17: 103424.369 | G17: 73901084.99 | H17: 16802.421 | I17: 19231131.94 | J17: 7193.035 | K17: 22291193.86 | L17: 1047.531 | M17: 7336869.885
A18: Hungary | B18: 5586.058 | C18: 254779.157 | D18: 155400.369 | E18: 16181267.43 | F18: 99843.071 | G18: 29013658.79 | H18: 11734.17 | I18: 4880127.689 | J18: 4422.895 | K18: 3243545.603 | L18: 2710.447 | M18: 17067272.37 | N18: 857.854 | O18: 4838296.56
A19: Irish Republic | B19: 244528.553 | C19: 57602627.54 | D19: 1335301.053 | E19: 405143128.9 | F19: 718812.876 | G19: 288989511.8 | H19: 73783.843 | I19: 39937313.38 | J19: 16435.621 | K19: 13870325.28 | L19: 5651.363 | M19: 12000260.7
A20: Italy | B20: 41327.019 | C20: 5235858.573 | D20: 646000.617 | E20: 208595327.3 | F20: 823142.906 | G20: 407364981.7 | H20: 104327.655 | I20: 87982393.31 | J20: 42970.102 | K20: 74345677.24 | L20: 7363.345 | M20: 38819059.82 | N20: 676.158 | O20: 8034785.514
A21: Lithuania | B21: 2062.508 | C21: 194214.709 | D21: 84898.633 | E21: 14287109.43 | F21: 96354.826 | G21: 27417886.06 | H21: 13921.282 | I21: 3727595.12 | J21: 6866.223 | K21: 11865309.78 | L21: 108.939 | M21: 621714.873 | N21: 733.285 | O21: 8020671.33
A22: Luxembourg | B22: 6815.516 | C22: 404200.672 | D22: 52088.865 | E22: 26144950.09 | F22: 29904.495 | G22: 15111895.96 | H22: 2404.711 | I22: 1421037.925 | J22: 606.725 | K22: 919188.375
A23: Malta | B23: 1255.218 | C23: 542930.621 | D23: 24843.137 | E23: 9211856.296 | F23: 48226.097 | G23: 29530021.08 | H23: 6601.469 | I23: 3095583.099 | J23: 2505.128 | K23: 5437716.72 | L23: 1009.42 | M23: 5062241.3
A24: Netherlands | B24: 173966.791 | C24: 15758786.8 | D24: 991791.319 | E24: 294874528.7 | F24: 618741.932 | G24: 288152069.7 | H24: 120073.084 | I24: 88284211.2 | J24: 16002.986 | K24: 28517232.11 | L24: 1365.438 | M24: 4856801.97
A25: Norway | B25: 28204.922 | C25: 4721951.959 | D25: 449916.499 | E25: 265654839.4 | F25: 339811.935 | G25: 241605888.8 | H25: 26555.08 | I25: 16405767.75 | J25: 3849.823 | K25: 5381433.599 | L25: 1876.418 | M25: 3090653.87
A26: Poland | B26: 35076.988 | C26: 4297064.584 | D26: 607256.394 | E26: 85766108.63 | F26: 477979.222 | G26: 147335338 | H26: 159632.405 | I26: 66732813.33 | J26: 65729.665 | K26: 73939920.31 | L26: 7373.42 | M26: 32578659.67 | N26: 3960.281 | O26: 38697770.85
A27: Portugal | B27: 9862.025 | C27: 681816.997 | D27: 111363.068 | E27: 29468039.98 | F27: 128331.778 | G27: 54960014.07 | H27: 26953.845 | I27: 17472969.82 | J27: 7704.891 | K27: 8013817.785 | L27: 1456.957 | M27: 4348136.84
A28: Romania | B28: 17193.27 | C28: 530960.524 | D28: 194775.804 | E28: 24987752.91 | F28: 112713.37 | G28: 64042765.05 | H28: 25532.189 | I28: 19504644.47 | J28: 30026.642 | K28: 24614880.08 | L28: 4778.27 | M28: 19317750.25 | N28: 680.884 | O28: 5662912.228
A29: Russia | B29: 1591.323 | C29: 474085.585 | D29: 61160.975 | E29: 50386825.19 | F29: 104779 | G29: 125922398.3 | H29: 36024.854 | I29: 55767191.17 | J29: 8982.687 | K29: 22609971.64 | L29: 1241.116 | M29: 2352344.74
A30: Slovakia | B30: 4010.177 | C30: 74297.614 | D30: 77965.756 | E30: 10136976.12 | F30: 50287.268 | G30: 15846840.49 | H30: 6079.252 | I30: 1411522.68 | J30: 8496.537 | K30: 7525394.266 | L30: 879.931 | M30: 527958.6
A31: Spain | B31: 28498.848 | C31: 2469037.828 | D31: 628492.488 | E31: 251832984.8 | F31: 810145.418 | G31: 351529242.5 | H31: 136738.269 | I31: 103791721.6 | J31: 88033.76 | K31: 154251288.1 | L31: 10907.514 | M31: 33137266.58 | N31: 1659.307 | O31: 8206473.805
A32: Sweden | B32: 21833.21 | C32: 3868425.119 | D32: 412567.788 | E32: 197508548.9 | F32: 324082.779 | G32: 194538912.6 | H32: 15606.917 | I32: 10273989.03 | J32: 17804.399 | K32: 31966829.04 | L32: 1234.015 | M32: 7100589.545 | N32: 1166.01 | O32: 1883106.15
A33: Switzerland | B33: 40077.772 | C33: 4283674.106 | D33: 423934.937 | E33: 198109655.6 | F33: 292155.975 | G33: 224779092.4 | H33: 47693.588 | I33: 45632721.68 | J33: 10214.191 | K33: 14523488.66 | L33: 1692.336 | M33: 16170168.04
A34: Turkey | B34: 665.475 | C34: 68502.06 | D34: 44506.034 | E34: 25082204.57 | F34: 79642.017 | G34: 72076695.32 | H34: 19992.076 | I34: 20581861.04 | J34: 7565.408 | K34: 11289006.9 | L34: 1815.477 | M34: 11801480.87
A35: Rest of Europe | B35: 6126.407 | C35: 1204424.627 | D35: 196743.624 | E35: 59480207.55 | F35: 207222.635 | G35: 138118606.7 | H35: 41498.351 | I35: 46948186.85 | J35: 21921.273 | K35: 50237875.02 | L35: 5816.204 | M35: 26413270.47 | N35: 2747.125 | O35: 31408987.78
A36: Europe | B36: 1567473.006 | C36: 175794652.2 | D36: 11136770.62 | E36: 3597614564 | F36: 9348227.803 | G36: 4700956328 | H36: 1425431.306 | I36: 1057803652 | J36: 514236.272 | K36: 775836444.1 | L36: 85813.434 | M36: 347321580.2 | N36: 16642.892 | O36: 141694690.7
A37: Egypt | D37: 7618.034 | E37: 7318054.244 | F37: 29760.024 | G37: 48794516.18 | H37: 5964.319 | I37: 9749142.568 | J37: 4317.508 | K37: 13543284.02
A38: Morocco | D38: 5035.951 | E38: 4008840.223 | F38: 14908.878 | G38: 17620645.24 | H38: 3048.877 | I38: 3825749.172 | J38: 3367.811 | K38: 18188608.27
A39: Tunisia | D39: 2360.826 | E39: 527392.579 | F39: 3929.125 | G39: 5156661.777 | H39: 1473.104 | I39: 4783563.25 | J39: 734.235 | K39: 2053096.981
A40: Other North Africa | D40: 5312.227 | E40: 4040135.285 | F40: 10883.836 | G40: 14791953.77 | H40: 7875.448 | I40: 9834292.889 | J40: 3182.884 | K40: 814714.675 | L40: 958.512 | M40: 5191300.992 | N40: 457.4 | O40: 578611
A41: South Africa | B41: 2735.276 | C41: 2731261.402 | D41: 44077.606 | E41: 26743017.86 | F41: 105961.776 | G41: 117494322.1 | H41: 50685.302 | I41: 45796041.37 | J41: 20313.537 | K41: 27805644.66 | L41: 2073.536 | M41: 870332.04 | N41: 318.585 | O41: 148142.025
A42: Nigeria | B42: 1007.737 | C42: 2086116.296 | D42: 29313.511 | E42: 29608446.06 | F42: 75173.853 | G42: 129092267.1 | H42: 37107.224 | I42: 84874336.07 | J42: 10406.707 | K42: 23045143.64 | L42: 1136.597 | M42: 3985482.579
A43: Other Africa | B43: 983.216 | C43: 2129196.822 | D43: 25181.01 | E43: 11506368.01 | F43: 65818.041 | G43: 78609456.05 | H43: 32651.561 | I43: 44949690.44 | J43: 17848.717 | K43: 14695852.55 | L43: 2723.542 | M43: 12774741.64
A44: Israel | B44: 1182.36 | C44: 742609.328 | D44: 49139.767 | E44: 24313439.32 | F44: 99182.397 | G44: 64307304.11 | H44: 6632.526 | I44: 3088619.152 | J44: 2097.146 | K44: 1942634.036
A45: United Arab Emirates | B45: 1921.296 | C45: 528433.096 | D45: 43868.346 | E45: 38925453.64 | F45: 138483.957 | G45: 243647839.3 | H45: 52150.893 | I45: 139866123.1 | J45: 24001.606 | K45: 91877675.8 | L45: 1672.006 | M45: 11053305.31 | N45: 214.471 | O45: 718048.908
A46: Other Middle East | B46: 424.615 | C46: 1359501.76 | D46: 59505.059 | E46: 61544024.96 | F46: 185927.426 | G46: 446986311.1 | H46: 77816.635 | I46: 301319099.8 | J46: 44180.226 | K46: 181726084.2 | L46: 9402.161 | M46: 118378252.6 | N46: 1283.708 | O46: 17634823.62
A47: Hong Kong (China) | D47: 40654.592 | E47: 33771205.99 | F47: 80192.639 | G47: 130722733.5 | H47: 28006.033 | I47: 56829755 | J47: 13825.572 | K47: 26368890.19 | L47: 635.626 | M47: 1180421.522
A48: Other China | D48: 44188.347 | E48: 42225389.13 | F48: 118624.644 | G48: 182926745.8 | H48: 40265.574 | I48: 91160939.62 | J48: 18466.503 | K48: 63067142.01 | L48: 4598.81 | M48: 31819246.08 | N48: 6527.473 | O48: 123763479.5
A49: India | B49: 1144.347 | C49: 375107.957 | D49: 106811.706 | E49: 39957151.24 | F49: 140917.17 | G49: 109566624.8 | H49: 52571.209 | I49: 61474056.21 | J49: 45187.959 | K49: 69500751.17 | L49: 18464.444 | M49: 36940279.81 | N49: 10153.066 | O49: 122888311.3
A50: Japan | B50: 3292.522 | C50: 467729.929 | D50: 76500.572 | E50: 33791081.26 | F50: 106573.113 | G50: 100515580.1 | H50: 16337.844 | I50: 21317974.86 | J50: 15621.241 | K50: 29253325.61 | L50: 2071.444 | M50: 19950081.68 | N50: 308.777 | O50: 3053804.53
A51: Pakistan | D51: 5518.769 | E51: 2880367.537 | F51: 23328.055 | G51: 36856671.91 | H51: 17450.024 | I51: 42263146.52 | J51: 13631.69 | K51: 23119124.09 | L51: 2734.285 | M51: 7127260.367 | N51: 304.816 | O51: 2811317.968
A52: Sri Lanka | D52: 2361.747 | E52: 1298250.355 | F52: 9249.363 | G52: 6293790.838 | H52: 8227.605 | I52: 6645801.658 | J52: 3698.492 | K52: 3377920.91 | L52: 891.066 | M52: 45464.415
A53: Thailand | B53: 733.996 | C53: 389823.57 | D53: 8638.412 | E53: 6378795.18 | F53: 43271.637 | G53: 74012084.13 | H53: 15497.176 | I53: 17030516.24 | J53: 5335.097 | K53: 7022077.755 | L53: 708.431 | M53: 766892.065 | N53: 366.998 | O53: 11382442.97
A54: Other Asia | B54: 8815.194 | C54: 12099135.84 | D54: 204913.648 | E54: 90644554.91 | F54: 293274.772 | G54: 399532313.2 | H54: 84350.34 | I54: 137892843.4 | J54: 30733.483 | K54: 44112196.32 | L54: 11538.463 | M54: 103444712.8 | N54: 3236.23 | O54: 28431076.66
A55: Australia | B55: 4686.5 | C55: 3555596.041 | D55: 221813.604 | E55: 75902744.94 | F55: 456926.449 | G55: 430049156.9 | H55: 243452.854 | I55: 341750750.1 | J55: 137477.46 | K55: 289355267.7 | L55: 3909.222 | M55: 16841108.33 | N55: 1696.102 | O55: 36334043.53
A56: New Zealand | B56: 1237.235 | C56: 98826.172 | D56: 39785.807 | E56: 16240521.54 | F56: 65094.152 | G56: 46725824.27 | H56: 40529.192 | I56: 43473546.91 | J56: 18577.303 | K56: 25801429.03 | N56: 832.786 | O56: 3746435.29
A57: Barbados | D57: 3020.02 | E57: 303147.135 | F57: 616.856 | G57: 194309.64 | H57: 2386.018 | I57: 2353006.41 | J57: 3837.564 | K57: 3888299.96 | N57: 271.782 | O57: 139967.73
A58: Jamaica | F58: 2097.594 | G58: 1868863.562 | H58: 1451.546 | I58: 312082.39 | J58: 5111.087 | K58: 2523248.905 | L58: 1138.811 | M58: 586487.665
A59: Other Caribbean | B59: 384.132 | C59: 168964.276 | D59: 19304.985 | E59: 13974588.18 | F59: 25407.321 | G59: 22398594.13 | H59: 14685.922 | I59: 17605143.51 | J59: 8273.429 | K59: 11019632.89 | L59: 1034.571 | M59: 739718.265
A60: Brazil | B60: 5474.809 | C60: 692744.338 | D60: 74579.523 | E60: 34610886.23 | F60: 143221.074 | G60: 146074345.3 | H60: 18606.114 | I60: 43765876.89 | J60: 12560.814 | K60: 38760411.65 | L60: 2744.915 | M60: 12941494.98
A61: Mexico | B61: 1960.549 | C61: 294734.056 | D61: 51742.224 | E61: 14553410.4 | F61: 41600.276 | G61: 31927378.22 | H61: 9650.747 | I61: 11248160.3 | J61: 2756.861 | K61: 2666014.875 | L61: 475.713 | M61: 863419.095
A62: Other Central & Sth. America | B62: 4469.194 | C62: 700056.739 | D62: 101559.971 | E62: 37718572.36 | F62: 118123.583 | G62: 94500626.12 | H62: 19224.345 | I62: 21934693.84 | J62: 11032.382 | K62: 29734352.6 | L62: 1552.658 | M62: 9966111.81
A63: Rest of the World | D63: 2293.987 | E63: 773358.355 | F63: 6945.067 | G63: 4091688.965 | H63: 830.085 | I63: 2725570.775 | J63: 1291.563 | K63: 2091227.979

Sheet (Air)ports (hidden)
A2: Visits to the UK: by UK port or airport and country of residence 2013
A3: Nationality | B3: Airports | I3: Sea and Channel Tunnel
B4: Heathrow | C4: Gatwick | D4: Manchester | E4: Stansted | F4: Other | I4: Dover seaports | J4: Other channel ports | K4: East coast ports | L4: Long haul sea routes | M4: Irish Sea & land routes | N4: Channel Tunnel
F5: England | G5: Scotland | H5: Wales
A6: Canada | B6: 372872.701 | C6: 120969.159 | D6: 41683.73 | E6: 8169.419 | F6: 46778.625 | G6: 55883.779 | H6: 704.227 | I6: 15427.535 | J6: 530.805 | K6: 3051.781 | L6: 658.711 | M6: 15660.597 | N6: 61466.576
A7: USA | B7: 1811273.389 | C7: 137904.929 | D7: 135603.02 | E7: 48586.582 | F7: 129761.892 | G7: 177111.462 | H7: 6975.076 | I7: 41144.977 | J7: 11228.268 | K7: 7193.98 | L7: 7646.128 | M7: 32454.055 | N7: 243620.542
A8: Austria | B8: 105719.602 | C8: 32359.303 | D8: 16177.187 | E8: 50245.36 | F8: 21990.472 | G8: 34633.074 | I8: 7532.637 | K8: 2224.087 | N8: 4247.506
A9: Belgium | B9: 50746.282 | C9: 1851.618 | D9: 35286.527 | E9: 11302.376 | F9: 52466.636 | G9: 32239.354 | H9: 458.813 | I9: 235924.645 | J9: 702.139 | K9: 19762.886 | L9: 397.069 | M9: 1705.421 | N9: 745478.234
A10: Bulgaria | B10: 26910.212 | C10: 4137.336 | D10: 3648.116 | E10: 3047.526 | F10: 33093.362 | I10: 43103.894 | K10: 182.205 | N10: 12340.77
A11: Czech Republic | B11: 39224.811 | C11: 21467.601 | D11: 12349.717 | E11: 55654.929 | F11: 60041.842 | G11: 13411.481 | I11: 91485.011 | K11: 160.103 | L11: 201.38 | N11: 64483.421
A12: Cyprus | B12: 38111.255 | C12: 29255.614 | D12: 16801.852 | E12: 16718.047 | F12: 15814.3 | G12: 1569.945 | H12: 862.648 | I12: 1119.731 | J12: 569.142 | N12: 2454.851
A13: Denmark | B13: 125449.502 | C13: 192242.725 | D13: 58834.953 | E13: 159539.862 | F13: 46778.878 | G13: 47649.741 | H13: 456.358 | I13: 21994.35 | K13: 41324.786 | M13: 3640.48 | N13: 4826.747
A14: Finland | B14: 96488.766 | C14: 62435.937 | D14: 21136.391 | E14: 14229.582 | F14: 5512.588 | G14: 9411.29 | I14: 2239.462 | K14: 960.859 | N14: 2734.95
A15: France | B15: 268428.179 | C15: 260612.772 | D15: 76307.786 | E15: 239275.027 | F15: 444019.204 | G15: 130013.871 | H15: 6759.847 | I15: 459674.191 | J15: 307984.794 | K15: 7493.578 | L15: 556.38 | M15: 3734.078 | N15: 1725536.231
A16: Germany | B16: 684504.782 | C16: 214759.554 | D16: 189600.904 | E16: 422433.723 | F16: 457362.729 | G16: 208832.3 | H16: 10072.098 | I16: 614541.434 | J16: 1257.559 | K16: 117394.607 | L16: 381.18 | M16: 16062.008 | N16: 224777.277
A17: Greece | B17: 96939.577 | C17: 23016.123 | D17: 10812.875 | E17: 9832.966 | F17: 11596.995 | G17: 16462.604 | I17: 5361.869 | J17: 533.421 | K17: 144.378 | N17: 3037.348
A18: Hungary | B18: 17584.611 | C18: 6274.394 | D18: 7566.82 | E18: 50824.996 | F18: 47721.727 | G18: 460.292 | I18: 109842.19 | K18: 1345.21 | N18: 38934.624
A19: Irish Republic | B19: 223736.276 | C19: 252942.781 | D19: 155534.249 | E19: 282286.732 | F19: 733257.656 | G19: 99207.586 | H19: 18385.538 | I19: 26568.328 | J19: 1691.961 | K19: 97.267 | L19: 332.21 | M19: 579737.448 | N19: 20735.277
A20: Italy | B20: 331321.512 | C20: 351063.177 | D20: 49208.551 | E20: 580403.103 | F20: 200690.365 | G20: 75003.278 | H20: 380.435 | I20: 51391.111 | K20: 1603.327 | M20: 877.584 | N20: 23865.359
A21: Lithuania | B21: 4311.494 | C21: 8827.267 | D21: 455.664 | E21: 43744.399 | F21: 60098.209 | G21: 734.865 | I21: 65130.022 | K21: 1971.071 | N21: 19672.705
A22: Luxembourg | B22: 6551.822 | C22: 6173.153 | D22: 966.228 | E22: 2049.801 | F22: 44603.056 | G22: 1608.152 | I22: 13191.772 | K22: 2266.661 | N22: 14409.667
A23: Malta | B23: 25180.776 | C23: 19372.516 | D23: 8418.801 | E23: 4323.047 | F23: 24619.749 | G23: 669.263 | H23: 449.912 | I23: 1250.957 | L23: 155.448
A24: Netherlands | B24: 216567.468 | C24: 107750.247 | D24: 61216.514 | E24: 151422.74 | F24: 412944.956 | G24: 109662.875 | H24: 7578.345 | I24: 308495.302 | J24: 1848.918 | K24: 205735.62 | M24: 5613.999 | N24: 333104.566
A25: Norway | B25: 215609.632 | C25: 228746.323 | D25: 77395.29 | E25: 156734.094 | F25: 52150.536 | G25: 109984.535 | I25: 2196.705 | K25: 1974.324 | M25: 906.009 | N25: 4517.229
A26: Poland | B26: 55992.063 | C26: 3137.149 | D26: 23876.004 | E26: 277482.403 | F26: 372789.246 | G26: 52340.76 | I26: 417565.695 | K26: 827.473 | M26: 1172.295 | N26: 151825.287
A27: Portugal | B27: 75142.33 | C27: 63655.088 | D27: 9830.092 | E27: 37398.138 | F27: 60561.131 | G27: 3676.483 | I27: 27474.587 | J27: 353.381 | K27: 779.52 | N27: 6801.814
A28: Romania | B28: 42229.434 | C28: 2555.794 | D28: 3283.99 | E28: 3885.462 | F28: 112934.8 | G28: 9407.528 | I28: 168133.855 | K28: 107.618 | M28: 943.532 | N28: 42218.416
A29: Russia | B29: 147383.234 | C29: 26769.563 | D29: 8021.962 | E29: 3154.48 | F29: 3851.879 | G29: 13619.686 | I29: 7250.527 | K29: 217.878 | N29: 3510.746
A30: Slovakia | B30: 5023.277 | C30: 2330.644 | D30: 1641.696 | E30: 34200.641 | F30: 33161.902 | G30: 745.292 | I30: 38430.823 | K30: 564.618 | N30: 31620.028
A31: Spain | B31: 203073.318 | C31: 430839.425 | D31: 87806.331 | E31: 389771.792 | F31: 393617.181 | G31: 61920.206 | H31: 6473.346 | I31: 70890.723 | J31: 6889.903 | K31: 97.048 | L31: 153.924 | M31: 1612.113 | N31: 51330.294
A32: Sweden | B32: 259614.264 | C32: 183204.974 | D32: 59861.981 | E32: 202755.907 | F32: 38936.199 | G32: 29736.54 | H32: 1150.941 | I32: 6798 | J32: 232.074 | K32: 5482.696 | L32: 50.581 | M32: 3624.036 | N32: 2846.925
A33: Switzerland | B33: 227373.954 | C33: 182519.065 | D33: 47723.264 | E33: 8563.512 | F33: 269913.746 | G33: 31788.931 | H33: 1221.675 | I33: 20239.086 | J33: 530.805 | K33: 3510.229 | L33: 341.719 | N33: 22042.813
A34: Turkey | B34: 65643.204 | C34: 24123.763 | D34: 5540.688 | E34: 11761.276 | F34: 10235.167 | G34: 22113.045 | I34: 12034.394 | N34: 2734.95
A35: Rest of Europe | B35: 106030.802 | C35: 103185.456 | D35: 22683.844 | E35: 95133.251 | F35: 62747.143 | G35: 17091.053 | H35: 1644.954 | I35: 62045.338 | K35: 1862.132 | M35: 909.274 | N35: 8742.372
A36: Europe | B36: 3760892.439 | C36: 2845609.362 | D36: 1071988.277 | E36: 3318175.172 | F36: 4083511.654 | G36: 1133994.03 | H36: 55894.91 | I36: 2891906.639 | J36: 322594.097 | K36: 418090.181 | L36: 2569.891 | M36: 620538.277 | N36: 3568830.407
A37: Egypt | B37: 40358.928 | C37: 1203.676 | D37: 913.962 | F37: 4207.347 | K37: 975.972
A38: Morocco | B38: 11617.666 | C38: 10436.221 | E38: 3070.395 | N38: 1237.235
A39: Tunisia | B39: 6549.248 | C39: 1948.042
A40: Other North Africa | B40: 14250.338 | C40: 5598.065 | D40: 5792.33 | F40: 1792.339 | N40: 1237.235
A41: South Africa | B41: 165677.568 | C41: 19942.891 | D41: 5254.879 | E41: 591.027 | F41: 12881.368 | G41: 4048.317 | I41: 5494.042 | K41: 1159.745 | L41: 172.61 | M41: 3082.687 | N41: 7860.484
A42: Nigeria | B42: 135742.069 | C42: 4149.764 | D42: 2388.018 | F42: 6392.92 | G42: 2156.508 | I42: 1056.035 | N42: 2260.315
A43: Other Africa | B43: 98049.705 | C43: 13850.408 | D43: 6054.261 | E43: 2175.517 | F43: 7592.009 | G43: 1528.573 | M43: 3620.385 | N43: 12335.229
A44: Israel | B44: 83627.97 | C44: 8582.411 | D44: 9884.696 | E44: 4969.017 | F44: 41064.376 | G44: 3912.155 | L44: 359.62 | N44: 5833.951
A45: United Arab Emirates | B45: 168101.203 | C45: 20974.526 | D45: 30853.84 | E45: 909.068 | F45: 22331.201 | G45: 14348.011 | H45: 868.658 | K45: 1072.059 | N45: 2854.009
A46: Other Middle East | B46: 301913.133 | C46: 6888.363 | D46: 23634.654 | E46: 1932.208 | F46: 21993.478 | G46: 10539.158 | H46: 676.903 | I46: 2112.071 | K46: 2870.033 | L46: 152.4 | N46: 5827.429
A47: Hong Kong (China) | B47: 112589.998 | C47: 10650.997 | D47: 9199.226 | F47: 11677.03 | G47: 7709.184 | H47: 881.236 | I47: 1119.731 | J47: 520.69 | N47: 8966.37
A48: Other China | B48: 130962.013 | C48: 5780.626 | D48: 24288.107 | E48: 2830.861 | F48: 26172.873 | G48: 12394.73 | I48: 1097.961 | L48: 179.81 | M48: 3191.214 | N48: 25773.156
A49: India | B49: 232816.727 | C49: 8526.923 | D49: 17673.642 | F49: 32081.808 | G49: 14792.954 | I49: 13196.15 | K49: 25114.105 | M49: 994.849 | N49: 30052.743
A50: Japan | B50: 139255.199 | C50: 6048.505 | D50: 7870.789 | E50: 3404.321 | F50: 9268.045 | G50: 4735.432 | H50: 730.931 | I50: 1435.614 | J50: 2790.156 | N50: 45166.521
A51: Pakistan | B51: 41674.828 | C51: 973.054 | D51: 13493.678 | F51: 2624.072 | G51: 1237.468 | I51: 1182.577 | N51: 1781.962
A52: Sri Lanka | B52: 18439.918 | C52: 2805.612 | D52: 1811.637 | F52: 1085.923 | G52: 285.183
A53: Thailand | B53: 55327.778 | D53: 7088.313 | F53: 6901.091 | G53: 285.183 | N53: 4949.382
A54: Other Asia | B54: 366104.911 | C54: 36684.036 | D54: 33003.158 | E54: 8012.619 | F54: 35054.002 | G54: 23676.517 | H54: 2759.228 | I54: 9526.738 | K54: 2363.316 | M54: 3154.238 | N54: 116523.367
A55: Australia | B55: 545129.237 | C55: 102061.214 | D55: 58308.948 | E55: 21931.8 | F55: 75348.38 | G55: 40326.938 | H55: 3194.622 | I55: 77620.064 | J55: 4780.119 | K55: 4773.506 | L55: 332.21 | M55: 25030.839 | N55: 111124.314
A56: New Zealand | B56: 87944.995 | C56: 17943.156 | D56: 10810.097 | E56: 5579.482 | F56: 14046.262 | G56: 2561.025 | H56: 2351.012 | I56: 7639.579 | K56: 96.087 | L56: 539.43 | M56: 1685.138 | N56: 14860.212
A57: Barbados | B57: 271.782 | C57: 9860.458
A58: Jamaica | C58: 9799.038
A59: Other Caribbean | B59: 22662.635 | C59: 37280.533 | D59: 1220.701 | E59: 866.221 | F59: 5732.567 | G59: 250.729 | I59: 1076.974
A60: Brazil | B60: 131899.235 | C60: 21363.945 | D60: 6705.561 | E60: 5325.359 | F60: 11978.64 | I60: 6837.354 | M60: 842.569 | N60: 72234.586
A61: Mexico | B61: 55678.08 | C61: 4604.875 | D61: 1364.963 | E61: 5803.948 | F61: 5964.475 | I61: 3524.982 | J61: 510.574 | N61: 30734.473
A62: Other Central & Sth. America | B62: 79408.85 | C62: 46586.858 | D62: 3373.908 | E62: 4559.198 | F62: 17103.751 | G62: 2815.467 | I62: 25967.288 | J62: 6247.201 | K62: 2015.257 | M62: 1935.247 | N62: 65949.108
A63: Rest of the World | B63: 2961.547 | D63: 1531.2 | F63: 1698.379 | G63: 5169.576

Sheet Transport (hidden)
A2: 2013: Visits to the UK; by nation of residence and type of vehicle used
A3: Nationality | B3: Air | D3: Sea and Channel Tunnel
B4: All travellers | C4: Foot | D4: Private vehicle | E4: Coach | F4: Goods vehicle | G4: Vehicle type unknown | H4: Total sea and Channel Tunnel
A5: Canada | B5: 647061.64 | C5: 74254.667 | D5: 5226.432 | E5: 17314.906 | H5: 96796.005
A6: USA | B6: 2447216.35 | C6: 285951.483 | D6: 15656.129 | E6: 41531.671 | F6: 148.667 | H6: 343287.95
A7: Austria | B7: 261124.998 | C7: 2618.322 | D7: 7871.67 | E7: 2170.475 | F7: 1343.763 | H7: 14004.23
A8: Belgium | B8: 184351.606 | C8: 453451.389 | D8: 326188.72 | E8: 155412.585 | F8: 66950.16 | G8: 1967.54 | H8: 1003970.394
A9: Bulgaria | B9: 70836.552 | D9: 10233.963 | E9: 1398.129 | F9: 43994.777 | H9: 55626.869
A10: Czech Republic | B10: 202150.381 | C10: 201.38 | D10: 17339.96 | E10: 69550.844 | F10: 69237.731 | H10: 156329.915
A11: Cyprus | B11: 119133.661 | C11: 1622.83 | D11: 1401.163 | E11: 1119.731 | H11: 4143.724
A12: Denmark | B12: 630952.019 | C12: 22528.953 | D12: 23483.885 | E12: 24001.522 | F12: 1772.003 | H12: 71786.363
A13: Finland | B13: 209214.554 | C13: 3695.809 | D13: 2239.462 | H13: 5935.271
A14: France | B14: 1425416.686 | C14: 1336551.773 | D14: 587215.993 | E14: 504333.871 | F14: 75779.654 | G14: 1097.961 | H14: 2504979.252
A15: Germany | B15: 2187566.09 | C15: 83129.385 | D15: 497070.403 | E15: 336451.644 | F15: 57762.633 | H15: 974414.065
A16: Greece | B16: 168661.14 | C16: 1393.863 | D16: 533.421 | E16: 3476.729 | F16: 3673.003 | H16: 9077.016
A17: Hungary | B17: 130432.84 | C17: 3171.592 | D17: 12124.221 | E17: 16430.932 | F17: 118395.279 | H17: 150122.024
A18: Irish Republic | B18: 1765350.818 | C18: 95542.588 | D18: 276825.934 | E18: 36161.859 | F18: 29213.11 | G18: 191419 | H18: 629162.491
A19: Italy | B19: 1588070.421 | C19: 12239.963 | D19: 33567.219 | E19: 9396.329 | F19: 22533.87 | H19: 77737.381
A20: Lithuania | B20: 118171.898 | D20: 22194.508 | E20: 8665.623 | F20: 55913.667 | H20: 86773.798
A21: Luxembourg | B21: 61952.212 | C21: 6223.781 | D21: 20857.25 | E21: 2787.069 | H21: 29868.1
A22: Malta | B22: 83034.064 | C22: 155.448 | D22: 1250.957 | H22: 1406.405
A23: Netherlands | B23: 1067143.145 | C23: 147232.107 | D23: 444082.979 | E23: 154521.608 | F23: 108576.846 | G23: 384.865 | H23: 854798.405
A24: Norway | B24: 840620.41 | C24: 3790.574 | D24: 5803.693 | H24: 9594.267
A25: Poland | B25: 785617.625 | C25: 7829.114 | D25: 66083.657 | E25: 65256.872 | F25: 432221.107 | H25: 571390.75
A26: Portugal | B26: 250263.262 | C26: 1622.83 | D26: 5716.498 | E26: 5087.416 | F26: 22982.558 | H26: 35409.302
A27: Romania | B27: 174297.008 | D27: 18039.856 | E27: 16020.579 | F27: 177342.986 | H27: 211403.421
A28: Russia | B28: 202800.804 | C28: 3003.133 | D28: 1291.516 | E28: 4136.278 | F28: 2548.224 | H28: 10979.151
A29: Slovakia | B29: 77103.452 | C29: 244.412 | D29: 1387.544 | E29: 23166.816 | F29: 45816.697 | H29: 70615.469
A30: Spain | B30: 1573501.599 | C30: 6200.391 | D30: 29421.673 | E30: 11913.991 | F30: 83437.95 | H30: 130974.005
A31: Sweden | B31: 775260.806 | C31: 7930.154 | D31: 7516.971 | E31: 3587.187 | H31: 19034.312
A32: Switzerland | B32: 769104.147 | C32: 15189.92 | D32: 30398.23 | E32: 1076.502 | H32: 46664.652
A33: Turkey | B33: 139417.143 | C33: 2734.95 | F33: 12034.394 | H33: 14769.344
A34: Rest of Europe | B34: 408516.503 | C34: 5074.121 | D34: 8447.332 | E34: 5258.95 | F34: 54778.713 | H34: 73559.116
A35: Europe | B35: 16270065.84 | C35: 2223378.782 | D35: 2458588.678 | E35: 1461383.541 | F35: 1486309.125 | G35: 194869.366 | H35: 7824529.492
A36: Egypt | B36: 46683.913 | D36: 975.972 | H36: 975.972
A37: Morocco | B37: 25124.282 | C37: 1237.235 | H37: 1237.235
A38: Tunisia | B38: 8497.29
A39: Other North Africa | B39: 27433.072 | C39: 1237.235 | H39: 1237.235
A40: South Africa | B40: 208396.05 | C40: 7040.083 | D40: 2511.158 | E40: 8218.327 | H40: 17769.568
A41: Nigeria | B41: 150829.279 | C41: 1444.608 | D41: 1056.035 | E41: 815.707 | H41: 3316.35
A42: Other Africa | B42: 129250.473 | C42: 5640.378 | D42: 8147.298 | E42: 2167.938 | H42: 15955.614
A43: Israel | B43: 152040.625 | C43: 5133.577 | D43: 1059.994 | H43: 6193.571
A44: United Arab Emirates | B44: 258386.507 | C44: 3014.274 | D44: 96.087 | E44: 815.707 | H44: 3926.068
A45: Other Middle East | B45: 367577.897 | C45: 6990.955 | D45: 3970.978 | H45: 10961.933
A46: Hong Kong (China) | B46: 152707.671 | C46: 8504.08 | D46: 2102.711 | H46: 10606.791
A47: Other China | B47: 202429.21 | C47: 27050.927 | E47: 3191.214 | H47: 30242.141
A48: India | B48: 305892.054 | C48: 16792.599 | D48: 1753.161 | E48: 50812.087 | H48: 69357.847
A49: Japan | B49: 171313.222 | C49: 46152.493 | D49: 3239.798 | H49: 49392.291
A50: Pakistan | B50: 60003.1 | C50: 1781.962 | D50: 1182.577 | H50: 2964.539
A51: Sri Lanka | B51: 24428.273
A52: Thailand | B52: 69602.365 | C52: 4949.382 | H52: 4949.382
A53: Other Asia | B53: 505294.471 | C53: 117813.38 | D53: 1782.35 | E53: 10483.611 | F53: 1488.318 | H53: 131567.659
A54: Australia | B54: 846301.139 | C54: 135757.954 | D54: 26671.71 | E54: 60342.994 | G54: 888.394 | H54: 223661.052
A55: New Zealand | B55: 141236.029 | C55: 16661.866 | D55: 5962.658 | E55: 2195.922 | H55: 24820.446
A56: Barbados | B56: 10132.24
A57: Jamaica | B57: 9799.038
A58: Other Caribbean | B58: 68013.386 | D58: 1076.974 | H58: 1076.974
A59: Brazil | B59: 177272.74 | C59: 50461.939 | D59: 4234.018 | E59: 25218.552 | H59: 79914.509
A60: Mexico | B60: 73416.341 | C60: 14340.078 | E60: 20429.951 | H60: 34770.029
A61: Other Central & Sth. America | B61: 153848.032 | C61: 39321.474 | D61: 5696.958 | E61: 57095.669 | H61: 102114.101
A62: Rest of the World | B62: 11360.702

Sheet Gender
A2: 2013: Visits to and spending in UK; by nation of residence, gender and purpose of visit
A3: Nationality | B3: Male | F3: Female | K3: Visits Percentage Split | P3: Spending Percentage Split
B4: Leisure | D4: Business | F4: Leisure | H4: Business | K4: Male | M4: Female | P4: Male | R4: Female
B5: Visits | C5: Spending | D5: Visits | E5: Spending | F5: Visits | G5: Spending | H5: Visits | I5: Spending | K5: Leisure | L5: Business | M5: Leisure | N5: Business | P5: Leisure | Q5: Business | R5: Leisure | S5: Business
A6: Canada | B6: 306051.991 | C6: 202344799.4 | D6: 68208.399 | E6: 83982865.96 | F6: 344279.819 | G6: 216534507.1 | H6: 25317.436 | I6: 27782613.15 | K6: =IFERROR(B6/(B6+D6),"n/a") -> 0.8177514885 | L6: =IFERROR(D6/(B6+D6),"n/a") -> 0.1822485115 | M6: =IFERROR(F6/(F6+H6),"n/a") -> 0.931499935 | N6: =IFERROR(H6/(F6+H6),"n/a") -> 0.06850006502 | P6: =IFERROR(C6/(C6+E6),"n/a") -> 0.7066896562 | Q6: =IFERROR(E6/(C6+E6),"n/a") -> 0.2933103438 | R6: =IFERROR(G6/(G6+I6),"n/a") -> 0.8862846242 | S6: =IFERROR(I6/(G6+I6),"n/a") -> 0.1137153758
A7: USA | B7: 1003913.042 | C7: 766133628.6 | D7: 533572.359 | E7: 698468035.7 | F7: 1065963.102 | G7: 870072657.9 | H7: 185561.845 | I7: 206650414.9 | K7: =IFERROR(B7/(B7+D7),"n/a") -> 0.6529577721 | L7: =IFERROR(D7/(B7+D7),"n/a") -> 0.3470422279 | M7: =IFERROR(F7/(F7+H7),"n/a") -> 0.8517314054 | N7: =IFERROR(H7/(F7+H7),"n/a") -> 0.1482685946 | P7: =IFERROR(C7/(C7+E7),"n/a") -> 0.52310034 | Q7: =IFERROR(E7/(C7+E7),"n/a") -> 0.47689966 | R7: =IFERROR(G7/(G7+I7),"n/a") -> 0.808074685 | S7: =IFERROR(I7/(G7+I7),"n/a") -> 0.191925315
A8: Austria | B8: 108609.379 | C8: 60902278.19 | D8: 50805.957 | E8: 25680964.88 | F8: 99085.237 | G8: 49204146.7 | H8: 16628.655 | I8: 5725255.8 | K8: 0.6812981845 | L8: 0.3187018155 | M8: 0.8562950851 | N8: 0.1437049149 | P8: 0.7033956691 | Q8: 0.2966043309 | R8: 0.8957706522 | S8: 0.1042293478
A9: Belgium | B9: 458975.409 | C9: 178211963.2 | D9: 255438.125 | E9: 56120722.77 | F9: 405807.342 | G9: 130004161.8 | H9: 68101.124 | I9: 21405755.87 | K9: 0.6424506076 | L9: 0.3575493924 | M9: 0.8562989926 | N9: 0.1437010074 | P9: 0.7605083451 | Q9: 0.2394916549 | R9: 0.8586238194 | S9: 0.1413761806
A10: Bulgaria | B10: 33401.331 | C10: 16044455.59 | D10: 49326.306 | E10: 11674635.54 | F10: 36212.523 | G10: 19128665.37 | H10: 7523.261 | I10: 3450609.206 | K10: 0.4037505749 | L10: 0.5962494251 | M10: 0.8279838541 | N10: 0.1720161459 | P10: 0.5788232923 | Q10: 0.4211767077 | R10: 0.8471780307 | S10: 0.1528219693
A11: Czech Republic | B11: 112118.776 | C11: 44421747.35 | D11: 114080.917 | E11: 29775746.13 | F11: 118260.325 | G11: 44526400.22 | H11: 14020.278 | I11: 3515474.954 | K11: 0.4956628124 | L11: 0.5043371876 | M11: 0.8940110819 | N11: 0.1059889181 | P11: 0.5986960646 | Q11: 0.4013039354 | R11: 0.9268247765 | S11: 0.07317522351
A12: Cyprus | B12: 52495.881 | C12: 53983505.77 | D12: 6897.86 | E12: 9705808.878 | F12: 63076.903 | G12: 58067500.07 | H12: 806.741 | I12: 923885.415 | K12: 0.8838621733 | L12: 0.1161378267 | M12: 0.9873717129 | N12: 0.01262828714 | P12: 0.8476069505 | Q12: 0.1523930495 | R12: 0.9843386385 | S12: 0.01566136153
A13: Finland | B13: 76053.782 | C13: 38968824.09 | D13: 31261.456 | E13: 21770677.59 | F13: 94250.286 | G13: 50766508.06 | H13: 13584.301 | I13: 7918113.696 | K13: 0.7086950876 | L13: 0.2913049124 | M13: 0.8740264939 | N13: 0.1259735061 | P13: 0.6415729963 | Q13: 0.3584270037 | R13: 0.8650734475 | S13: 0.1349265525
A14: France | B14: 1387441.087 | C14: 484614309.5 | D14: 606887.139 | E14: 182474903.6 | F14: 1742207.445 | G14: 615387886.1 | H14: 193860.267 | I14: 65765321.75 | K14: 0.6956934515 | L14: 0.3043065485 | M14: 0.8998690667 | N14: 0.1001309333 | P14: 0.7264610189 | Q14: 0.2735389811 | R14: 0.9034500301 | S14: 0.09654996995
A15: Germany | B15: 1156270.98 | C15: 524504980.8 | D15: 674024.652 | E15: 258964858.4 | F15: 1155217.611 | G15: 523424826.3 | H15: 168761.556 | I15: 99231656.36 | K15: 0.6317400095 | L15: 0.3682599905 | M15: 0.8725345835 | N15: 0.1274654165 | P15: 0.6694641638 | Q15: 0.3305358362 | R15: 0.8406317783 | S15: 0.1593682217
A16: Greece | B16: 54890.9 | C16: 48374805.28 | D16: 31286.108 | E16: 27594581.08 | F16: 83964.26 | G16: 63423385.54 | H16: 7596.888 | I16: 7063657.86 | K16: 0.636955277 | L16: 0.363044723 | M16: 0.9170293496 | N16: 0.08297065039 | P16: 0.6367670926 | Q16: 0.3632329074 | R16: 0.8997878543 | S16: 0.1002121457
A17: Hungary | B17: 56975.653 | C17: 25000170.23 | D17: 139416.949 | E17: 13476812.67 | F17: 71479.672 | G17: 26332039.3 | H17: 12682.59 | I17: 10657390.88 | K17: 0.2901109941 | L17: 0.7098890059 | M17: 0.8493078763 | N17: 0.1506921237 | P17: 0.6497435179 | Q17: 0.3502564821 | R17: 0.7118801012 | S17: 0.2881198988
A18: Irish Republic | B18: 940102.1153 | C18: 301043467.4 | D18: 404480.5284 | E18: 159503890.3 | F18: 925558.9437 | G18: 276831760.2 | H18: 124371.7216 | I18: 46981926.3 | K18: 0.6991776368 | L18: 0.3008223632 | M18: 0.8815429192 | N18: 0.1184570808 | P18: 0.6536645198 | Q18: 0.3463354802 | R18: 0.8549106222 | S18: 0.1450893778
A19: Italy | B19: 645282.591 | C19: 317531566.6 | D19: 221450.836 | E19: 128023415.3 | F19: 730571.702 | G19: 354264377.2 | H19: 68502.673 | I19: 30247224.91 | K19: 0.7444994861 | L19: 0.2555005139 | M19: 0.9142724693 | N19: 0.08572753068 | P19: 0.7126652815 | Q19: 0.2873347185 | R19: 0.921335989 | S19: 0.07866401104
A20: Lithuania | B20: 59006.624 | C20: 22832667.33 | D20: 66645.381 | E20: 5445925.023 | F20: 75883.252 | G20: 36528537.78 | H20: 3410.439 | I20: 1133156.462 | K20: 0.4696035212 | L20: 0.5303964788 | M20: 0.9569897812 | N20: 0.04301021881 | P20: 0.807418808 | Q20: 0.192581192 | R20: 0.9699122282 | S20: 0.0300877718
A21: Luxembourg | B21: 33692.962 | C21: 20556105.29 | D21: 23906.336 | E21: 9161590.045 | F21: 29816.678 | G21: 13134012.01 | H21: 4404.336 | I21: 1072558.545 | K21: 0.5849543861 | L21: 0.4150456139 | M21: 0.8712973263 | N21: 0.1287026737 | P21: 0.6917126331 | Q21: 0.3082873669 | R21: 0.9245026419 | S21: 0.07549735811
A22: Malta | B22: 44979.102 | C22: 22066789.86 | D22: 10693.934 | E22: 7575485.415 | F22: 26029.433 | G22: 18446985.08 | H22: 2738 | I22: 4618447.445 | K22: 0.8079153794 | L22: 0.1920846206 | M22: 0.9048229295 | N22: 0.09517707054 | P22: 0.7444364393 | Q22: 0.2555635607 | R22: 0.7997675769 | S22: 0.2002324231
A23: Netherlands | B23: 643443.65 | C23: 256427957.1 | D23: 526268.644 | E23: 191021187.2 | F23: 643349.704 | G23: 231090236.4 | H23: 108879.552 | I23: 41392153.41 | K23: 0.5500871054 | L23: 0.4499128946 | M23: 0.8552574882 | N23: 0.1447425118 | P23: 0.5730884958 | Q23: 0.4269115042 | R23: 0.8480923724 | S23: 0.1519076276
A24: Norway | B24: 327953.655 | C24: 180520492.7 | D24: 144398.45 | E24: 117376719.6 | F24: 335078.686 | G24: 208160161.9 | H24: 41012.183 | I24: 28578460.14 | K24: 0.6942991288 | L24: 0.3057008712 | M24: 0.8909513993 | N24: 0.1090486007 | P24: 0.6059824841 | Q24: 0.3940175159 | R24: 0.8792826456 | S24: 0.1207173544
A25: Poland | B25: 318937.45 | C25: 139437499.6 | D25: 532378.649 | E25: 102936464.1 | F25: 463871.844 | G25: 173140642.2 | H25: 41820.432 | I25: 33513046.11 | K25: 0.3746404542 | L25: 0.6253595458 | M25: 0.9173006313 | N25: 0.08269936874 | P25: 0.5752990027 | Q25: 0.4247009973 | R25: 0.8378299155 | S25: 0.1621700845
A26: Portugal | B26: 95284.719 | C26: 46532701.53 | D26: 63214.689 | E26: 29369013.83 | F26: 118158.373 | G26: 33895902.92 | H26: 9014.783 | I26: 4873026.142 | K26: 0.6011676649 | L26: 0.3988323351 | M26: 0.9291141049 | N26: 0.07088589513 | P26: 0.6130652161 | Q26: 0.3869347839 | R26: 0.8743058872 | S26: 0.1256941128
A27: Romania | B27: 80807.36 | C27: 57928944.2 | D27: 197272.729 | E27: 37608132.9 | F27: 92275.037 | G27: 52751277.25 | H27: 15345.303 | I27: 10014133.14 | K27: 0.2905902407 | L27: 0.7094097593 | M27: 0.8574126136 | N27: 0.1425873864 | P27: 0.6063503925 | Q27: 0.3936496075 | R27: 0.8404514035 | S27: 0.1595485965
A28: Russia | B28: 64633.315 | C28: 104140851.2 | D28: 30859.442 | E28: 27049366.95 | F28: 98770.235 | G28: 108346661.3 | H28: 19516.963 | I28: 17721456.12 | K28: 0.6768399723 | L28: 0.3231600277 | M28: 0.8350035902 | N28: 0.1649964098 | P28: 0.7938156722 | Q28: 0.2061843278 | R28: 0.8594295172 | S28: 0.1405704828
A29: Slovakia | B29: 45271.695 | C29: 15226346.62 | D29: 49778.047 | E29: 4506990.541 | F29: 41104.201 | G29: 12827691.98 | H29: 11564.978 | I29: 2928840.015 | K29: 0.47629477 | L29: 0.52370523 | M29: 0.7804222845 | N29: 0.2195777155 | P29: 0.7716052533 | Q29: 0.2283947467 | R29: 0.8141189942 | S29: 0.1858810058
A30: Spain | B30: 664089.995 | C30: 309313867 | D30: 276510.163 | E30: 177127543.2 | F30: 693018.46 | G30: 370337066.7 | H30: 69155.421 | I30: 47221107.98 | K30: 0.7060279433 | L30: 0.2939720567 | M30: 0.909265559 | N30: 0.09073444095 | P30: 0.6358707555 | Q30: 0.3641292445 | R30: 0.8869113076 | S30: 0.1130886924
A31: Sweden | B31: 303582.12 | C31: 166470043.3 | D31: 123709.855 | E31: 80388628.01 | F31: 313001.547 | G31: 163277754.2 | H31: 53585.566 | I31: 36094735.16 | K31: 0.7104793391 | L31: 0.2895206609 | M31: 0.8538258327 | N31: 0.1461741673 | P31: 0.6743536389 | Q31: 0.3256463611 | R31: 0.8189582963 | S31: 0.1810417037
A32: Switzerland | B32: 253790.705 | C32: 179533255.3 | D32: 181278.945 | E32: 117499798.7 | F32: 327752.679 | G32: 183051695.3 | H32: 52946.47 | I32: 23181729.36 | K32: 0.5833335076 | L32: 0.4166664924 | M32: 0.8609230671 | N32: 0.1390769329 | P32: 0.6044218072 | Q32: 0.3955781928 | R32: 0.887594703 | S32: 0.112405297
A33: Turkey | B33: 53821.934 | C33: 51606503.01 | D33: 37373.564 | E33: 23256642.98 | F33: 49350.011 | G33: 49765338.2 | H33: 13361.639 | I33: 16090226.46 | K33: 0.5901819188 | L33: 0.4098180812 | M33: 0.7869352983 | N33: 0.2130647017 | P33: 0.6893445677 | Q33: 0.3106554323 | R33: 0.7556740036 | S33: 0.2443259964
A34: Rest of Europe | B34: 157432.733 | C34: 119329069.5 | D34: 111596.009 | E34: 56059260.7 | F34: 182782.016 | G34: 150063966.9 | H34: 29952.659 | I34: 27572890.98 | K34: 0.5851892695 | L34: 0.4148107305 | M34: 0.8592018015 | N34: 0.1407981985 | P34: 0.6803706345 | Q34: 0.3196293655 | R34: 0.8447794489 | S34: 0.1552205511
A35: Europe | B35: 8475353.268 | C35: 4008446693 | D35: 5098913.631 | E35: 1986386418 | F35: 9291575.217 | G35: 4236464647 | H35: 1216567.025 | I35: 625218676.9 | K35: 0.624369134 | L35: 0.375630866 | M35: 0.8842262508 | N35: 0.1157737492 | P35: 0.6686502558 | Q35: 0.3313497442 | R35: 0.8713987244 | S35: 0.1286012756
A36: Egypt | B36: 17853.027 | C36: 28123898.87 | D36: 7842.31 | E36: 14199631.07 | F36: 18042.352 | G36: 28066890.58 | H36: 3922.196 | I36: 9014576.49 | K36: 0.6947963749 | L36: 0.3052036251 | M36: 0.8214306072 | N36: 0.1785693928 | P36: 0.6644979497 | Q36: 0.3355020503 | R36: 0.7568980625 | S36: 0.2431019375
A37: Morocco | B37: 9686.465 | C37: 15720037.13 | D37: 2113.86 | E37: 2649692.423 | F37: 11696.43 | G37: 12964455.34 | H37: 2864.762 | I37: 12309658.02 | K37: 0.8208642559 | L37: 0.1791357441 | M37: 0.8032604748 | N37: 0.1967395252 | P37: 0.8557576792 | Q37: 0.1442423208 | R37: 0.5129539128 | S37: 0.4870460872
A38: Tunisia | B38: 4745.492 | C38: 7394274.869 | D38: 446.009 | E38: 897370.108 | F38: 2895.996 | G38: 3804524.062 | H38: 409.793 | I38: 424545.548 | K38: 0.9140886229 | L38: 0.08591137708 | M38: 0.8760377628 | N38: 0.1239622372 | P38: 0.8917741762 | Q38: 0.1082258238 | R38: 0.899612542 | S38: 0.100387458
A39: Other North Africa | B39: 11632.466 | C39: 14790347.23 | D39: 9796.084 | E39: 15045806.33 | F39: 6795.748 | G39: 5051357.724 | H39: 446.009 | I39: 363497.335 | K39: 0.5428489562 | L39: 0.4571510438 | M39: 0.9384114932 | N39: 0.06158850677 | P39: 0.4957189673 | Q39: 0.5042810327 | R39: 0.9328703481 | S39: 0.06712965186
A40: South Africa | B40: 88141.478 | C40: 81131046.57 | D40: 38424.578 | E40: 52126524.34 | F40: 84722.795 | G40: 66292166.25 | H40: 14402.127 | I40: 19583304.84 | K40: 0.696406926 | L40: 0.303593074 | M40: 0.8547073056 | N40: 0.1452926944 | P40: 0.6088287969 | Q40: 0.3911712031 | R40: 0.7719569443 | S40: 0.2280430557
A41: Nigeria | B41: 66432.699 | C41: 103597014.1 | D41: 20694.332 | E41: 59551371.98 | F41: 60594.982 | G41: 89409097.88 | H41: 6423.616 | I41: 18248899.06 | K41: 0.7624809228 | L41: 0.2375190772 | M41: 0.9041517401 | N41: 0.09584825991 | P41: 0.6349864476 | Q41: 0.3650135524 | R41: 0.830491932 | S41: 0.169508068
A42: Other Africa | B42: 61485.158 | C42: 63116212.64 | D42: 19588.762 | E42: 34650091.56 | F42: 57431.012 | G42: 55137641.61 | H42: 6701.155 | I42: 10490336.7 | K42: 0.7583839291 | L42: 0.2416160709 | M42: 0.8955102359 | N42: 0.1044897641 | P42: 0.645582475 | Q42: 0.354417525 | R42: 0.8401545048 | S42: 0.1598454952
A43: Israel | B43: 55015.774 | C43: 31177937.25 | D43: 34483.276 | E43: 24061761.71 | F43: 61823.944 | G43: 34272321.14 | H43: 6911.202 | I43: 4628849.595 | K43: 0.6147079103 | L43: 0.3852920897 | M43: 0.8994517012 | N43: 0.1005482988 | P43: 0.5644117878 | Q43: 0.4355882122 | R43: 0.8810100183 | S43: 0.1189899817
A44: United Arab Emirates | B44: 121986.307 | C44: 240420970.1 | D44: 35276.721 | E44: 89261955.87 | F44: 100184.504 | G44: 189162005.4 | H44: 4865.043 | I44: 7563941.98 | K44: 0.7756833157 | L44: 0.2243166843 | M44: 0.9536881106 | N44: 0.04631188938 | P44: 0.7292490789 | Q44: 0.2707509211 | R44: 0.9615508677 | S44: 0.0384491323
A45: Other Middle East | B45: 215061.423 | C45: 662507914.5 | D45: 39226.565 | E45: 150864713.9 | F45: 119505.106 | G45: 303574212.2 | H45: 4746.736 | I45: 10669355.68 | K45: 0.8457396069 | L45: 0.1542603931 | M45: 0.9617974597 | N45: 0.03820254029 | P45: 0.8145195589 | Q45: 0.1854804411 | R45: 0.966047497 | S45: 0.03395250298
A46: Hong Kong (China) | B46: 73776.635 | C46: 110914552.5 | D46: 20839.722 | E46: 40101971.21 | F46: 59400.413 | G46: 82694948.12 | H46: 8964.792 | I46: 14157840.82 | K46: 0.7797450392 | L46: 0.2202549608 | M46: 0.8688690833 | N46: 0.1311309167 | P46: 0.7344530902 | Q46: 0.2655469098 | R46: 0.8538210312 | S46: 0.1461789688
A47: Other China | B47: 87184.648 | C47: 200941522.5 | D47: 42706.677 | E47: 65285531.57 | F47: 89414.534 | G47: 234035768.1 | H47: 12269.915 | I47: 32918711.86 | K47: 0.6712122461 | L47: 0.3287877539 | M47: 0.879333417 | N47: 0.120666583 | P47: 0.7547749916 | Q47: 0.2452250084 | R47: 0.8766879212 | S47: 0.1233120788
A48: India | B48: 152828.232 | C48: 135496587.6 | D48: 88617.379 | E48: 163557029.5 | F48: 116973.125 | G48: 96379145.56 | H48: 16831.165 | I48: 45070381.19 | K48: 0.6329716716 | L48: 0.3670283284 | M48: 0.8742105728 | N48: 0.1257894272 | P48: 0.4530845969 | Q48: 0.5469154031 | R48: 0.6813677485 | S48: 0.3186322515
A49: Japan | B49: 73609.084 | C49: 60962344.41 | D49: 52398.416 | E49: 51528689.63 | F49: 84874.249 | G49: 81906601.04 | H49: 8891.39 | I49: 12789295.44 | K49: 0.5841643077 | L49: 0.4158356923 | M49: 0.9051743251 | N49: 0.09482567489 | P49: 0.5419306964 | Q49: 0.4580693036 | R49: 0.8649435096 | S49: 0.1350564904
A50: Pakistan | B50: 35763.561 | C50: 70893011.02 | D50: 7946.982 | E50: 11070530.94 | F50: 18212.523 | G50: 28581332.91 | H50: 1044.573 | I50: 4513013.52 | K50: 0.818190728 | L50: 0.181809272 | M50: 0.945756463 | N50: 0.05424353703 | P50: 0.8649334732 | Q50: 0.1350665268 | R50: 0.8636318886 | S50: 0.1363681114
A51: Sri Lanka | B51: 9360.744 | C51: 7001470.899 | D51: 4071.573 | E51: 3099117.695 | F51: 9966.356 | G51: 5995910.702 | H51: 1029.6 | I51: 1564728.88 | K51: 0.6968823026 | L51: 0.3031176974 | M51: 0.9063655766 | N51: 0.09363442342 | P51: 0.6931745446 | Q51: 0.3068254554 | R51: 0.7930427892 | S51: 0.2069572108
A52: Thailand | B52: 38939.86 | C52: 74560387.58 | D52: 3774.258 | E52: 6928939.19 | F52: 28051.497 | G52: 30346047.65 | H52: 3318.469 | I52: 4002301.671 | K52: 0.9116390979 | L52: 0.08836090213 | M52: 0.894215091 | N52: 0.105784909 | P52: 0.9149712059 | Q52: 0.08502879413 | R52: 0.8834790681 | S52: 0.1165209319
A53: Other Asia | B53: 254161.72 | C53: 357303777.5 | D53: 99680.868 | E53: 137058193.1 | F53: 259488.808 | G53: 292911176.1 | H53: 23216.534 | I53: 27736771.51 | K53: 0.7182903602 | L53: 0.2817096398 | M53: 0.9178772717 | N53: 0.08212272834 | P53: 0.72275741 | Q53: 0.27724259 | R53: 0.913497742 | S53: 0.08650225804
A54: Australia | B54: 487673.691 | C54: 555158558.2 | D54: 46235.652 | E54: 74582609.74 | F54: 509170.464 | G54: 521831743.6 | H54: 26882.384 | I54: 38814733.36 | K54: 0.9134016803 | L54: 0.08659831975 | M54: 0.949851243 | N54: 0.05014875697 | P54: 0.8815662473 | Q54: 0.1184337527 | R54: 0.9307678993 | S54: 0.06923210073
A55: New Zealand | B55: 76088.021 | C55: 63648011.43 | D55: 10988.971 | E55: 11743868.05 | F55: 76095.889 | G55: 54616284.65 | H55: 2883.594 | I55: 6000625.91 | K55: 0.8738016697 | L55: 0.1261983303 | M55: 0.963489328 | N55: 0.03651067202 | P55: 0.8442290054 | Q55: 0.1557709946 | R55: 0.9010073946 | S55: 0.09899260544
A56: Barbados | B56: 1463.494 | C56: 283206.63 | D56: n/a | E56: n/a | F56: 8668.746 | G56: 6595524.245 | H56: n/a | I56: n/a | K56: n/a | L56: n/a | M56: n/a | N56: n/a | P56: n/a | Q56: n/a | R56: n/a | S56: n/a
A57: Jamaica | B57: 763.901 | C57: 775359.515 | D57: 1138.811 | E57: 1135394.567 | F57: 7896.326 | G57: 3379928.44 | H57: n/a | I57: n/a | K57: 0.4014800979 | L57: 0.5985199021 | M57: n/a | N57: n/a | P57: 0.4057871823 | Q57: 0.5942128177 | R57: n/a | S57: n/a
A58: Other Caribbean | B58: 24284.303 | C58: 22774715.21 | D58: 7352.741 | E58: 12820509.64 | F58: 34438.074 | G58: 26659871.1 | H58: 3015.242 | I58: 3496025.658 | K58: 0.7675907711 | L58: 0.2324092289 | M58: 0.9194933234 | N58: 0.08050667663 | P58: 0.6398250133 | Q58: 0.3601749867 | R58: 0.8840682575 | S58: 0.1159317425
A59: Brazil | B59: 126021.755 | C59: 128147554.3 | D59: 21058.908 | E59: 31510324.98 | F59: 102953.921 | G59: 105848244 | H59: 7152.665 | I59: 10926960.74 | K59: 0.8568206889 | L59: 0.1431793111 | M59: 0.9350387178 | N59: 0.06496128215 | P59: 0.8026384597 | Q59: 0.1973615403 | R59: 0.9064273896 | S59: 0.09357261045
A60: Mexico | B60: 48827.686 | C60: 28014934.17 | D60: 3750.201 | E60: 4780122.97 | F60: 50905.508 | G60: 25670649.85 | H60: 4151.751 | I60: 2056745.965 | K60: 0.9286734174 | L60: 0.0713265826 | M60: 0.9245921233 | N60: 0.07540787673 | P60: 0.8542425784 | Q60: 0.1457574216 | R60: 0.925822606 | S60: 0.07417739403
A61: Other Central & Sth. America | B61: 129253.147 | C61: 94769730.06 | D61: 21435.83 | E61: 23658789.5 | F61: 100046.65 | G61: 69876025.56 | H61: 5226.506 | I61: 5937640.844 | K61: 0.8577478564 | L61: 0.1422521436 | M61: 0.9503529086 | N61: 0.04964709142 | P61: 0.8002272629 | Q61: 0.1997727371 | R61: 0.9216811279 | S61: 0.07831887212
A62: Rest of the World | B62: 8090.084 | C62: 6194665.22 | D62: 314.2 | E62: 20423 | F62: 2956.418 | G62: 3466757.854 | H62: n/a | I62: n/a | K62: 0.9626143048 | L62: 0.0373856952 | M62: n/a | N62: n/a | P62: 0.9967139646 | Q62: 0.003286035415 | R62: n/a | S62: n/a

Sheet Nationality (hidden)
A2: Number of visits to UK: by country of residence, purpose of visit and nationality 2013
A3: Nationality | B3: Holiday | E3: Business | H3: Personal | K3: Other
B4: Country of residence | C4: UK | D4: Other | E4: Country of residence | F4: UK | G4: Other | H4: Country of residence | I4: UK | J4: Other | K4: Country of residence | L4: UK | M4: Other
A5: Canada | B5: 261835.828 | C5: 7734.694 | D5: 10054.822 | E5: 87767.215 | F5: 1490.136 | G5: 4268.484 | H5: 236087.725 | I5: 51490.54 | J5: 14778.028 | K5: 54450.602 | L5: 4755.257 | M5: 9144.314
A6: USA | B6: 1035054.267 | C6: 32357.669 | D6: 55737.027 | E6: 621249.466 | F6: 39129.606 | G6: 58755.132 | H6: 483887.815 | I6: 148700.399 | J6: 47858.077 | K6: 231790.151 | L6: 10093.415 | M6: 25891.276
A7: Austria | B7: 121062.479 | C7: 689.844 | D7: 10913.637 | E7: 53047.74 | F7: 3523.076 | G7: 10863.796 | H7: 29412.783 | I7: 21551.504 | J7: 9143.319 | K7: 14609.174 | M7: 311.876
A8: Belgium | B8: 468827.956 | C8: 12947.177 | D8: 63216.304 | E8: 250405.972 | F8: 13655.036 | G8: 59478.241 | H8: 127895.391 | I8: 56221.851 | J8: 37350.289 | K8: 75006.55 | L8: 13240.171 | M8: 10077.062
A9: Bulgaria | B9: 21825.166 | E9: 56849.567 | H9: 32571.575 | I9: 4958.134 | J9: 1044.985 | K9: 9213.994
A10: Czech Republic | B10: 107540.898 | C10: 2601.265 | D10: 7263.254 | E10: 117132.386 | F10: 2617.133 | G10: 8351.676 | H10: 67668.905 | I10: 11853.22 | J10: 4878.201 | K10: 26798.863 | L10: 1276.951 | M10: 497.544
A11: Cyprus | B11: 27403.128 | C11: 5719.559 | D11: 5340.335 | E11: 4990.604 | F11: 1367.937 | G11: 1346.06 | H11: 22317.852 | I11: 39801.083 | J11: 2586.833 | K11: 6068.366 | L11: 5102.149 | M11: 1233.479
A12: Denmark | B12: 322591.574 | C12: 2068.315 | D12: 10766.851 | E12: 161889.038 | F12: 3679.203 | G12: 15521.965 | H12: 91855.488 | I12: 18485.299 | J12: 7871.485 | K12: 62040.676 | L12: 3445.622 | M12: 2522.866
A13: Finland | B13: 104563.674 | C13: 366.822 | D13: 4124.637 | E13: 37639.241 | F13: 1128.344 | G13: 6078.172 | H13: 37553.942 | I13: 5804.493 | J13: 1585.552 | K13: 15831.775 | M13: 473.173
A14: France | B14: 1610452.296 | C14: 65594.403 | D14: 84763.718 | E14: 687764.268 | F14: 58107.662 | G14: 54875.476 | H14: 714201.867 | I14: 336167.193 | J14: 59564.361 | K14: 206244.562 | L14: 39519.401 | M14: 13140.731
A15: Germany | B15: 1272700.716 | C15: 49516.404 | D15: 63838.761 | E15: 724867.155 | F15: 29430.295 | G15: 88488.758 | H15: 483700.244 | I15: 178177.707 | J15: 57789.529 | K15: 184957.896 | L15: 12054.328 | M15: 16458.362
A16: Greece | B16: 52736.46 | C16: 1925.762 | D16: 1719.164 | E16: 33977.539 | G16: 4905.457 | H16: 46618.246 | I16: 21572.753 | J16: 2860.963 | K16: 9280.262 | L16: 912.987 | M16: 1228.563
A17: Hungary | B17: 48396.448 | D17: 2112.49 | E17: 150194.528 | G17: 1905.011 | H17: 59499.626 | I17: 1268.237 | J17: 1594.028 | K17: 14864.33 | M17: 720.166
A18: Irish Republic | B18: 497903.712 | C18: 37434.349 | D18: 57691.999 | E18: 428666.683 | F18: 37853.103 | G18: 62332.464 | H18: 676061.229 | I18: 162919.151 | J18: 124415.8 | K18: 236153.093 | L18: 16085.956 | M18: 56995.77
A19: Italy | B19: 786885.958 | C19: 8647.796 | D19: 21473.985 | E19: 260315.88 | F19: 3534.191 | G19: 26103.438 | H19: 317376.413 | I19: 62769.822 | J19: 20183.037 | K19: 150532.493 | L19: 2285.77 | M19: 5699.019
A20: Lithuania | B20: 31845.614 | D20: 720.166 | E20: 66989.237 | G20: 3066.583 | H20: 91760.343 | J20: 1988.555 | K20: 7717.344 | M20: 857.854
A21: Luxembourg | B21: 21080.108 | C21: 3357.748 | D21: 14571.889 | E21: 11096.031 | F21: 4387.649 | G21: 12826.992 | H21: 2932.589 | I21: 13047.919 | J21: 3897.649 | K21: 1641.032 | L21: 2382.447 | M21: 598.259
A22: Malta | B22: 27904.721 | C22: 959.811 | D22: 1798.155 | E22: 10385.496 | F22: 2107.695 | G22: 938.743 | H22: 17620.602 | I22: 11293.601 | K22: 9982.989 | L22: 671.089 | M22: 777.567
A23: Netherlands | B23: 654747.814 | C23: 24562.929 | D23: 25995.204 | E23: 535615.977 | F23: 28476.78 | G23: 71055.439 | H23: 331868.993 | I23: 114506.377 | J23: 22730.373 | K23: 100683.332 | L23: 6935.985 | M23: 4762.347
A24: Norway | B24: 353410.165 | C24: 5538.36 | D24: 15573.177 | E24: 162613.636 | F24: 4644.446 | G24: 18152.551 | H24: 103981.368 | I24: 37366.555 | J24: 16007.567 | K24: 128501.713 | L24: 1730.319 | M24: 2694.82
A25: Poland | B25: 182559.11 | D25: 2827.676 | E25: 568602.762 | G25: 5596.319 | H25: 526642.25 | I25: 8245.284 | J25: 1675.728 | K25: 59828.464 | M25: 1030.782
A26: Portugal | B26: 71862.651 | C26: 1557.057 | D26: 5082.816 | E26: 66216.268 | F26: 869.017 | G26: 5144.187 | H26: 57263.796 | I26: 44490.322 | J26: 3170.125 | K26: 24276.919 | L26: 4004.319 | M26: 1735.087
A27: Romania | B27: 45379.741 | C27: 1183.584 | D27: 1629.359 | E27: 211265.365 | G27: 1352.667 | H27: 101057.468 | I27: 1715.708 | J27: 1769.022 | K27: 18915.491 | M27: 1432.024
A28: Russia | B28: 87205.924 | C28: 660.119 | D28: 6638.283 | E28: 44804.188 | F28: 689.593 | G28: 4882.624 | H28: 26144.252 | I28: 6497.379 | J28: 1367.696 | K28: 32943.224 | L28: 758.252 | M28: 1188.421
A29: Slovakia | B29: 37469.932 | D29: 3728.469 | E29: 57443.461 | G29: 3899.564 | H29: 35713.914 | I29: 1892.509 | J29: 342.453 | K29: 7228.619
A30: Spain | B30: 561723.888 | C30: 25005.319 | D30: 39782.717 | E30: 263721.863 | F30: 29710.487 | G30: 52233.234 | H30: 277104.798 | I30: 295716.952 | J30: 25421.273 | K30: 90662.529 | L30: 31603.198 | M30: 11789.346
A31: Sweden | B31: 366034.175 | C31: 5850.137 | D31: 14524.253 | E31: 153664.296 | F31: 9887.657 | G31: 14159.498 | H31: 114878.677 | I31: 20372.73 | J31: 8449.4 | K31: 83844.248 | L31: 1070.536 | M31: 1559.511
A32: Switzerland | B32: 221868.074 | C32: 16676.144 | D32: 45329.177 | E32: 127176.893 | F32: 27120.195 | G32: 79928.327 | H32: 97469.884 | I32: 78862.247 | J32: 49015.353 | K32: 47663.106 | L32: 6159.789 | M32: 18499.61
A33: Turkey | B33: 40693.915 | C33: 1474.968 | D33: 2928.052 | E33: 46924.48 | G33: 3810.723 | H33: 18906.751 | I33: 19613.021 | J33: 3340.157 | K33: 13619.881 | L33: 1656.384 | M33: 1218.155
A34: Rest of Europe | B34: 128931.233 | C34: 6636.208 | D34: 7794.88 | E34: 126708.982 | F34: 4605.459 | G34: 10234.227 | H34: 103183.974 | I34: 20720.837 | J34: 10904.359 | K34: 55313.276 | L34: 3914.736 | M34: 3127.448
A35: Europe | B35: 8580282.423 | C35: 280974.08 | D35: 217474.515 | E35: 5872022.276 | F35: 267394.958 | G35: 176479.452 | H35: 4887139.516 | I35: 1595891.888 | J35: 207071.796 | K35: 1791298.729 | L35: 154810.389 | M35: 63755.314
A36: Egypt | B36: 13817.12 | C36: 1282.247 | D36: 1128.414 | E36: 9430.581 | F36: 1253.13 | G36: 1080.795 | H36: 8806.048 | I36: 4609.067 | J36: 2398.226 | K36: 2659.961 | M36: 1194.296
A37: Morocco | B37: 2865.186 | D37: 2001.419 | E37: 4337.418 | G37: 641.204 | H37: 7430.847 | I37: 1282.091 | J37: 2632.792 | K37: 2761.261 | L37: 1282.091 | M37: 1127.208
A38: Tunisia | B38: 1011.889 | C38: 480.827 | D38: 561.723 | E38: 409.793 | G38: 446.009 | H38: 2252.197 | I38: 324.442 | J38: 989.53 | K38: 511.694 | L38: 550.674 | M38: 958.512
A39: Other North Africa | B39: 4922.968 | C39: 955.609 | E39: 7915.212 | F39: 1776.207 | G39: 550.674 | H39: 6295.708 | J39: 1398.362 | K39: 4428.037 | L39: 427.53
A40: South Africa | B40: 48729.25 | C40: 8469.311 | D40: 3487.857 | E40: 40195.192 | F40: 10106.075 | G40: 2525.438 | H40: 57831.079 | I40: 34112.407 | J40: 8347.342 | K40: 9508.026 | L40: 1991.157 | M40: 862.484
A41: Nigeria | B41: 57829.511 | C41: 931.176 | E41: 23312.558 | F41: 289.366 | G41: 3516.024 | H41: 43384.715 | I41: 5925.937 | J41: 2335.46 | K41: 15828.893 | M41: 791.989
A42: Other Africa | B42: 13082.631 | C42: 1471.909 | D42: 10223.679 | E42: 17702.44 | F42: 3601.695 | G42: 4985.782 | H42: 36131.679 | I42: 23220.772 | J42: 14887.285 | K42: 10445.507 | L42: 4426.343 | M42: 5026.365
A43: Israel | B43: 55201.455 | C43: 2483.069 | D43: 1627.272 | E43: 38889.122 | F43: 449.954 | G43: 2055.402 | H43: 31321.849 | I43: 8865.333 | J43: 5384.49 | K43: 9393.253 | M43: 2562.997
A44: United Arab Emirates | B44: 37640.094 | C44: 20353.174 | D44: 28782.356 | E44: 4310.638 | F44: 7317.822 | G44: 28513.304 | H44: 6290.798 | I44: 82837.827 | J44: 24313.104 | K44: 7997.721 | L44: 6321.525 | M44: 7634.212
A45: Other Middle East | B45: 161901.152 | C45: 10535.266 | D45: 14352.655 | E45: 27138.669 | F45: 4894.639 | G45: 11939.993 | H45: 44387.291 | I45: 44660.959 | J45: 11176.642 | K45: 34573.319 | L45: 2891.055 | M45: 10088.19
A46: Hong Kong (China) | B46: 36126.333 | C46: 12425.256 | D46: 14886.616 | E46: 9246.337 | F46: 7488.486 | G46: 13069.691 | H46: 9158.157 | I46: 36997.393 | J46: 9882.695 | K46: 5374.474 | L46: 3690.795 | M46: 4968.229
A47: Other China | B47: 83261.786 | C47: 1688.575 | D47: 2204.994 | E47: 45791.329 | F47: 4138.668 | G47: 5046.595 | H47: 31498.096 | I47: 15941.562 | J47: 5943.376 | K47: 31502.684 | L47: 2811.183 | M47: 2842.503
A48: India | B48: 127044.179 | C48: 997.457 | D48: 2315.075 | E48: 101867.429 | F48: 807.516 | G48: 2773.599 | H48: 103009.466 | I48: 4944.546 | J48: 2792.213 | K48: 26502.094 | L48: 914.574 | M48: 1281.753
A49: Japan | B49: 109314.214 | C49: 791.562 | D49: 1372.31 | E49: 57234.921 | F49: 2143.235 | G49: 1911.65 | H49: 17961.088 | I49: 5913.255 | J49: 2494.53 | K49: 21062.938 | M49: 505.81
A50: Pakistan | B50: 14326.524 | C50: 787.253 | D50: 2515.958 | E50: 8668.11 | F50: 323.445 | H50: 27015.882 | I50: 1006.246 | J50: 1279.804 | K50: 6306.459 | L50: 314.2 | M50: 423.758
A51: Sri Lanka | B51: 1661.055 | E51: 4377.593 | G51: 723.58 | H51: 13534.182 | I51: 1636.519 | K51: 2063.517 | M51: 431.827
A52: Thailand | B52: 28204.552 | C52: 2055.425 | D52: 2572.361 | E52: 4385.284 | F52: 300.126 | G52: 2407.317 | H52: 11019.224 | I52: 15775.426 | J52: 1480.184 | K52: 4423.247 | L52: 488.653 | M52: 1439.948
A53: Other Asia | B53: 261099.434 | C53: 11870.893 | D53: 15955.675 | E53: 94822.308 | F53: 8979.427 | G53: 19095.667 | H53: 99182.902 | I53: 55599.926 | J53: 10162.617 | K53: 47843.975 | L53: 2543.154 | M53: 9706.152
A54: Australia | B54: 453128.499 | C54: 31000.03 | D54: 24518.858 | E54: 54272.211 | F54: 9305.553 | G54: 9540.272 | H54: 283331.714 | I54: 115675.433 | J54: 24080.752 | K54: 57348.094 | L54: 4400.712 | M54: 3360.063
A55: New Zealand | B55: 43198.996 | C55: 8797.565 | D55: 2483.009 | E55: 8102.752 | F55: 3600.888 | G55: 2168.925 | H55: 55058.826 | I55: 25964.232 | J55: 7677.41 | K55: 7298.839 | L55: 520.778 | M55: 1184.255
A56: Barbados | B56: 1304.186 | H56: 1921.042 | I56: 2435.446 | K56: 3436.995 | L56: 1034.571
A57: Jamaica | B57: 1034.571 | G57: 1138.811 | H57: 7625.656
A58: Other Caribbean | B58: 5624.935 | C58: 5125.285 | D58: 3251.244 | E58: 1138.811 | F58: 2825.163 | G58: 6404.009 | H58: 13005.106 | I58: 16448.67 | J58: 3145.009 | K58: 4982.043 | L58: 3636.197 | M58: 3503.888
A59: Brazil | B59: 167416.257 | C59: 710.188 | D59: 7443.142 | E59: 21946.832 | F59: 1581.239 | G59: 4683.502 | H59: 26791.849 | I59: 4305.422 | J59: 2328.293 | K59: 19492.752 | L59: 487.773
A60: Mexico | B60: 70799.584 | C60: 462.908 | D60: 3546.11 | E60: 7450.28 | G60: 451.672 | H60: 9706.201 | I60: 2949.598 | J60: 475.713 | K60: 10252.043 | L60: 1133.465 | M60: 958.796
A61: Other Central & Sth. America | B61: 150652.17 | C61: 787.306 | D61: 17027.401 | E61: 24068.471 | F61: 509.758 | G61: 2084.107 | H61: 29257.745 | I61: 6876.838 | J61: 4309.54 | K61: 17042.25 | M61: 3346.547
A62: Rest of the World | C62: 314.514 | D62: 6470.366 | G62: 314.2 | I62: 1326.671 | J62: 1103.221 | L62: 427.979 | M62: 1403.751

Sheet Purpose (hidden)
A1: Visits in the top 50 UK towns stayed in: by purpose
B2: Holiday | C2: Business | D2: Visiting | E2: Other
A3: London | B3: 8501466.378 | C3: 3239421.26 | D3: 3773352.82 | E3: 1269908.231
A4: Edinburgh | B4: 837572.7487 | C4: 133939.7735 | D4: 274869.357 | E4: 56526.97893
A5: Manchester | B5: 221708.93 | C5: 335752.4644 | D5: 248047.9391 | E5: 182479.3683
A6: Birmingham | B6: 158053.3283 | C6: 483247.9161 | D6: 242668.9492 | E6: 56769.28895
A7: Liverpool | B7: 194540.5129 | C7: 126042.9152 | D7: 135747.8107 | E7: 105521.1251
A8: Glasgow | B8: 261782.1574 | C8: 87979.74481 | D8: 142306.5778 | E8: 22942.53285
A9: Oxford | B9: 168860.4516 | C9: 122846.3871 | D9: 114523.4029 | E9: 49867.69591
A10: Bristol | B10: 142990.3045 | C10: 103581.248 | D10: 156251.7481 | E10: 25423.94322
A11: Brighton / Hove | B11: 216375.5752 | C11: 45810.58866 | D11: 111473.0686 | E11: 35564.51038
A12: Cambridge | B12: 126274.2048 | C12: 101099.7582 | D12: 135501.4908 | E12: 41140.15757
A13: Leeds | B13: 48044.8912 | C13: 114759.6959 | D13: 107018.9745 | E13: 29627.52599
A14: Cardiff | B14: 128393.7472 | C14: 71446.82141 | D14: 73111.09238 | E14: 24077.69277
A15: Bath | B15: 180023.7911 | C15: 14462.18466 | D15: 74838.9994 | E15: 13274.33794
A16: York | B16: 152160.3806 | C16: 37593.85251 | D16: 70455.41692 | E16: 10750.16952
A17: Nottingham | B17: 49391.26111 | C17: 86922.89409 | D17: 89196.69467 | E17: 21260.07491
A18: Aberdeen | B18: 67981.51463 | C18: 125141.431 | D18: 42318.64632 | E18: 5216.013621
A19: Inverness | B19: 193753.4307 | C19: 6557.186074 | D19: 24665.73421 | E19: 1220.364847
A20: Southampton | B20: 53977.01329 | C20: 65116.38249 | D20: 78976.14282 | E20: 22912.4067
A21: Newcastle-upon-Tyne | B21: 68833.30135 | C21: 54743.36624 | D21: 68941.86439 | E21: 8464.386099
A22: Reading | B22: 45390.27395 | C22: 69946.73366 | D22: 67107.07168 | E22: 10470.74544
A23: Canterbury | B23: 102034.7076 | C23: 23193.50781 | D23: 32515.48264 | E23: 19463.26929
A24: Bournemouth | B24: 71463.34868 | C24: 12615.24176 | D24: 67937.67388 | E24: 19129.03003
A25: Windsor | B25: 54847.69807 | C25: 47446.0822 | D25: 50490.64597 | E25: 12908.7354
A26: Coventry | B26: 35982.9871 | C26: 46956.80514 | D26: 52335.69395 | E26: 19454.72614
A27: Sheffield | B27: 20830.21517 | C27: 45273.77206 | D27: 64907.80935 | E27: 20307.32124
A28: Plymouth | B28: 77464.62167 | C28: 21661.77478 | D28: 35654.37422 | E28: 12763.83809
A29: Leicester | B29: 22968.06515 | C29: 47488.84847 | D29: 65093.66648 | E29: 10550.45198
A30: Luton | B30: 15916.7369 | C30: 49301.95606 | D30: 57379.51267 | E30: 19367.21456
A31: Dover | B31: 57577.80105 | C31: 41887.80354 | D31: 23900.30355 | E31: 14089.11244
A32: Northampton | B32: 13164.85767 | C32: 54996.50928 | D32: 53536.51631 | E32: 12854.33083
A33: Portsmouth / Southsea | B33: 48204.06861 | C33: 25424.69032 | D33: 44730.46874 | E33: 15870.11749
A34: Maidstone | B34: 29785.97215 | C34: 37578.59962 | D34: 45150.96099 | E34: 7314.707837
A35: Chester | B35: 45418.15239 | C35: 21533.67507 | D35: 43318.58618 | E35: 8719.709728
A36: Salisbury | B36: 82254.7006 | C36: 5410.095015 | D36: 26305.01794 | E36: 2900.029794
A37: Exeter | B37: 49881.18615 | C37: 22543.07913 | D37: 27515.76434 | E37: 10126.91561
A38: Stratford-upon-Avon | B38: 56563.00999 | C38: 14692.13432 | D38: 25311.37614 | E38: 8499.169683
A39: Fort William | B39: 97751.73321 | D39: 4902.072817
A40: Derby | B40: 11927.65107 | C40: 49612.89244 | D40: 35033.51886 | E40: 1266.435511
A41: Perth | B41: 62089.27044 | C41: 2952.121316 | D41: 31655.49433 | E41: 151.526
A42: Norwich | B42: 23577.8339 | C42: 19245.38381 | D42: 49543.25413 | E42: 3430.996546
A43: Eastbourne | B43: 54171.50373 | C43: 4533.284414 | D43: 23088.10776 | E43: 12672.9067
A44: Guildford | B44: 32005.69016 | C44: 17935.59515 | D44: 36262.89111 | E44: 3436.155516
A45: Stirling | B45: 63929.35288 | C45: 1856.82631 | D45: 21823.83662 | E45: 1226.489444
A46: Colchester | B46: 24252.03652 | C46: 17068.93886 | D46: 39773.48188 | E46: 5004.361197
A47: Winchester | B47: 35992.03615 | C47: 14188.82556 | D47: 29937.59006 | E47: 5121.735362
A48: Hastings | B48: 47752.9175 | C48: 4642.64946 | D48: 26127.87371 | E48: 6639.455165
A49: Bradford | B49: 16248.84003 | C49: 31802.97665 | D49: 32831.37824 | E49: 1297.907817
A50: Ipswich | B50: 26670.26701 | C50: 22986.24598 | D50: 27276.43791 | E50: 3021.629358
A51: Warwick | B51: 22678.03577 | C51: 30054.11113 | D51: 20461.25819 | E51: 5832.523145
A52: Swansea | B52: 28025.32973 | C52: 12454.48687 | D52: 33695.13709 | E52: 3315.206254

Sheet Visits and Spending (hidden)
A2: Visits and spending in UK: by mode of travel, region of residence and purpose of visit 2013
A3: Region/Purpose | B3: Air | D3: Sea | F3: Channel Tunnel
B4: Visits | C4: Spending | D4: Visits | E4: Spending | F4: Visits | G4: Spending
A5: North America
A6: Holiday | B6: 1061380.808 | C6: 1045023422 | D6: 104250.028 | E6: 33805080.55 | F6: 237143.471 | G6: 121068979.6
A7: Business | B7: 776585.589 | C7: 990230278.5 | D7: 7128.304 | E7: 1210256.284 | F7: 28946.146 | G7: 25443394.83
A8: Personal | B8: 935513.895 | C8: 551059294.9 | D8: 11901.937 | E8: 4796439.764 | F8: 35386.752 | G8: 16657258.58
A9: Miscellaneous | B9: 320797.698 | C9: 264262213.4 | D9: 11716.568 | E9: 18056584.25 | F9: 3610.749 | G9: 1338157.979
A10: All visits | B10: 3094277.99 | C10: 2857835066 | D10: 134996.837 | E10: 57883903.35 | F10: 305087.118 | G10: 164991165.4
A11: Europe
A12: Holiday | B12: 5663109.75 | C12: 3145447711 | D12: 1800567.935 | E12: 755973634.7 | F12: 1615053.333 | G12: 587911428
A13: Business | B13: 4044605.102 | C13: 2228895959 | D13: 1288768.082 | E13: 183578492.2 | F13: 982523.502 | G13: 199361956.5
A14: Personal | B14: 5090675.916 | C14: 1711419995 | D14: 848433.503 | E14: 256925380.5 | F14: 750993.781 | G14: 195519075.8
A15: Miscellaneous | B15: 1471675.076 | C15: 1315255355 | D15: 317929.565 | E15: 130599911.7 | F15: 220259.791 | G15: 148999034.8
A16: All visits | B16: 16270065.84 | C16: 8412860549 | D16: 4255699.085 | E16: 1356371320 | F16: 3568830.407 | G16: 1132900621
A17: Other Countries
A18: Holiday | B18: 1584008.118 | C18: 2397445345 | D18: 207192.552 | E18: 121010364.4 | F18: 453503.16 | G18: 240553061.5
A19: Business | B19: 775665.993 | C19: 1361657628 | D19: 7610.883 | E19: 3424239.8 | F19: 33498.029 | G19: 20391839.9
A20: Personal | B20: 1562544.553 | C20: 1712346938 | D20: 25626.281 | E20: 24740260.91 | F20: 65693.121 | G20: 50715728.16
A21: Miscellaneous | B21: 435050.737 | C21: 998438618.1 | D21: 19019.51 | E21: 67746642.99 | F21: 14867.771 | G21: 17785019.98
A22: All visits | B22: 4357269.401 | C22: 6480936538 | D22: 259449.226 | E22: 216921508.1 | F22: 567562.081 | G22: 331526607.5

Sheet 4.03 (hidden)
A1: 4.03 | B1: Visits to and spending in UK regions: by region of residence and purpose of visit 2013
C4: London | F4: Other England | I4: Total England | L4: Scotland | O4: Wales
C7: visits | D7: spending | F7: visits | G7: spending | I7: visits | J7: spending | L7: visits | M7: spending | O7: visits | P7: spending
C8: (thousands) | D8: (£ million) | F8: (thousands) | G8: (£ million) | I8: (thousands) | J8: (£ million) | L8: (thousands) | M8: (£ million) | O8: (thousands) | P8: (£ million)
A11: North America
A12: Holiday | C12: 1061.680198 | D12: 688.0138742 | F12: 403.3023449 | G12: 245.5465215 | I12: 1251.797743 | J12: 933.5603956 | L12: 232.8493745 | M12: 226.0801636 | O12: 65.12369362 | P12: 24.44182902
A13: of which inclusive tour | C13: 192.4251571 | D13: 73.42151479 | F13: 59.77051978 | G13: 37.73974118 | I13: 214.9963037 | J13: 111.161256 | L13: 48.19337767 | M13: 45.9918088 | O13: 15.81092247 | P13: 4.0346856
A14: Business | C14: 555.5085844 | D14: 703.6956792 | F14: 281.4613036 | G14: 242.4290338 | I14: 752.9194065 | J14: 946.124713 | L14: 59.23623704 | M14: 50.15599712 | O14: 13.58443985 | P14: 10.29501291
A15: Visiting friends or relatives | C15: 459.411605 | D15: 227.8664228 | F15: 525.9246568 | G15: 234.4012439 | I15: 871.1946162 | J15: 462.2676667 | L15: 128.9304844 | M15: 78.48604384 | O15: 36.10064198 | P15: 18.48900103
A16: Miscellaneous | C16: 249.7330927 | D16: 179.2578849 | F16: 84.83166153 | G16: 85.3616811 | I16: 326.5730861 | J16: 264.619566 | L16: 6.029640094 | M16: 4.514294345 | O16: 5.837567135 | P16: 4.716784038
A17: All visits | C17: 2326.33348 | D17: 1798.833861 | F17: 1295.519967 | G17: 807.7384802 | I17: 3202.484851 | J17: 2606.572341 | L17: 427.045736 | M17: 359.2364989 | O17: 120.6463426 | P17: 57.94262699
A19: Europe
A20: Holiday | C20: 5588.44194 | D20: 2577.00602 | F20: 2601.00475 | G20: 1106.016703 | I20: 7832.318997 | J20: 3683.022724 | L20: 774.0028243 | M20: 548.2627961 | O20: 234.6099057 | P20: 83.80133454
A21: of which inclusive tour | C21: 922.221016 | D21: 376.9498589 | F21: 523.8513114 | G21: 242.5183611 | I21: 1400.496185 | J21: 619.46822 | L21: 117.7310799 | M21: 87.29469222 | O21: 38.28686603 | P21: 16.06833047
A22: Business | C22: 2135.539183 | D22: 1294.741478 | F22: 3029.00659 | G22: 993.4949335 | I22: 5004.142648 | J22: 2288.236412 | L22: 295.8768609 | M22: 178.5690026 | O22: 138.1205761 | P22: 37.62650407
A23: Visiting friends or relatives | C23: 2503.034542 | D23: 818.8920303 | F23: 3699.650401 | G23: 1081.248413 | I23: 5986.261417 | J23: 1900.140444 | L23: 430.2822403 | M23: 151.4402365 | O23: 197.0462725 | P23: 45.98462984
A24: Miscellaneous | C24: 750.8300759 | D24: 602.1932676 | F24: 951.1726664 | G24: 854.1521676 | I24: 1657.104769 | J24: 1456.345435 | L24: 74.60503737 | M24: 51.38912432 | O24: 34.2188716 | P24: 17.72351029
A25: All visits | C25: 10977.84574 | D25: 5292.832797 | F25: 10280.83441 | G25: 4034.912218 | I25: 20479.82783 | J25: 9327.745015 | L25: 1574.766963 | M25: 929.6611595 | O25: 603.9956258 | P25: 185.1359787
A27: - of which EU
A28: Holiday | C28: 4955.160204 | D28: 2129.272166 | F28: 2393.158502 | G28: 987.002634 | I28: 7034.449314 | J28: 3116.2748 | L28: 668.7326677 | M28: 474.8398128 | O28: 225.55066 | P28: 79.28249456
A29: of which inclusive tour | C29: 873.8512437 | D29: 344.6267449 | F29: 500.4648623 | G29: 225.1924022 | I29: 1331.697079 | J29: 569.8191472 | L29: 104.3206121 | M29: 74.25997563 | O29: 38.07799603 | P29: 15.91230882
A30: Business | C30: 1830.663848 | D30: 1038.403792 | F30: 2840.172373 | G30: 892.2283724 | I30: 4536.548598 | J30: 1930.632165 | L30: 236.3088485 | M30: 116.7475508 | O30: 128.2003362 | P30: 34.29231685
A31: Visiting friends or relatives | C31: 2273.078266 | D31: 687.9619583 | F31: 3438.578929 | G31: 973.7946894 | I31: 5517.652783 | J31: 1661.756648 | L31: 375.4142138 | M31: 127.0815669 | O31: 185.2978882 | P31: 42.13247388
A32: Miscellaneous | C32: 592.9045685 | D32: 447.6581003 | F32: 813.7354937 | G32: 706.9081067 | I32: 1372.989506 | J32: 1154.566207 | L32: 65.21816797 | M32: 44.83972039 | O32: 33.64376295 | P32: 15.29987226
A33: All visits | C33: 9651.806887 | D33: 4303.296017 | F33: 9485.645298 | G33: 3559.933803 | I33: 18461.6402 | J33: 7863.22982 | L33: 1345.673898 | M33: 763.5086509 | O33: 572.6926474 | P33: 171.0071575
A35: - of which EU15
A36: Holiday | C36: 4556.179522 | D36: 1941.719951 | F36: 2193.909884 | G36: 906.1042462 | I36: 6458.366828 | J36: 2847.824197 | L36: 628.7333856 | M36: 458.6424644 | O36: 215.4660824 | P36: 74.73260622
A37: of which inclusive tour | C37: 806.622541 | D37: 321.3316195 | F37: 462.5147938 | G37: 210.164374 | I37: 1227.519211 | J37: 531.4959935 | L37: 92.57121909 | M37: 68.84960628 | O37: 37.51031603 | P37: 15.22257762
A38: Business | C38: 1558.903112 | D38: 900.3300514 | F38: 1860.11503 | G38: 733.0797006 | I38: 3321.819031 | J38: 1633.409752 | L38: 184.4542836 | M38: 107.368257 | O38: 88.02431189 | P38: 28.97401471
A39: Visiting friends or relatives | C39: 1841.588284 | D39: 523.7984833 | F39: 2802.125618 | G39: 779.5703219 | I39: 4469.46496 | J39: 1303.368805 | L39: 313.0088368 | M39: 104.347068 | O39: 169.2630615 | P39: 37.64133308
A40: Miscellaneous | C40: 519.5791413 | D40: 374.8930691 | F40: 702.0277838 | G40: 540.1514417 | I40: 1194.4627 | J40: 915.0445109 | L40: 57.62235102 | M40: 35.01163715 | O40: 28.74316541 | P40: 7.229276878
A41: All visits | C41: 8476.250059 | D41: 3740.741555 | F41: 7558.178315 | G41: 2958.905711 | I41: 15444.11352 | J41: 6699.647266 | L41: 1183.818857 | M41: 705.3694265 | O41: 501.4966212 | P41: 148.5772309
A43: - of which EU Other
A44: Holiday | C44: 398.9806819 | D44: 187.5522148 | F44: 199.2486176 | G44: 80.89838777 | I44: 576.0824859 | J44: 268.4506025 | L44: 39.99928204 | M44: 16.19734839 | O44: 10.08457766 | P44: 4.549888339
A45: of which inclusive tour | C45: 67.2287027 | D45: 23.29512541 | F45: 37.95006846 | G45: 15.02802824 | I45: 104.1778672 | J45: 38.32315365 | L45: 11.749393 | M45: 5.410369348 | O45: 0.56768 | P45: 0.6897312
A46: Business | C46: 271.7607357 | D46: 138.073741 | F46: 980.0573436 | G46: 159.1486718 | I46: 1214.729567 | J46: 297.2224128 | L46: 51.85456482 | M46: 9.379293811 | O46: 40.17602427 | P46: 5.318302143
A47: Visiting friends or relatives | C47: 431.4899827 | D47: 164.163475 | F47: 636.4533114 | G47: 194.2243675 | I47: 1048.187824 | J47: 358.3878425 | L47: 62.40537699 | M47: 22.73449896 | O47: 16.03482669 | P47: 4.491140803
A48: Miscellaneous | C48: 73.32542722 | D48: 72.76503123 | F48: 111.70771 | G48: 166.756665 | I48: 178.5268051 | J48: 239.5216962 | L48: 7.595816955 | M48: 9.828083242 | O48: 4.900597544 | P48: 8.070595382
A49: All visits | C49: 1175.556828 | D49: 562.554462 | F49: 1927.466982 | G49: 601.028092 | I49: 3017.526682 | J49: 1163.582554 | L49: 161.8550408 | M49: 58.13922441 | O49: 71.19602616 | P49: 22.42992667
A51: Other Countries
A52: Holiday | C52: 1851.34424 | D52: 2123.177989 | F52: 614.9776694 | G52: 455.181647 | I52: 2158.04403 | J52: 2578.359636 | L52: 213.3389893 | M52: 119.923073 | O52: 69.13121863 | P52: 42.02562424
A53: of which inclusive tour | C53: 368.6152644 | D53: 182.1188604 | F53: 69.88634006 | G53: 34.09093583 | I53: 400.0962193 | J53: 216.2097962 | L53: 29.2509204 | M53: 16.9011953 | O53: 12.27377761 | P53: 4.754170742
A54: Business | C54: 548.3734932 | D54: 932.9370565 | F54: 303.6681734 | G54: 369.4320643 | I54: 782.6471576 | J54: 1302.369121 | L54: 47.61140864 | M54: 67.92475878 | O54: 11.85199854 | P54: 9.938133129
A55: Visiting friends or relatives | C55: 810.9066731 | D55: 718.0561894 | F55: 920.2734899 | G55: 836.7442838 | I55: 1529.573753 | J55: 1554.800473 | L55: 162.2721102 | M55: 163.1403862 | O55: 69.29745735 | P55: 50.87713963
A56: Miscellaneous | C56: 269.3450628 | D56: 390.6194029 | F56: 214.027799 | G56: 636.5908835 | I56: 448.9357912 | J56: 1027.210286 | L56: 18.3742695 | M56: 40.35377607 | O56: 9.245999876 | P56: 7.091251107
A57: All visits | C57: 3479.96947 | D57: 4164.790637 | F57: 2052.947132 | G57: 2297.948879 | I57: 4919.200732 | J57: 6462.739516 | L57: 441.5967776 | M57: 391.341994 | O57: 159.5266744 | P57: 109.9321481
A59: Total World
A60: Holiday | C60: 8501.466378 | D60: 5388.197883 | F60: 3619.284765 | G60: 1806.744872 | I60: 11242.16077 | J60: 7194.942755 | L60: 1220.191188 | M60: 894.2660327 | O60: 368.8648179 | P60: 150.2687878
A61: of which inclusive tour | C61: 1483.261437 | D61: 632.4902341 | F61: 653.5081712 | G61: 314.3490381 | I61: 2015.588708 | J61: 946.8392722 | L61: 195.175378 | M61: 150.1876963 | O61: 66.37156612 | P61: 24.85718681
A62: Business | C62: 3239.42126 | D62: 2931.374214 | F62: 3614.136067 | G62: 1605.356032 | I62: 6539.709212 | J62: 4536.730246 | L62: 402.7245066 | M62: 296.6497585 | O62: 163.5570144 | P62: 57.85965011
A63: Visiting friends or relatives | C63: 3773.35282 | D63: 1764.814643 | F63: 5145.848548 | G63: 2152.393941 | I63: 8387.029786 | J63: 3917.208584 | L63: 721.4848349 | M63: 393.0666665 | O63: 302.4443719 | P63: 115.3507705
A64: Miscellaneous | C64: 1269.908231 | D64: 1172.070555 | F64: 1250.032127 | G64: 1576.104732 | I64: 2432.613646 | J64: 2748.175288 | L64: 99.00894696 | M64: 96.25719473 | O64: 49.30243861 | P64: 29.53154544
A65: All visits | C65: 16784.14869 | D65: 11256.4573 | F65: 13629.30151 | G65: 7140.599577 | I65: 28601.51341 | J65: 18397.05687 | L65: 2443.409477 | M65: 1680.239652 | O65: 884.1686428 | P65: 353.0107538

Sheet 4.05 (hidden)
E1: CAN BE WORKED OUT
A2: 4.05 | B2: Average stay and spend per visit and per day: by purpose of visit and country of residence 2013 | O2: 4.05 | P2: Average stay and spend per visit and per day: by purpose of visit and country of residence 2013
C5: Holiday visits | K5: Business visits | Q5: Visiting friends or relatives | U5: Miscellaneous | Y5: All visits
C8: total | G8: of which inclusive tour
C11: average | G11: average | K11: average | Q11: average | U11: average | Y11: average
C14: stay | D14: spend per | E14: spend per | G14: stay | H14: spend per | I14: spend per | K14: stay | L14: spend per | M14: spend per | Q14: stay | R14: spend per | S14: spend per | U14: stay | V14: spend per | W14: spend per | Y14: stay | Z14: spend per | AA14: spend per
C15: (nights) | D15: visit (£) | E15: day (£) | G15: (nights) | H15: visit (£) | I15: day (£) | K15: (nights) | L15: visit (£) | M15: day (£) | Q15: (nights) | R15: visit (£) | S15: day (£) | U15: (nights) | V15: visit (£) | W15: day (£) | Y15: (nights) | Z15: visit (£) | AA15: day (£)
A18: Canada | C18: 8.906272584 | D18: 784.2477278 | E18: 88.05566194 | G18: 7.190358778 | H18: 756.2180435 | I18: 105.1711141 | K18: 6.475299654 | L18: 1195.022521 | M18: 184.5509219 | O18: Canada | Q18: 11.92213821 | R18: 551.802218 | S18: 46.28382998 | U18: 9.505595107 | V18: 479.0462298 | W18: 50.39623763 | Y18: 9.88155459 | Z18: 713.3687327 | AA18: 72.19195383
A19: USA | C19: 7.283390728 | D19: 873.0827108 | E19: 119.8731118 | G19: 6.735651446 | H19: 687.8177358 | I19: 102.115993 | K19: 5.29008033 | L19: 1258.622446 | M19: 237.9212351 | O19: USA | Q19: 11.00200213 | R19: 596.1853647 | S19: 54.18880651 | U19: 9.571860646 | V19: 937.0337448 | W19: 97.8946288 | Y19: 7.896058596 | Z19: 911.0563187 | AA19: 115.3811497
A20: North America | C20: 7.606891732 | D20: 855.3745787 | E20: 112.4473187 | G20: 6.808184309 | H20: 698.7286445 | I20: 102.6306887 | K20: 5.426482542 | L20: 1251.302981 | M20: 230.5919114 | O20: North America | Q20: 11.28507926 | R20: 582.5310215 | S20: 51.61957733 | U20: 9.558385716 | V20: 843.9031402 | W20: 88.28929542 | Y20: 8.313934976 | Z20: 869.4501039 | AA20: 104.5774482
A21: Austria | C21: 6.159689501 | D21: 632.1801008 | E21: 102.631813 | G21: 5.092132035 | H21: 662.9315989 | I21: 130.1874332 | K21: 2.910252587 | L21: 465.7284998 | M21: 160.0302674 | O21: Austria | Q21: 5.567579268 | R21: 269.0413306 | S21: 48.3228559 | U21: 7.063677824 | V21: 674.6317873 | W21: 95.50715705 | Y21: 5.282914638 | Z21: 514.3497352 | AA21: 97.36097788
A22: Belgium | C22: 3.350161208 | D22: 406.2699681 | E22: 121.2687817 | G22: 2.846241213 | H22: 361.5517264 | I22: 127.0277884 | K22: 2.133379372 | L22: 239.6200117 | M22: 112.3194565 | O22: Belgium | Q22: 4.623667367 | R22: 253.5584178 | S22: 54.83924288 | U22: 1.767585478 | V22: 311.6999125 | W22: 176.3422003 | Y22: 3.125271617 | Z22: 324.6111775 | AA22: 103.866549
A23: Bulgaria | C23: 8.301719171 | D23: 629.4615829 | E23: 75.82303977 | G23: 5 | H23: 786 | I23: 157.2 | K23: 3.21747163 | L23: 266.057343 | M23: 82.69143402 | O23: Bulgaria | Q23: 16.08077679 | R23: 367.3216729 | S23: 22.84228415 | U23: 9.39369648 | V23: 788.5501437 | W23: 83.94460535 | Y23: 8.468557679 | Z23: 397.7305478 | AA23: 46.96555929
A24: Czech Republic | C24: 6.969773252 | D24: 356.1619936 | E24: 51.10094414 | G24: 5.346011235 | H24: 307.4007921 | I24: 57.50096261 | K24: 6.743527287 | L24: 259.8822055 | M24: 38.53802238 | O24: Czech Republic | Q24: 9.945422261 | R24: 251.1568474 | S24: 25.2535127 | U24: 14.84506168 | V24: 907.6665191 | W24: 61.1426573 | Y24: 8.217224809 | Z24: 340.9932708 | AA24: 41.49737639
A25: Cyprus | C25: 9.030486242 | D25: 752.304391 | E25: 83.30718533 | G25: 4 | H25: 512 | I25: 128 | K25: 6.21220398 | L25: 1379.655389 | M25: 222.0879085 | O25: Cyprus | Q25: 10.89775327 | R25: 900.9477951 | S25: 82.67280168 | U25: 29.44337848 | V25: 2000.854442 | W25: 67.95600725 | Y25: 11.8883551 | Z25: 995.1598189 | AA25: 83.70878985
A26: Denmark | C26: 4.745908206 | D26: 683.6041936 | E26: 144.0407534 | G26: 4.086739004 | H26: 497.8042847 | I26: 121.809659 | K26: 2.598161278 | L26: 560.8425226 | M26: 215.8613198 | O26: Denmark | Q26: 5.272368676 | R26: 344.1780135 | S26: 65.27958013 | U26: 6.712626904 | V26: 1001.494655 | W26: 149.1956383 | Y26: 4.471343794 | Z26: 625.6369433 | AA26: 139.9214581
A27: Finland | C27: 4.99790727 | D27: 580.5532397 | E27: 116.159266 | G27: 4.794006668 | H27: 622.9372499 | I27: 129.9408393 | K27: 3.088008237 | L27: 662.0200723 | M27: 214.3841666 | O27: Finland | Q27: 6.970470088 | R27: 333.2783373 | S27: 47.81289255 | U27: 21.47771272 | V27: 701.8828961 | W27: 32.67959235 | Y27: 6.260777646 | Z27: 555.07423 | AA27: 88.65899116
A28: France | C28: 4.168924981 | D28: 355.9972043 | E28: 85.39304638 | G28: 4.18493073 | H28: 379.4345769 | I28: 90.66687154 | K28: 2.847182882 | L28: 310.0106519 | M28: 108.8832944 | O28: France | Q28: 6.892658335 | R28: 305.0146681 | S28: 44.25210902 | U28: 6.891181502 | V28: 519.9312296 | W28: 75.44877892 | Y28: 4.84814055 | Z28: 343.0296698 | AA28: 70.75489382
A29: Germany | C29: 6.1191429 | D29: 486.8851083 | E29: 79.56753361 | G29: 4.997547138 | H29: 508.6209603 | I29: 101.7741196 | K29: 3.556989425 | L29: 425.014685 | M29: 119.4871939 | O29: Germany | Q29: 6.88865613 | R29: 266.3297031 | S29: 38.66206965 | U29: 11.52348507 | V29: 854.3654244 | W29: 74.14123587 | Y29: 5.976230594 | Z29: 445.0050689 | AA29: 74.46249971
A30: Greece | C30: 6.104499205 | D30: 676.8338627 | E30: 110.8745927 | G30: 4.882862049 | H30: 1208.280063 | I30: 247.4532459 | K30: 4.127477574 | L30: 891.3469255 | M30: 215.9543958 | O30: Greece | Q30: 11.74006374 | R30: 504.647123 | S30: 42.98504114 | U30: 22.59008973 | V30: 3307.810648 | W30: 146.4275125 | Y30: 8.984245009 | Z30: 824.0010646 | AA30: 91.7162281
A31: Hungary | C31: 5.171270083 | D31: 363.9286183 | E31: 70.37509403 | G31: 4.425282037 | H31: 368.6594017 | I31: 83.30754936 | K31: 4.096551759 | L31: 158.6737456 | M31: 38.73348975 | O31: Hungary | Q31: 7.096393084 | R31: 206.4296631 | S31: 29.08937832 | U31: 27.66146823 | V31: 1288.281467 | W31: 46.57314123 | Y31: 6.265845838 | Z31: 268.9898582 | AA31: 42.92953659
A32: Irish Republic | C32: 3.94677921 | D32: 385.4678161 | E32: 97.66642509 | G32: 3.67414408 | H32: 406.0747513 | I32: 110.522272 | K32: 2.953056826 | L32: 390.4414069 | M32: 132.2160154 | O32: Irish Republic | Q32: 5.112029367 | R32: 273.3897692 | S32: 53.47969457 | U32: 2.151316295 | V32: 277.7777951 | W32: 129.1199234 | Y32: 3.964254821 | Z32: 327.5659572 | AA32: 82.62989441
A33: Italy | C33: 5.796934722 | D33: 477.5668326 | E33: 82.38264799 | G33: 5.498752896 | H33: 613.4992728 | I33: 111.5706205 | K33: 4.316091198 | L33: 545.8483352 | M33: 126.4682117 | O33: Italy | Q33: 7.02543431 | R33: 301.7090043 | S33: 42.94524594 | U33: 16.83527154 | V33: 1014.635109 | W33: 60.2684136 | Y33: 6.884812758 | Z33: 498.2967321 | AA33: 72.37622134
A34: Lithuania | C34: 7.89962958 | D34: 477.0432371 | E34: 60.38805139 | G34: 6 | H34: 576 | I34: 96 | K34: 2.036536522 | L34: 93.91199025 | M34: 46.11358021 | O34: Lithuania | Q34: 8.240454666 | R34: 304.3256564 | S34: 36.93068753 | U34: 42.97862487 | V34: 1783.716839 | W34: 41.50241765 | Y34: 7.519126418 | Z34: 321.7451641 | AA34: 42.79023203
A35: Luxembourg | C35: 4.458305585 | D35: 584.9992235 | E35: 131.2155958 | G35: 5.414766403 | H35: 814.6116791 | I35: 150.4426264 | K35: 1.925170762 | L35: 361.4943718 | M35: 187.7726272 | O35: Luxembourg | Q35: 5.556985187 | R35: 440.4872973 | S35: 79.26731536 | U35: 2.73009937 | V35: 457.2676162 | W35: 167.4911988 | Y35: 3.828136306 | Z35: 478.3719956 | AA35: 124.9621114
A36: Malta | C36: 6.036359012 | D36: 641.6237778 | E36: 106.2931771 | G36: 4.528421627 | H36: 652.1861337 | I36: 144.0206296 | K36: 9.204239315 | L36: 907.8315051 | M36: 98.63188842 | O36: Malta | Q36: 8.187605275 | R36: 410.4170667 | S36: 50.1266308 | U36: 14.52692679 | V36: 784.9249595 | W36: 54.03241655 | Y36: 8.426368084 | Z36: 624.1996098 | AA36: 74.07694555
A37: Netherlands | C37: 5.498758687 | D37: 441.0918606 | E37: 80.21662447 | G37: 3.87999203 | H37: 456.3980295 | I37: 117.6285998 | K37: 2.489041789 | L37: 365.9198627 | M37: 147.012342 | O37: Netherlands | Q37: 5.718684674 | R37: 261.9062692 | S37: 45.79834072 | U37: 6.130691258 | V37: 476.5167565 | W37: 77.72643189 | Y37: 4.59476133 | Z37: 374.5855508 | AA37: 81.52448493
A38: Norway | C38: 4.268275474 | D38: 616.6115972 | E38: 144.463871 | G38: 4.134234621 | H38: 805.4637795 | I38: 194.8277863 | K38: 2.702672166 | L38: 787.1996195 | M38: 291.2671502 | O38: Norway | Q38: 6.55963987 | R38: 457.800923 | S38: 69.79055742 | U38: 4.751659492 | V38: 654.9317638 | W38: 137.8322173 | Y38: 4.426510783 | Z38: 630.4115011 | AA38: 142.4172519
A39: Poland | C39: 7.536599523 | D39: 374.7097467 | E39: 49.71867558 | G39: 4.647944324 | H39: 304.0343871 | I39: 65.41265686 | K39: 3.652567762 | L39: 237.6344977 | M39: 65.05957268 | O39: Poland | Q39: 12.13552715 | R39: 275.4350959 | S39: 22.69659097 | U39: 31.36958319 | V39: 1566.295329 | W39: 49.93038382 | Y39: 8.780413185 | Z39: 330.8952696 | AA39: 37.68561486
A40: Portugal | C40: 5.729228961 | D40: 433.0982136 | E40: 75.59450261 | G40: 3.366367257 | H40: 361.4639773 | I40: 107.375087 | K40: 4.380406574 | L40: 474.0729653 | M40: 108.2257907 | O40: Portugal | Q40: 9.836255554 | R40: 263.9303709 | S40: 26.83240278 | U40: 9.152909458 | V40: 624.2138959 | W40: 68.19841262 | Y40: 7.256390785 | Z40: 401.4058712 | AA40: 55.31756531
A41: Romania | C41: 9.367941117 | D41: 662.6903005 | E41: 70.74022906 | G41: 4.671977976 | H41: 1017.480352 | I41: 217.7836362 | K41: 3.800781276 | L41: 223.9803726 | M41: 58.93008736 | O41: Romania | Q41: 20.3027579 | R41: 479.4232607 | S41: 23.61370131 | U41: 17.86467232 | V41: 1406.72882 | W41: 78.7436117 | Y41: 9.711105312 | Z41: 410.428601 | AA41: 42.26383999
A42: Russia | C42: 7.958830678 | D42: 1080.558412 | E42: 135.7684886 | G42: 7.693271618 | H42: 921.1899357 | I42: 119.739687 | K42: 4.141721745 | L42: 888.7260429 | M42: 214.5788872 | O42: Russia | Q42: 11.74927322 | R42: 1297.146342 | S42: 110.4022621 | U42: 17.9621943 | V42: 1898.973618 | W42: 105.720581 | Y42: 9.294945193 | Z42: 1203.379127 | AA42: 129.4659734
A43: Slovakia | C43: 4.818430817 | D43: 324.0108979 | E43: 67.24406975 | G43: 3.979901039 | H43: 307.3017015 | I43: 77.21340265 | K43: 2.509132 | L43: 121.2172135 | M43: 48.3104171 | O43: Slovakia | Q43: 17.60961661 | R43: 317.6670418 | S43: 18.03940704 | U43: 10.3447054 | V43: 366.6261163 | W43: 35.44094318 | Y43: 7.415925296 | Z43: 240.2526969 | AA43: 32.39686044
A44: Spain | C44: 6.455228182 | D44: 483.6530683 | E44: 74.92424042 | G44: 5.549589621 | H44: 508.7144357 | I44: 91.66703674 | K44: 4.191553212 | L44: 649.0338105 | M44: 154.8432711 | O44: Spain | Q44: 10.29951364 | R44: 362.6648398 | S44: 35.21184131 | U44: 21.44573122 | V44: 1195.302215 | W44: 55.73613707 | Y44: 8.524424944 | Z44: 530.6975935 | AA44: 62.25611663
A45: Sweden | C45: 4.401446376 | D45: 567.3871022 | E45: 128.9092389 | G45: 4.722308213 | H45: 769.6464461 | I45: 162.9809854 | K45: 4.701250259 | L45: 656.7650829 | M45: 139.7000897 | O45: Sweden | Q45: 6.560645439 | R45: 377.5564088 | S45: 57.54866839 | U45: 8.97602809 | V45: 650.4753917 | W45: 72.46806552 | Y45: 5.357188067 | Z45: 562.0863873 | AA45: 104.9219068
A46: Switzerland | C46: 5.508553195 | D46: 725.0357133 | E46: 131.6199894 | G46: 5.875967996 | H46: 697.887815 | I46: 118.7698462 | K46: 2.626309741 | L46: 600.6245225 | M46: 228.6952346 | O46: Switzerland | Q46: 5.219961799 | R46: 390.3720363 | S46: 74.78446228 | U46: 9.888917537 | V46: 951.2563884 | W46: 96.19418757 | Y46: 4.989620511 | Z46: 616.9229311 | AA46: 123.6412528
A47: Turkey | C47: 7.639340944 | D47: 915.1864063 | E47: 119.799131 | G47: 5.250462077 | H47: 1021.545119 | I47: 194.5628982 | K47: 4.544551108 | L47: 775.5338918 | M47: 170.6513742 | O47: Turkey | Q47: 11.69301635 | R47: 616.7290959 | S47: 52.74337072 | U47: 23.3159098 | V47: 2088.296554 | W47: 89.56530419 | Y47: 9.398559214 | Z47: 913.7016523 | AA47: 97.21720442
A48: Rest of Europe | C48: 7.635704266 | D48: 729.2536608 | E48: 95.50574976 | G48: 4.75947839 | H48: 761.2179317 | I48: 159.9372598 | K48: 5.023031033 | L48: 590.8367268 | M48: 117.6255378 | O48: Rest of Europe | Q48: 12.10350303 | R48: 506.4465129 | S48: 41.84296991 | U48: 21.20664028 | V48: 1550.284251 | W48: 73.103718 | Y48: 9.873323722 | Z48: 732.5032771 | AA48: 74.1901408
A49: Europe | C49: 5.256367134 | D49: 482.9113436 | E49: 91.87169224 | G49: 4.429158827 | H49: 473.2458953 | I49: 106.8478042 | K49: 3.371299141 | L49: 413.5337446 | M49: 122.6630232 | O49: Europe | Q49: 7.780503555 | R49: 323.4426117 | S49: 41.57090982 | U49: 10.65688498 | V49: 793.5133716 | W49: 74.46016105 | Y49: 5.913574568 | Z49: 446.3564216 | AA49: 75.47996841
A50: - of which EU | C50: 5.231196498 | D50: 455.884566 | E50: 87.14728385 | G50: 4.384206777 | H50: 455.519416 | I50: 103.9000757 | K50: 3.384424771 | L50: 381.5744844 | M50: 112.7442653 | O50: - of which EU | Q50: 7.778386471 | R50: 306.8751212 | S50: 39.45228517 | U50: 10.89761277 | V50: 751.9786674 | W50: 69.00398129 | Y50: 5.91184068 | Z50: 417.4876458 | AA50: 70.61889324
A51: - of which EU15 | C51: 5.054705248 | D51: 455.2405203 | E51: 90.06272333 | G51: 4.341446247 | H51: 461.8234041 | I51: 106.3754744 | K51: 3.194500526 | L51: 425.8406987 | M51: 133.3043132 | O51: - of which EU15 | Q51: 6.819525442 | R51: 299.0617874 | S51: 43.85375346 | U51: 8.933719549 | V51: 667.6971021 | W51: 74.73898172 | Y51: 5.413652248 | Z51: 423.1291544 | AA51: 78.15964805
A52: - of which EU Other | C52: 7.342533677 | D52: 463.5891845 | E52: 63.13749516 | G52: 4.877550473 | H52: 382.788026 | I52: 78.47956225 | K52: 4.003255692 | L52: 237.3417023 | M52: 59.28717037 | O52: - of which EU Other | Q52: 12.09323766 | R52: 342.0349321 | S52: 28.2831564 | U52: 26.18515573 | V52: 1408.052043 | W52: 53.77291076 | Y52: 8.712815625 | Z52: 385.7692778 | AA52: 44.27607497
A53: Egypt | C53: 9.901681937 | D53: 1884.977072 | E53: 190.3693821 | G53: 8.535680548 | H53: 1574.698673 | I53: 184.4842557 | K53: 7.904018664 | L53: 1973.241168 | M53: 249.650368 | O53: Egypt | Q53: 15.50636763 | R53: 1375.839948 | S53: 88.72741711 | U53: 8.76722751 | V53: 997.6418451 | W53: 113.7921702 | Y53: 11.17643964 | Z53: 1666.076135 | AA53: 149.0703828
A54: Morocco | C54: 3.825156141 | D54: 956.3871148 | E54: 250.0256407 | G54: . | H54: . | I54: . | K54: 14.03118212 | L54: 3004.717056 | M54: 214.1456814 | O54: Morocco | Q54: 9.077300447 | R54: 1047.813468 | S54: 115.4322779 | U54: 24.69353764 | V54: 2348.280544 | W54: 95.09696741 | Y54: 12.10626437 | Z54: 1655.589202 | AA54: 136.7547537
A55: Tunisia | C55: 5.776882156 | D55: 558.9024858 | E55: 96.74811961 | G55: . | H55: . | I55: . | K55: 5.0846364 | L55: 1544.651281 | M55: 303.7879526 | O55: Tunisia | Q55: 15.71622181 | R55: 2178.253044 | S55: 138.5990266 | U55: 3.452429635 | V55: 1129.482892 | W55: 327.1559485 | Y55: 9.325719494 | Z55: 1473.49503 | AA55: 158.0033617
A56: Other North Africa | C56: 25.05855414 | D56: 1145.372486 | E56: 45.7078441 | G56: . | H56: . | I56: . | K56: 7.240596331 | L56: 1504.507298 | M56: 207.7877607 | O56: Other North Africa | Q56: 32.35041415 | R56: 753.6210696 | S56: 23.29556172 | U56: 28.10592748 | V56: 1505.515491 | W56: 53.56576445 | Y56: 21.16629117 | Z56: 1229.530211 | AA56: 58.08907195
A57: South Africa | C57: 10.19492726 | D57: 861.8980247 | E57: 84.54185135 | G57: 3.918888212 | H57: 327.1049258 | I57: 83.46880752 | K57: 5.191604814 | L57: 1357.454136 | M57: 261.4710064 | O57: South Africa | Q57: 19.09405636 | R57: 795.9956937 | S57: 41.68813995 | U57: 7.361406678 | V57: 1267.90937 | W57: 172.237376 | Y57: 12.81762895 | Z57: 970.6155849 | AA57: 75.72504935
A58: Nigeria | C58: 11.65473974 | D58: 1586.152802 | E58: 136.0950856 | G58: 17 | H58: 2241 | I58: 131.8235294 | K58: 8.163110387 | L58: 2868.958634 | M58: 351.4541024 | O58: Nigeria | Q58: 15.40904673 | R58: 1263.930477 | S58: 82.02522192 | U58: 11.35200575 | V58: 2077.24167 | W58: 182.9845505 | Y58: 12.26570633 | Z58: 1756.821681 | AA58: 143.230372
A59: Other Africa | C59: 11.61087732 | D59: 1400.124683 | E59: 120.587329 | G59: 2 | H59: 78 | I59: 39 | K59: 7.097118146 | L59: 1717.024373 | M59: 241.932618 | O59: Other Africa | Q59: 18.43892628 | R59: 778.4705219 | S59: 42.21886406 | U59: 14.22220697 | V59: 1294.981092 | W59: 91.05345569 | Y59: 14.64247886 | Z59: 1125.257803 | AA59: 76.8488597
A60: Israel | C60: 6.723668172 | D60: 714.948617 | E60: 106.3331204 | G60: 5.911757692 | H60: 656.2068516 | I60: 111.0002957 | K60: 3.530770119 | L60: 693.1023821 | M60: 196.3034575 | O60: Israel | Q60: 8.926024022 | R60: 441.7578814 | S60: 49.49100297 | U60: 2.149389148 | V60: 243.6990357 | W60: 113.3806021 | Y60: 6.177044651 | Z60: 594.946428 | AA60: 96.31570785
A61: United Arab Emirates | C61: 12.61899168 | D61: 2559.953525 | E61: 202.8651409 | G61: 6.099947883 | H61: 676.772791 | I61: 110.9473071 | K61: 4.920522177 | L61: 2412.098727 | M61: 490.211941 | O61: United Arab Emirates | Q61: 13.59464456 | R61: 1193.404759 | S61: 87.78491807 | U61: 24.9991149 | V61: 3282.376369 | W61: 131.2997033 | Y61: 12.89894821 | Z61: 2006.799992 | AA61: 155.5785758
A62: Other Middle East | C62: 12.10342617 | D62: 3334.322121 | E62: 275.4858065 | G62: 5.878849618 | H62: 1332.863912 | I62: 226.7218927 | K62: 7.371403639 | L62: 3673.457892 | M62: 498.3389965 | O62: Other Middle East | Q62: 23.27340653 | R62: 1758.388692 | S62: 75.55355895 | U62: 33.7381096 | V62: 3512.594439 | W62: 104.1135523 | Y62: 17.22894253 | Z62: 2978.85746 | AA62: 172.89845
A63: Hong Kong (China) | C63: 8.659661571 | D63: 1338.855559 | E63: 154.6083005 | G63: 4.9270218 | H63: 469.9825579 | I63: 95.38877174 | K63: 6.141042025 | L63: 1820.523295 | M63: 296.4518542 | O63: Hong Kong (China) | Q63: 16.30818563 | R63: 1626.55858 | S63: 99.73878253 | U63: 13.16696208 | V63: 1320.34882 | W63: 100.2774074 | Y63: 11.21177374 | Z63: 1523.888351 | AA63: 135.9185786
A64: Other China | C64: 9.720208724 | D64: 1623.842733 | E64: 167.0584222 | G64: 7.41031683 | H64: 1311.598659 | I64: 176.9962998 | K64: 9.38367009 | L64: 1786.291944 | M64: 190.361759 | O64: Other China | Q64: 15.82239932 | R64: 1411.659754 | S64: 89.21907005 | U64: 80.58469022 | V64: 5917.516385 | W64: 73.43226572 | Y64: 22.35742677 | Z64: 2299.221369 | AA64: 102.8392665
A65: India | C65: 7.935079207 | D65: 629.6470756 | E65: 79.34981606 | G65: 3.064499847 | H65: 148.1183866 | I65: 48.33362505 | K65: 29.32910884 | L65: 1978.475973 | M65: 67.4577596 | O65: India | Q65: 34.76097335 | R65: 544.9051927 | S65: 15.67577488 | U65: 55.92139278 | V65: 3116.924732 | W65: 55.73760912 | Y65: 25.53393052 | Z65: 1173.892765 | AA65: 45.97383721
A66: Japan | C66: 6.345389694 | D66: 685.1855894 | E66: 107.9816406 | G66: 4.894357815 | H66: 627.3997818 | I66: 128.1883764 | K66: 6.526174075 | L66: 1049.407549 | M66: 160.7998096 | O66: Japan | Q66: 10.10272062 | R66: 573.4230019 | S66: 56.75926549 | U66: 37.88591698 | V66: 2420.462415 | W66: 63.88818349 | Y66: 9.926843078 | Z66: 942.5592614 | AA66: 94.95055518
A67: Pakistan | C67: 16.2448621 | D67: 3139.964566 | E67: 193.2897027 | G67: . | H67: . | I67: . | K67: 17.15038467 | L67: 1733.131194 | M67: 101.0549459 | O67: Pakistan | Q67: 38.74892707 | R67: 1121.155151 | S67: 28.93383728 | U67: 36.92585561 | V67: 1599.222297 | W67: 43.30901127 | Y67: 29.16007049 | Z67: 1827.254288 | AA67: 62.66288995
A68: Sri Lanka | C68: 11.41355223 | D68: 503.5716457 | E68: 44.12050127 | G68: . | H68: . | I68: . | K68: 10.60783706 | L68: 914.2694386 | M68: 86.18811106 | O68: Sri Lanka | Q68: 28.81949641 | R68: 663.6785446 | S68: 23.02880436 | U68: 5.186207192 | V68: 838.542758 | W68: 161.6870917 | Y68: 21.4187996 | Z68: 722.9830851 | AA68: 33.75460336
A69: Thailand | C69: 11.05074537 | D69: 1750.136851 | E69: 158.3727425 | G69: 6.339469854 | H69: 1339.339196 | I69: 211.2699053 | K69: 13.06890847 | L69: 1541.190132 | M69: 117.9279918 | O69: Thailand | Q69: 16.71653758 | R69: 1001.993908 | S69: 59.94027789 | U69: 29.18543847 | V69: 3161.042314 | W69: 108.3088855 | Y69: 14.93666944 | Z69: 1566.723811 | AA69: 104.8911083
A70: Other Asia | C70: 7.111407013 | D70: 890.0440709 | E70: 125.1572395 | G70: 3.685263731 | H70: 521.4440367 | I70: 141.494361 | K70: 5.650580181 | L70: 1340.914958 | M70: 237.3057129 | O70: Other Asia | Q70: 16.66734122 | R70: 1337.148468 | S70: 80.22566111 | U70: 34.86429168 | V70: 2879.576676 | W70: 82.59386716 | Y70: 11.92318298 | Z70: 1280.577947 | AA70: 107.4023563
A71: Australia | C71: 11.79335461 | D71: 1054.064012 | E71: 89.37779344 | G71: 9.274131838 | H71: 999.330256 | I71: 107.7545881 | K71: 10.06408805 | L71: 1550.880594 | M71: 154.1004597 | O71: Australia | Q71: 17.943782 | R71: 1161.366262 | S71: 64.72249061 | U71: 9.778876392 | V71: 760.0098925 | W71: 77.71955203 | Y71: 13.98461936 | Z71: 1112.55113 | AA71: 79.55533875
A72: New Zealand | C72: 11.36633004 | D72: 899.8312609 | E72: 79.16638509 | G72: 5.902662936 | H72: 1074.090766 | I72: 181.9671524 | K72: 8.487135076 | L72: 1279.106925 | M72: 150.7112723 | O72: New Zealand | Q72: 17.13434282 | R72: 727.4444213 | S72: 42.45534416 | U72: 15.04769204 | V72: 523.9096353 | W72: 34.81661068 | Y72: 14.4064411 | Z72: 819.0514103 | AA72: 56.85313984
A73: Barbados | C73: 31 | D73: 1015 | E73: 32.74193548 | G73: . | H73: . | I73: . | K73: . | L73: . | M73: . | O73: Barbados | Q73: 37.84415933 | R73: 1117.22453 | S73: 29.52171617 | U73: 10.73850772 | V73: 153.8178851 | W73: 14.32395349 | Y73: 25.00092161 | Z73: 678.8953751 | AA73: 27.15481395
A74: Jamaica | C74: 60 | D74: 715 | E74: 11.91666667 | G74: . | H74: . | I74: . | K74: 7 | L74: 997 | M74: 142.4285714 | O74: Jamaica | Q74: 53.38538547 | R74: 447.9050314 | S74: 8.390030857 | U74: . | V74: . | W74: . | Y74: 48.69299639 | Z74: 539.9185636 | AA74: 11.08821809
A75: Other Caribbean | C75: 12.05342456 | D75: 1073.064129 | E75: 89.02566439 | G75: . | H75: . | I75: . | K75: 4.985592955 | L75: 1573.742481 | M75: 315.6580362 | O75: Other Caribbean | Q75: 20.6559104 | R75: 947.8897178 | S75: 45.88951538 | U75: 6.026666935 | V75: 289.5584352 | W75: 48.04619839 | Y75: 13.99427855 | Z75: 951.6685338 | AA75: 68.00411542
A76: Brazil | C76: 6.764831047 | D76: 864.4390697 | E76: 127.7842808 | G76: 5.058808396 | H76: 584.6761088 | I76: 115.5758556 | K76: 5.755722058 | L76: 1504.250958 | M76: 261.3487836 | O76: Brazil | Q76: 10.76380916 | R76: 772.8352348 | S76: 71.79941814 | U76: 28.60427231 | V76: 2822.455078 | W76: 98.67250064 | Y76: 8.870546051 | Z76: 1074.831995 | AA76: 121.1686394
A77: Mexico | C77: 6.046562947 | D77: 559.6541111 | E77: 92.55739434 | G77: 3.574803587 | H77: 260.6028097 | I77: 72.89989601 | K77: 5.772775512 | L77: 865.2126633 | M77: 149.8781066 | O77: Mexico | Q77: 15.63681235 | R77: 562.2230122 | S77: 35.95509108 | U77: 3.310533911 | V77: 433.2427208 | W77: 130.8679302 | Y77: 6.878429713 | Z77: 567.8601535 | AA77: 82.55665569
A78: Other Central & Sth. America | C78: 4.707046151 | D78: 548.1836436 | E78: 116.4602228 | G78: 3.496672328 | H78: 365.029707 | I78: 104.3934555 | K78: 4.592465229 | L78: 1110.04641 | M78: 241.7103569 | O78: Other Central & Sth. America | Q78: 15.75577574 | R78: 1014.194646 | S78: 64.36970562 | U78: 23.44493979 | V78: 1534.016751 | W78: 65.43061169 | Y78: 7.933477668 | Z78: 758.8707895 | AA78: 95.6542416
A79: Rest of the World | C79: 5.115355319 | D79: 640.0500024 | E79: 125.1232734 | G79: 5 | H79: 714 | I79: 142.8 | K79: 4 | L79: 65 | M79: 16.25 | O79: Rest of the World | Q79: 19.96549147 | R79: 1176.222838 | S79: 58.91279158 | U79: 13.54924689 | V79: 1343.356363 | W79: 99.14620154 | Y79: 9.620569398 | Z79: 852.2225188 | AA79: 88.58337626
A80: Other Countries | C80: 9.311837925 | D80: 1229.119287 | E80: 131.9953479 | G80: 5.144221824 | H80: 579.1149728 | I80: 112.5758166 | K80: 9.823280579 | L80: 1696.273599 | M80: 172.6789319 | O80: Other Countries | Q80: 18.9200853 | R80: 1080.985484 | S80: 57.13428173 | U80: 28.16896302 | V80: 2311.542761 | W80: 82.05991677 | Y80: 14.16329019 | Z80: 1353.3711 | AA80: 95.55485216
A81: Total World | C81: 6.230780345 | D81: 655.5863058 | E81: 105.2173676 | G81: 4.822258262 | H81: 517.5501243 | I81: 107.3252605 | K81: 4.244765759 | L81: 631.0868165 | M81: 148.6741206 | O81: Total World | Q81: 10.12511583 | R81: 485.0747364 | S81: 47.90806789 | U81: 13.44304774 | V81: 1052.418428 | W81: 78.28718967 | Y81: 7.475522952 | Z81: 635.2309519 | AA81: 84.9747845

Sheet 4.13 (hidden)
E1: THIS CAN BE WORKED OUT
A2: 4.13 | B2: Visits, nights and spending in the top 50 UK towns stayed in: by area of residence 2013
C5: North America | G5: Europe | K5: Other Countries | O5: Total World
C8: Visits | D8: Nights | E8: Spend | G8: Visits | H8: Nights | I8: Spend | K8: Visits | L8: Nights | M8: Spend | O8: Visits | P8: Nights | Q8: Spend
C9: 1000s | D9: 1000s | E9: £mil | G9: 1000s | H9: 1000s | I9: £mil | K9: 1000s | L9: 1000s | M9: £mil | O9: 1000s | P9: 1000s | Q9: £mil
A12: London | C12: 2323.838572 | D12: 12845.80806 | E12: 1797.057196 | G12: 10977.26675 | H12: 53333.65577 | I12: 5292.756068 | K12: 3478.716528 | L12: 31245.02737 | M12: 4164.497012 | O12: 16779.82185 | P12: 97424.4912 | Q12: 11254.31028
A13: Edinburgh | C13: 255.4228058 | D13: 1071.090725 | E13: 125.4735792 | G13: 784.0289938 | H13: 3618.848288 | I13: 300.3169676 | K13: 263.4566348 | L13: 2162.194155 | M13: 167.5345838 | O13: 1302.908434 | P13: 6852.133167 | Q13: 593.3251305
A14: Manchester | C14: 98.49679453 | D14: 353.9041611 | E14: 36.72835262 | G14: 681.5111708 | H14: 2801.662822 | I14: 211.8316916 | K14: 207.9823642 | L14: 2410.785319 | M14: 159.5398052 | O14: 987.9903295 | P14: 5566.352301 | Q14: 408.0998494
A15: Birmingham | C15: 70.48809294 | D15: 531.2755743 | E15: 38.45822469 | G15: 749.368196 | H15: 3478.808896 | I15: 191.1968945 | K15: 120.6791389 | L15: 2000.681143 | M15: 133.5060561 | O15: 940.5354279 | P15: 6010.765614 | Q15: 363.1611753
A16: Liverpool | C16: 35.29434252 | D16: 178.3709131 | E16: 13.65676915 | G16: 452.4176999 | H16: 2182.515031 | I16: 160.3757914 | K16: 74.14084729 | L16: 745.4153401 | M16: 50.84676487 | O16: 561.8528897 | P16: 3106.301284 | Q16: 224.8793255
A18: Glasgow | C18: 113.7532108 | D18: 490.0195194 | E18: 41.229169 | G18: 301.1519089 | H18: 1385.611986 | I18: 92.7327397 | K18: 99.71220268 | L18: 784.6311195 | M18: 51.45094611 | O18: 514.6173224 | P18: 2660.262625 | Q18: 185.4128548
A19: Oxford | C19: 80.11943263 | D19: 472.3906601 | E19: 49.9937807 | G19: 276.3508582 | H19: 1840.750703 | I19: 139.3225017 | K19: 99.62417282 | L19: 937.4420608 | M19: 77.52713027 | O19: 456.0944636 | P19: 3250.583424 | Q19: 266.8434127
A20: Bristol | C20: 35.93805035 | D20: 252.924783 | E20: 21.0488067 | G20: 333.7608837 | H20: 1820.93248 | I20: 110.5576918 | K20: 58.54872318 | L20: 613.9863844 | M20: 35.74186891 | O20: 428.2476572 | P20: 2687.843648 | Q20: 167.3483674
A21: Brighton / Hove | C21: 31.9090703 | D21: 180.8470094 | E21: 9.495234178 | G21: 324.100793 | H21: 2147.257835 | I21: 136.9428686 | K21: 53.02532681 | L21: 748.8853645 | M21: 44.34244827 | O21: 409.0351901 | P21: 3076.990209 | Q21: 190.7805511
A22: Cambridge | C22: 47.85926084 | D22: 362.2903623 | E22: 32.72306091 | G22: 282.0056004 | H22: 1600.855899 | I22: 112.5692166 | K22: 74.15100708 | L22: 775.55277 | M22: 79.90943735 | O22: 404.0158683 | P22: 2738.699031 | Q22: 225.2017148
A24: Leeds | C24: 23.8489169 | D24: 119.7116581 | E24: 11.81937661 | G24: 229.448475 | H24: 1096.083505 | I24: 66.71032781 | K24: 46.15376943 | L24: 859.8711136 | M24: 39.85673012 | O24: 299.4511613 | P24: 2075.666277 | Q24: 118.3864345
A25: Cardiff | C25: 52.59229357 | D25: 226.9127745 | E25: 19.26317865 | G25: 178.9176171 | H25: 935.7425875 | I25: 52.69604373 | K25: 65.13766548 | L25: 407.622692 | M25: 38.82395326 | O25: 296.6475762 | P25: 1570.278054 | Q25: 110.7831756
A26: Bath | C26: 52.85848702 | D26: 151.4104484 | E26: 12.62528336 | G26: 161.8255466 | H26: 777.21235 | I26: 50.77979175 | K26: 67.9126043 | L26: 323.1728039 | M26: 26.43715749 | O26: 282.5966379 | P26: 1251.795602 | Q26: 89.8422326
A27: York | C27: 55.27472763 | D27: 158.4900987 | E27: 16.77474814 | G27: 147.7312527 | H27: 711.2112181 | I27: 46.27626198 | K27: 67.76831218 | L27: 411.4137016 | M27: 24.35085901 | O27: 270.7742925 | P27: 1281.115018 | Q27: 87.40186913
A28: Nottingham | C28: 19.9282698 | D28: 80.58867075 | E28: 5.754653733 | G28: 186.4628608 | H28: 881.6743742 | I28: 44.60029414 | K28: 40.19279415 | L28: 631.2876905 | M28: 44.19478624 | O28: 246.5839248 | P28: 1593.550735 | Q28: 94.54973411
A30: Aberdeen | C30: 26.98587989 | D30: 116.8191774 | E30: 16.66228719 | G30: 178.9154267 | H30: 951.4694324 | I30: 121.1768875 | K30: 34.75632012 | L30: 235.6048714 | M30: 31.44119422 | O30: 240.6576267 | P30: 1303.893481 | Q30: 169.2803689
A31: Inverness | C31: 44.21666131 | D31: 130.5798678 | E31: 15.69667296 | G31: 155.274556 | H31: 522.6947639 | I31: 41.44047437 | K31: 26.7056966 | L31: 95.60159327 | M31: 8.307053609 | O31: 226.1969139 | P31: 748.8762249 | Q31: 65.44420094
A32: Southampton | C32: 15.45235625 | D32: 77.33090806 | E32: 3.638448795 | G32: 177.0684836 | H32: 1205.342742 | I32: 64.31522487 | K32: 25.77976408 | L32: 250.1077403 | M32: 18.32978614 | O32: 218.300604 | P32: 1532.78139 | Q32: 86.28345981
A33: Newcastle-upon-Tyne | C33: 14.40486286 | D33: 79.40461943 | E33: 4.975014555 | G33: 134.0254743 | H33: 535.4978287 | I33: 47.11036391 | K33: 52.55290611 | L33: 686.9016375 | M33: 34.60990449 | O33: 200.9832433 | P33: 1301.804086 | Q33: 86.69528295
A34: Reading | C34: 29.0548936 | D34: 128.7199254 | E34: 14.37724675 | G34: 129.1171498 | H34: 566.0573371 | I34: 44.47505356 | K34: 34.74285426 | L34: 636.7475141 | M34: 43.7917089 | O34: 192.9148976 | P34: 1331.524777 | Q34: 102.6440092
A36: Canterbury | C36: 10.95638108 | D36: 47.99700156 | E36: 5.234243803 | G36: 147.3494417 | H36: 727.7070205 | I36: 40.95349678 | K36: 18.90049772 | L36: 171.2376255 | M36: 18.21708825 | O36: 177.2063205 | P36: 946.9416475 | Q36: 64.40482883
A37: Bournemouth | C37: 10.42446135 | D37: 40.34062094 | E37: 3.732023184 | G37: 137.0053849 | H37: 1116.092924 | I37: 53.65482486 | K37: 23.51013902 | L37: 631.2270627 | M37: 53.08597343 | O37: 170.9399853 | P37: 1787.660608 | Q37: 110.4728215
A38: Windsor | C38: 32.42114407 | D38: 238.6241687 | E38: 21.17483898 | G38: 100.4590029 | H38: 375.5772172 | I38: 34.51220553 | K38: 32.81037092 | L38: 328.4625128 | M38: 20.20505546 | O38: 165.6905179 | P38: 942.6638988 | Q38: 75.89209997
A39: Coventry | C39: 10.77302778 | D39: 69.10193109 | E39: 3.357868012 | G39: 117.8413197 | H39: 893.1569445 | I39: 41.71381471 | K39: 26.11586483 | L39: 966.0310372 | M39: 60.16987661 | O39: 154.7302123 | P39: 1928.289913 | Q39: 105.2415593
A40: Sheffield | C40: 15.33065745 | D40: 59.33268441 | E40: 4.609754718 | G40: 106.3231032 | H40: 784.2330867 | I40: 39.14185887 | K40: 29.66535716 | L40: 1049.66395 | M40: 104.2533016 | O40: 151.3191178 | P40: 1893.229721 | Q40: 148.0049152
A42: Plymouth | C42: 21.00555439 | D42: 72.59521594 | E42: 4.519131279 | G42: 99.03610809 | H42: 887.4046952 | I42: 50.98243299 | K42: 27.31462883 | L42: 216.7874597 | M42: 14.18198496 | O42: 147.3562913 | P42: 1176.787371 | Q42: 69.68354923
A43: Leicester | C43: 21.36184309 | D43: 254.1537166 | E43: 17.48112249 | G43: 99.47591828 | H43: 982.9697693 | I43: 43.64931209 | K43: 25.26327732 | L43: 661.7937475 | M43: 25.27714157 | O43: 146.1010387 | P43: 1898.917233 | Q43: 86.40757615
A44: Luton | C44: 11.51086302 | D44: 75.04310754 | E44: 5.350312933 | G44: 113.8607278 | H44: 399.4271172 | I44: 22.74914858 | K44: 16.59382935 | L44: 202.4401137 | M44: 8.322456041 | O44: 141.9654202 | P44: 676.9103384 | Q44: 36.42191755
A45: Dover | C45: 4.845527486 | D45: 11.96086288 | E45: 0.7112884814 | G45: 122.6214075 | H45: 290.41034 | I45: 20.643605 | K45: 9.988623647 | L45: 97.35006469 | M45: 3.213472665 | O45: 137.4555586 | P45: 399.7212676 | Q45: 24.56836615
A46: Northampton | C46: 6.006868128 | D46: 29.60060761 | E46: 2.875111473 | G46: 113.380149 | H46: 1075.101301 | I46: 58.04349771 | K46: 15.16519697 | L46: 148.6259484 | M46: 7.559161439 | O46: 134.5522141 | P46: 1253.327857 | Q46: 68.47777062
A48: Portsmouth / Southsea | C48: 9.145306324 | D48: 117.0402366 | E48: 10.58159876 | G48: 107.1116442 | H48: 557.4668883 | I48: 37.24510736 | K48: 17.97239462 | L48: 175.4422992 | M48: 13.42404979 | O48: 134.2293452 | P48: 849.9494242 | Q48: 61.25075591
A49: Maidstone | C49: 5.805902085 | D49: 22.25163943 | E49: 1.873574302 | G49: 101.8699895 | H49: 651.161353 | I49: 25.3042393 | K49: 12.1544921 | L49: 159.6344898 | M49: 21.49718005 | O49: 119.8303837 | P49: 833.0474822 | Q49: 48.67499365
A50: Chester | C50: 14.94803775 | D50: 31.38388525 | E50: 3.949052965 | G50: 82.49785462 | H50: 426.2200489 | I50: 18.00514755 | K50: 21.54468774 | L50: 104.592362 | M50: 20.36139726 | O50: 118.9905801 | P50: 562.1962962 | Q50: 42.31559778
A51: Salisbury | C51: 14.80661361 | D51: 53.79317992 | E51: 3.710888339 | G51: 79.78936267 | H51: 277.1990611 | I51: 16.45278115 | K51: 22.27426129 | L51: 149.5621657 | M51: 9.11365276 | O51: 116.8702376 | P51: 480.5544067 | Q51: 29.27732225
A52: Exeter | C52: 8.701770799 | D52: 62.64779269 | E52: 2.149421144 | G52: 85.89854789 | H52: 431.2278345 | I52: 22.87205576 | K52: 15.46679505 | L52: 305.0180654 | M52: 20.92213976 | O52: 110.0671137 | P52: 798.8936925 | Q52: 45.94361666
A54: Stratford-upon-Avon | C54: 16.71441824 | D54: 57.30382804 | E54: 5.23532346 | G54: 62.90503034 | H54: 247.8531122 | I54: 17.76330473 | K54: 25.44710923 | L54: 198.7214089 | M54: 10.21775382 | O54: 105.0665578 | P54: 503.8783491 | Q54: 33.21638201
A55: Fort William | C55: 8.353013502 | D55: 19.83984365 | E55: 1.900174222 | G55: 84.28001576 | H55: 183.6276432 | I55: 18.64594362 | K55: 10.02077677 | L55: 18.34506372 | M55: 1.78531298 | O55: 102.653806 | P55: 221.8125505 | Q55: 22.33143082
A56: Derby | C56: 5.903190418 | D56: 27.04790947 | E56: 3.075316089 | G56: 80.45418733 | H56: 507.8691595 | I56: 15.22594192 | K56: 11.48312014 | L56: 118.2332392 | M56: 8.855482974 | O56: 97.84049789 | P56: 653.1503082 | Q56: 27.15674098
A57: Perth | C57: 24.70636118 | D57: 156.6173793 | E57: 9.592075845 | G57: 64.24597418 | H57: 284.2019435 | I57: 23.92864858 | K57: 7.896307553 | L57: 52.94123632 | M57: 4.582321151 | O57: 96.84864292 | P57: 493.7605591 | Q57: 38.10304557
A58: Norwich | C58: 9.957356616 | D58: 58.41552169 | E58: 3.599833445 | G58: 71.69934026 | H58: 330.5880104 | I58: 17.7186791 | K58: 14.1408554 | L58: 167.2123716 | M58: 3.318657857 | O58: 95.79755228 | P58: 556.2159037 | Q58: 24.6371704
A60: Eastbourne | C60: 1.817658527 | D60: 18.37340218 | E60: 0.5212506649 | G60: 84.22339766 | H60: 784.433981 | I60: 40.0078838 | K60: 8.424746423 | L60: 104.27079 | M60: 6.09853251 | O60: 94.46580261 | P60: 907.0781732 | Q60: 46.62766698
A61: Guildford | C61: 11.03561598 | D61: 128.3390119 | E61: 6.565677061 | G61: 62.89907405 | H61: 400.6865174 | I61: 39.40076865 | K61: 15.70577942 | L61: 131.0734458 | M61: 10.6875299 | O61: 89.64046945 | P61: 660.0989752 | Q61: 56.65397561
A62: Stirling | C62: 10.30108004 | D62: 38.97507055 | E62: 3.219124241 | G62: 73.33610796 | H62: 281.6158066 | I62: 14.16088223 | K62: 5.19932557 | L62: 44.74735548 | M62: 3.592269364 | O62: 88.83651357 | P62: 365.3382326 | Q62: 20.97227584
A63: Colchester | C63: 6.649840576 | D63: 37.69419556 | E63: 3.093783656 | G63: 61.45010696 | H63: 378.6724594 | I63: 18.93449533 | K63: 17.99887093 | L63: 242.3184954 | M63: 27.01781519 | O63: 86.09881846 | P63: 658.6851504 | Q63: 49.04609418
A64: Winchester | C64: 9.525121981 | D64: 58.42787127 | E64: 3.892140223 | G64: 61.10520338 | H64: 274.0659826 | I64: 20.72094492 | K64: 14.60994567 | L64: 126.445958 | M64: 6.388166757 | O64: 85.24027103 | P64: 458.9398118 | Q64: 31.0012519
A66: Hastings | C66: 4.359335738 | D66: 24.19989084 | E66: 0.8253731401 | G66: 72.82181624 | H66: 676.7476281 | I66: 25.90625062 | K66: 7.981743852 | L66: 135.0523888 | M66: 6.30811022 | O66: 85.16289583 | P66: 835.9999078 | Q66: 33.03973398
A67: Bradford | C67: 4.046475195 | D67: 28.92393312 | E67: 1.151534907 | G67: 60.98846221 | H67: 1040.359345 | I67: 20.72444951 | K67: 17.14616533 | L67: 256.6649826 | M67: 7.719858685 | O67: 82.18110273 | P67: 1325.948261 | Q67: 29.5958431
A68: Ipswich | C68: 7.177104897 | D68: 59.60683003 | E68: 2.349362147 | G68: 64.32749138 | H68: 296.409519 | I68: 11.27327379 | K68: 8.44998398 | L68: 178.4458296 | M68: 4.078179366 | O68: 79.95458026 | P68: 534.4621787 | Q68: 17.7008153
A69: Warwick | C69: 8.522503993 | D69: 63.92920327 | E69: 5.045924039 | G69: 57.86921746 | H69: 226.6282852 | I69: 21.029042 | K69: 12.63420679 | L69: 192.7988134 | M69: 23.74243413 | O69: 79.02592824 | P69: 483.3563019 | Q69: 49.81740017
A70: Swansea | C70: 8.603098944 | D70: 141.7901527 | E70: 3.782332931 | G70: 53.96888287 | H70: 349.0816 | I70: 23.05329197 | K70: 14.91826203 | L70: 166.8344047 | M70: 16.89371712 | O70: 77.49024384 | P70: 657.7061573 | Q70: 43.72934202

Sheet 4.14 (hidden)
A1: 4.14 | B1: Average stay, spend per visit and per day in the top 50 towns stayed in: by area of residence 2013
C4: North America | G4: Europe | K4: Other Countries | O4: Total World
C7: stay | D7: spend per | E7: spend per | G7: stay | H7: spend per | I7: spend per | K7: stay | L7: spend per | M7: spend per | O7: stay | P7: spend per | Q7: spend per
C8: nights | D8: visit (£s) | E8: day (£s) | G8: nights | H8: visit (£s) | I8: day (£s) | K8: nights | L8: visit (£s) | M8: day (£s) | O8: nights | P8: visit (£s) | Q8: day (£s)
A11: London | C11: 5.527840108 | D11: 773.3141265 | E11: 139.8944455 | G11: 4.858555138 | H11: 482.1560949 | I11: 99.23857632 | K11: 8.981768742 | L11: 1197.136064 | M11: 133.2851133 | O11: 5.806050391 | P11: 670.7049918 | Q11: 115.5182864
A12: Edinburgh | C12: 4.193402862 | D12: 491.2387473 | E12: 117.1456126 | G12: 4.61570722 | H12: 383.043191 | I12: 82.98689078 | K12: 8.207021076 | L12: 635.9095259 | M12: 77.4835985 | O12: 5.259105695 | P12: 455.3851328 | Q12: 86.58984232
A13: Manchester | C13: 3.593052574 | D13: 372.8888112 | E13: 103.7805052 | G13: 4.110956565 | H13: 310.8264408 | I13: 75.60927387 | K13: 11.59129683 | L13: 767.0833332 | M13: 66.17752479 | O13: 5.634014965 | P13: 413.0605707 | Q13: 73.31549052
A14: Birmingham | C14: 7.537096723 | D14: 545.5988818 | E14: 72.38846758 | G14: 4.642322579 | H14: 255.1441274 | I14: 54.96044773 | K14: 16.57851689 | L14: 1106.289433 | M14: 66.73030162 | O14: 6.390791283 | P14: 386.1217393 | Q14: 60.4184556
A15: Liverpool | C15: 5.053810337 | D15: 386.9393272 | E15: 76.56387981 | G15: 4.824115042 | H15: 354.486112 | I15: 73.48210168 | K15: 10.05404399 | L15: 685.8131074 | M15: 68.2126623 | O15: 5.528673682 | P15: 400.2459177 | Q15: 72.39456346
A17: Glasgow | C17: 4.307742313 | D17: 362.4440024 | E17: 84.13780956 | G17: 4.601040022 | H17: 307.9267869 | I17: 66.92547455 | K17: 7.868957845 | L17: 515.9944794 | M17: 65.57342021 | O17: 5.169399686 | P17: 360.2926811 | Q17: 69.69719947
A18: Oxford | C18: 5.896080946 | D18: 623.9906981 | E18: 105.8314334 | G18: 6.660919077 | H18: 504.1507838 | I18: 75.68787099 | K18: 9.409785138 | L18: 778.1959746 | M18: 82.70071667 | O18: 7.126996013 | P18: 585.0617229 | Q18: 82.09092889
A19: Bristol | C19: 7.037799226 | D19: 585.6969562 | E19: 83.22160627 | G19: 5.455799554 | H19: 331.2481996 | I19: 60.71487713 | K19: 10.48675959 | L19: 610.4636782 | M19: 58.21280377 | O19: 6.27637677 | P19: 390.7747412 | Q19: 62.2611987
A20: Brighton / Hove | C20: 5.667573756 | D20: 297.5716337 | E20: 52.50423664 | G20: 6.625277942 | H20: 422.5317296 | I20: 63.77569866 | K20: 14.12316358 | L20: 836.2503532 | M20: 59.211263 | O20: 7.522556208 | P20: 466.415985 | Q20: 62.00232634
A21: Cambridge | C21: 7.56991136 | D21: 683.7351921 | E21: 90.32274747 | G21: 5.676681232 | H21: 399.1736916 | I21: 70.31814458 | K21: 10.45909962 | L21: 1077.658153 | M21: 103.0354612 | O21: 6.778691745 | P21: 557.4080933 | Q21: 82.22944991
A23: Leeds | C23: 5.019584686 | D23: 495.5938525 | E23: 98.73204329 | G23: 4.777035476 | H23: 290.7420841 | I23: 60.86245027 | K23: 18.63057177 | L23: 863.5639214 | M23: 46.35198169 | O23: 6.931568632 | P23: 395.3447167 | Q23: 57.03538949
A24: Cardiff | C24: 4.314563202 | D24: 366.2737892 | E24: 84.89243803 | G24: 5.230019282 | H24: 294.5268586 | I24: 56.3146793 | K24: 6.257864616 | L24: 596.0292401 | M24: 95.24482817 | O24: 5.293412723 | P24: 373.4504662 | Q24: 70.55003752
A25: Bath | C25: 2.864449153 | D25: 238.8506382 | E25: 83.38449224 | G25: 4.802779082 | H25: 313.7934203 | I25: 65.33580141 | K25: 4.758657206 | L25: 389.2820451 | M25: 81.8050194 | O25: 4.429619586 | P25: 317.9168488 | Q25: 71.77068879
A26: York | C26: 2.867315778 | D26: 303.4795261 | E26: 105.8409849 | G26: 4.814223158 | H26: 313.2462571 | I26: 65.06683359 | K26: 6.070886057 | L26: 359.325151 | M26: 59.18825483 | O26: 4.731302246 | P26: 322.7849598 | Q26: 68.2232804
A27: Nottingham | C27: 4.043937158 | D27: 288.7683572 | E27: 71.40772616 | G27: 4.728418143 | H27: 239.1913003 | I27: 50.58590274 | K27: 15.70648928 | L27: 1099.56989 | M27: 70.00736258 | O27: 6.462508604 | P27: 383.4383535 | Q27: 59.33274166
A29: Aberdeen | C29: 4.328900073 | D29: 617.4446509 | E29: 142.6331494 | G29: 5.317984311 | H29: 677.2858537 | I29: 127.3576254 | K29: 6.778763419 | L29: 904.6180411 | M29: 133.4488291 | O29: 5.418043462 | P29: 703.4074558 | Q29: 129.8268389
A30: Inverness | C30: 2.953182441 | D30: 354.9945314 | E30: 120.2074503 | G30: 3.366261527 | H30: 266.8851577 | I30: 79.28235986 | K30: 3.579820242 | L30: 311.059237 | M30: 86.89241805 | O30: 3.310726977 | P30: 289.3240222 | Q30: 87.38987667
A31: Southampton | C31: 5.004473546 | D31: 235.4623941 | E31: 47.0503824 | G31: 6.8072122 | H31: 363.2223169 | I31: 53.35845369 | K31: 9.70170788 | L31: 711.0145029 | M31: 73.28756047 | O31: 7.021425331 | P31: 395.2506693 | Q31: 56.29208468
A32: Newcastle-upon-Tyne | C32: 5.512348172 | D32: 345.3704908 | E32: 62.65396888 | G32: 3.995492882 | H32: 351.5030568 | I32: 87.97489249 | K32: 13.07066894 | L32: 658.572609 | M32: 50.38553207 | O32: 6.477177223 | P32: 431.3557764 | Q32: 66.59625969
A33: Reading | C33: 4.430232209 | D33: 494.8304733 | E33: 111.6940264 | G33: 4.384060042 | H33: 344.4550445 | I33: 78.56987385 | K33: 18.32743819 | L33: 1260.452252 | M33: 68.77405554 | O33: 6.902135568 | P33: 532.0688577 | Q33: 77.08756984
A35: Canterbury | C35: 4.380734954 | D35: 477.7347343 | E35: 109.0535582 | G35: 4.938647965 | H35: 277.9345228 | I35: 56.27745181 | K35: 9.059953236 | L35: 963.8417213 | M35: 106.3848451 | O35: 5.343723885 | P35: 363.4454383 | Q35: 68.01351382
A36: Bournemouth | C36: 3.869803878 | D36: 358.0063334 | E36: 92.51278481 | G36: 8.146343477 | H36: 391.6256641 | I36: 48.07379719 | K36: 26.84914207 | L36: 2258.003382 | M36: 84.09964745 | O36: 10.45782591 | P36: 646.2667075 | Q36: 61.79742453
A37: Windsor | C37: 7.360140291 | D37: 653.1181914 | E37: 88.73719325 | G37: 3.738611835 | H37: 343.5451729 | I37: 91.89110508 | K37: 10.01093568 | L37: 615.8130765 | M37: 61.51403789 | O37: 5.689305041 | P37: 458.0352631 | Q37: 80.50812179
A38: Coventry | C38: 6.414346317 | D38: 311.6921333 | E38: 48.59296924 | G38: 7.579318923 | H38: 353.9829222 | I38: 46.70379038 | K38: 36.99019901 | L38: 2303.958801 | M38: 62.28565573 | O38: 12.46227148 | P38: 680.1616682 | Q38: 54.5776642
A39: Sheffield | C39: 3.8701983 | D39: 300.6886516 | E39: 77.69334497 | G39: 7.375942416 | H39: 368.1406739 | I39: 49.91100163 | K39: 35.38349275 | L39: 3514.311359 | M39: 99.32064601 | O39: 12.51150382 | P39: 978.0979253 | Q39: 78.17588829
A41: Plymouth | C41: 3.45600095 | D41: 215.1398242 | E41: 62.25108942 | G41: 8.960415674 | H41: 514.7863136 | I41: 57.45116436 | K41: 7.936679685 | L41: 519.2084082 | M41: 65.41884375 | O41: 7.986000193 | P41: 472.8915787 | Q41: 59.21507228
A42: Leicester | C42: 11.89755563 | D42: 818.3339996 | E42: 68.78169137 | G42: 9.881484748 | H42: 438.7927535 | I42: 44.40554883 | K42: 26.19587867 | L42: 1000.54879 | M42: 38.19489329 | O42: 12.9972877 | P42: 591.4234212 | Q42: 45.50360312
A43: Luton | C43: 6.519329384 | D43: 464.8055426 | E43: 71.29652688 | G43: 3.508032355 | H43: 199.7980253 | I43: 56.95444199 | K43: 12.19972252 | L43: 501.5392087 | M43: 41.11070622 | O43: 4.768135349 | P43: 256.5548533 | Q43: 53.80611801
A44: Dover | C44: 2.468433604 | D44: 146.7927864 | E44: 59.46799062 | G44: 2.368349426 | H44: 168.3523736 | I44: 71.08426305 | K44: 9.74609397 | L44: 321.7132588 | M44: 33.00945587 | O44: 2.90800366 | P44: 178.7367961 | Q44: 61.46374521
A45: Northampton | C45: 4.927793816 | D45: 478.6373551 | E45: 97.13015053 | G45: 9.482271016 | H45: 511.9370385 | I45: 53.98886381 | K45: 9.800462779 | L45: 498.4545506 | M45: 50.86030751 | O45: 9.314806635 | P45: 508.9308346 | Q45: 54.63675785
A47: Portsmouth / Southsea | C47: 12.7978476 | D47: 1157.052414 | E47: 90.40992286 | G47: 5.204540481 | H47: 347.7223007 | I47: 66.81133559 | K47: 9.761765358 | L47: 746.9260535 | M47: 76.51546889 | O47: 6.332068618 | P47: 456.3141974 | Q47: 72.06400071
A48: Maidstone | C48: 3.83258951 | D48: 322.7016706 | E48: 84.19938262 | G48: 6.392082262 | H48: 248.3973879 | I48: 38.86016758 | K48: 13.13378531 | L48: 1768.66132 | M48: 134.6650092 | O48: 6.951888632 | P48: 406.199097 | Q48: 58.43003513
A49: Chester | C49: 2.09953211 | D49: 264.1853754 | E49: 125.8305953 | G49: 5.166437974 | H49: 218.2498883 | I49: 42.2437837 | K49: 4.854670592 | L49: 945.0773898 | M49: 194.6738449 | O49: 4.724712625 | P49: 355.6214092 | Q49: 75.26836812
A50: Salisbury | C50: 3.633050834 | D50: 250.6237035 | E50: 68.98436464 | G50: 3.474135547 | H50: 206.2026892 | I50: 59.35366839 | K50: 6.714573547 | L50: 409.1562292 | M50: 60.93554957 | O50: 4.111863008 | P50: 250.5113608 | Q50: 60.92405322
A51: Exeter | C51: 7.199430338 | D51: 247.0096253 | E51: 34.30960696 | G51: 5.020199352 | H51: 266.2682469 | I51: 53.03937716 | K51: 19.72083191 | L51: 1352.713325 | M51: 68.59311671 | O51: 7.258241498 | P51: 417.4145673 | Q51: 57.50904918
A53: Stratford-upon-Avon | C53: 3.428406972 | D53: 313.221997 | E53: 91.36079804 | G53: 3.94011593 | H53: 282.3828973 | I53: 71.66867735 | K53: 7.809193848 | L53: 401.529059 | M53: 51.41747878 | O53: 4.795801438 | P53: 316.1460954 | Q53: 65.92143137
A54: Fort William | C54: 2.375171984 | D54: 227.4836766 | E54: 95.77566515 | G54: 2.178780361 | H54: 221.2380177 | I54: 101.5421388 | K54: 1.830702763 | L54: 178.1611367 | M54: 97.31843987 | O54: 2.160782528 | P54: 217.5411871 | Q54: 100.6770391
A55: Derby | C55: 4.581913771 | D55: 520.9583075 | E55: 113.6988458 | G55: 6.312526127 | H55: 189.249838 | I55: 29.98004828 | K55: 10.29626424 | L55: 771.1739377 | M55: 74.8984214 | O55: 6.675664191 | P55: 277.5613531 | Q55: 41.57808799
A56: Perth | C56: 6.339152016 | D56: 388.2431643 | E56: 61.24528381 | G56: 4.423653732 | H56: 372.4536655 | I56: 84.19593576 | K56: 6.704556018 | L56: 580.3118888 | M56: 86.55485721 | O56: 5.098270293 | P56: 393.4288021 | Q56: 77.16907491
A57: Norwich | C57: 5.866569205 | D57: 361.5250095 | E57: 61.62460491 | G57: 4.610753868 | H57: 247.124716 | I57: 53.59746435 | K57: 11.82477062 | L57: 234.6857925 | M57: 19.84696363 | O57: 5.80615987 | P57: 257.1795397 | Q57: 44.29425739
A59: Eastbourne | C59: 10.10828046 | D59: 286.7704011 | E59: 28.36985005 | G59: 9.313729948 | H59: 475.0210145 | I59: 51.00223189 | K59: 12.37672741 | L59: 723.883213 | M59: 58.48744897 | O59: 9.60218564 | P59: 493.5930854 | Q59: 51.40424315
A60: Guildford | C60: 11.62952863 | D60: 594.9533831 | E60: 51.15885623 | G60: 6.37030868 | H60: 626.4125385 | I60: 98.33315306 | K60: 8.345554991 | L60: 680.4838918 | M60: 81.53848276 | O60: 7.363850047 | P60: 632.0133747 | Q60: 85.82648624
A61: Stirling | C61: 3.78359069 | D61: 312.5035655 | E61: 82.59444296 | G61: 3.840070252 | H61: 193.0956336 | I61: 50.2844013 | K61: 8.6063769 | L61: 690.9106414 | M61: 80.27891985 | O61: 4.112478281 | P61: 236.0772051 | Q61: 57.40509469
A62: Colchester | C62: 5.668435977 | D62: 465.2417785 | E62: 82.07586367 | G62: 6.162275026 | H62: 308.1279475 | I62: 50.00230373 | K62: 13.46298311 | L62: 1501.08389 | M62: 111.4971234 | O62: 7.650339019 | P62: 569.6488646 | Q62: 74.46060406
A63: Winchester | C63: 6.134081158 | D63: 408.6184125 | E63: 66.6144451 | G63: 4.485149667 | H63: 339.1027895 | I63: 75.60567978 | K63: 8.654786323 | L63: 437.2478105 | M63: 50.52092497 | O63: 5.384072649 | P63: 363.6925543 | Q63: 67.54971152
A65: Hastings | C65: 5.551279435 | D65: 189.3346119 | E65: 34.10648196 | G65: 9.293198976 | H65: 355.7484825 | I65: 38.28051927 | K65: 16.92016072 | L65: 790.3172962 | M65: 46.70861637 | O65: 9.816480518 | P65: 387.9592592 | Q65: 39.52121725
A66: Bradford | C66: 7.147932888 | D66: 284.5772806 | E66: 39.81252833 | G66: 17.05829771 | H66: 339.8093469 | I66: 19.9204723 | K66: 14.96923526 | L66: 450.2382041 | M66: 30.07756885 | O66: 16.13446664 | P66: 360.1295446 | Q66: 22.32051128
A67: Ipswich | C67: 8.30513569 | D67: 327.3412024 | E67: 39.41431117 | G67: 4.607820275 | H67: 175.2481489 | I67: 38.03276569 | K67: 21.11788969 | L67: 482.625692 | M67: 22.85387882 | O67: 6.684572378 | P67: 221.3858824 | Q67: 33.11892966
A68: Warwick | C68: 7.501223035 | D68: 592.0705984 | E68: 78.92987526 | G68: 3.916214788 | H68: 363.3890853 | I68: 92.79089758 | K68: 15.26006474 | L68: 1879.218421 | M68: 123.1461631 | O68: 6.116426756 | P68: 630.3931036 | Q68: 103.0655853
A69: Swansea | C69: 16.48128815 | D69: 439.647731 | E69: 26.67556851 | G69: 6.468201331 | H69: 427.1589617 | I69: 66.03983701 | K69: 11.1832333 | L69: 1132.418581 | M69: 101.2603914 | O69: 8.487599532 | P69: 564.3206145 | Q69: 66.48765795

Sheet 4.15 (hidden)
A1: 4.15 | B1: Visits in the top 50 UK towns stayed in: by age group
C4: Age 0-15 | E4: Age 16-24 | G4: Age 25-34 | I4: Age 35-44 | K4: Age 45-54 | M4: Age 55-64 | O4: Age 65 and over | Q4: Total
C7: visits | E7: visits | G7: visits | I7: visits | K7: visits | M7: visits | O7: visits | Q7: visits
C8: (thousands) | E8: (thousands) | G8: (thousands) | I8: (thousands) | K8: (thousands) | M8: (thousands) | O8: (thousands) | Q8: (thousands)
A11: London | C11: 553.9779319 | E11: 2089.276084 | G11: 3916.90468 | I11: 3953.074151 | K11: 3560.563468 | M11: 1859.43391 | O11: 849.6809129 | Q11: 16784.14869
A12: Edinburgh | C12: 34.39636292 | E12: 146.7181002 | G12: 297.9131146 | I12: 237.4530709 | K12: 271.1655655 | M12: 193.5516913 | O12: 121.2363126 | Q12: 1302.908858
A13: Manchester | C13: 43.02224688 | E13: 123.902856 | G13: 256.4368128 | I13: 244.9143077 | K13: 192.2360651 | M13: 89.1191703 | O13: 38.35724297 | Q13: 987.9887018
A14: Birmingham | C14: 30.0897888 | E14: 69.72192333 | G14: 210.7657434 | I14: 255.1305401 | K14: 213.6920979 | M14: 118.4112258 | O14: 42.92816314 | Q14: 940.7394825
A15: Liverpool | C15: 28.08464457 | E15: 94.64786032 | G15: 133.5835887 | I15: 124.2991599 | K15: 101.2087108 | M15: 54.08675641 | O15: 25.46700326 | Q15: 561.852364
A17: Glasgow | C17: 9.541392037 | E17: 66.5627955 | G17: 115.9850796 | I17: 103.1970215 | K17: 95.48510072 | M17: 80.50605975 | O17: 43.73356373 | Q17: 515.0110129
A18: Oxford | C18: 21.8832923 | E18: 61.59351561 | G18: 76.42853011 | I18: 89.98299949 | K18: 108.743591 | M18: 61.54144023 | O18: 35.92456875 | Q18: 456.0979375
A19: Bristol | C19: 12.87814503 | E19: 54.82751146 | G19: 93.57280658 | I19: 87.25918326 | K19: 93.10051193 | M19: 52.22706701 | O19: 33.55595705 | Q19: 428.2472439
A20: Brighton / Hove | C20: 38.14372284 | E20: 71.69734302 | G20: 75.50651464 | I20: 47.18306031 | K20: 68.94930524 | M20: 63.54347876 | O20: 44.20031804 | Q20: 409.2237429
A21: Cambridge | C21: 18.76845942 | E21: 47.35381156 | G21: 87.11089898 | I21: 82.15100967 | K21: 75.27361483 | M21: 61.12203873 | O21: 32.23577824 | Q21: 404.0156114
A23: Leeds | C23: 9.686890941 | E23: 33.96161653 | G23: 76.18437364 | I23: 65.75273513 | K23: 58.19735456 | M23: 34.89055474 | O23: 20.77756205 | Q23: 299.4510876
A24: Cardiff | C24: 16.11943581 | E24: 30.16501969 | G24: 51.61813856 | I24: 59.60435534 | K24: 53.71727823 | M24: 53.14860683 | O24: 32.18187931 | Q24: 297.0293538
A25: Bath | C25: 14.58305372 | E25: 36.26628775 | G25: 34.44523755 | I25: 37.98546523 | K25: 69.38473554 | M25: 53.45879173 | O25: 36.00110158 | Q25: 282.5993131
A26: York | C26: 16.86096101 | E26: 26.28845851 | G26: 31.05892549 | I26: 44.73764891 | K26: 49.09826537 | M26: 48.96343712 | O26: 53.07589927 | Q26: 270.9598195
A27: Nottingham | C27: 5.272036921 | E27: 23.33350788 | G27: 64.17983523 | I27: 52.61900245 | K27: 62.69825613 | M27: 26.86799031 | O27: 11.39871202 | Q27: 246.7709248
A29: Aberdeen | C29: 2.619547286 | E29: 16.45443039 | G29: 46.89284234 | I29: 46.73541208 | K29: 72.02284728 | M29: 38.67886837 | O29: 17.25365776 | Q29: 240.6576055
A30: Inverness | C30: 10.39598201 | E30: 20.15716151 | G30: 27.12010911 | I30: 43.08376608 | K30: 62.19756192 | M30: 43.18628964 | O30: 20.05584555 | Q30: 226.1967158
A31: Southampton | C31: 6.893078307 | E31: 20.38655636 | G31: 33.52228123 | I31: 55.99999391 | K31: 55.31302528 | M31: 33.44898808 | O31: 15.41802212 | Q31: 220.9819453
A32: Newcastle-upon-Tyne | C32: 6.494791542 | E32: 34.19222959 | G32: 43.29362185 | I32: 40.55790607 | K32: 37.69105344 | M32: 25.77448717 | O32: 12.97882842 | Q32: 200.9829181
A33: Reading | C33: 6.974870455 | E33: 11.63886248 | G33: 38.22372365 | I33: 47.56315474 | K33: 50.45605204 | M33: 27.10757064 | O33: 10.95059073 | Q33: 192.9148247
A35: Canterbury | C35: 16.70146963 | E35: 28.3859956 | G35: 14.76306162 | I35: 29.93654852 | K35: 44.34270897 | M35: 25.80057381 | O35: 17.27660919 | Q35: 177.2069673
A36: Bournemouth | C36: 11.68401917 | E36: 22.50495874 | G36: 32.54496148 | I36: 26.26420724 | K36: 29.27491037 | M36: 33.91008835 | O36: 14.96214901 | Q36: 171.1452944
A37: Windsor | C37: 6.164857581 | E37: 10.30202596 | G37: 26.46599573 | I37: 36.95187271 | K37: 45.87675637 | M37: 23.70133764 | O37: 16.23031565 | Q37: 165.6931616
A38: Coventry | C38: 6.256706213 | E38: 19.81173938 | G38: 34.31408726 | I38: 19.3536144 | K38: 31.31413374 | M38: 25.18718327 | O38: 18.49274807 | Q38: 154.7302123
A39: Sheffield | C39: 7.575421836 | E39: 24.63164812 | G39: 30.38716406 | I39: 27.46671738 | K39: 34.3769757 | M39: 18.73326408 | O39: 8.147926639 | Q39: 151.3191178
A41: Plymouth | C41: 13.08801745 | E41: 14.69383638 | G41: 11.6383552 | I41: 20.46446325 | K41: 31.28246596 | M41: 28.23818212 | O41: 28.1392884 | Q41: 147.5446088
A42: Leicester | C42: 2.057103611 | E42: 22.24852192 | G42: 28.6016524 | I42: 27.24050126 | K42: 37.78598087 | M42: 17.14670208 | O42: 11.02056995 | Q42: 146.1010321
A43: Luton | C43: 5.851768965 | E43: 12.10669689 | G43: 31.78315586 | I43: 43.78918705 | K43: 25.50751821 | M43: 13.09117036 | O43: 9.835922864 | Q43: 141.9654202
A44: Dover | C44: 4.027965163 | E44: 4.101382005 | G44: 13.78725532 | I44: 31.97981657 | K44: 35.86905042 | M44: 34.88143166 | O44: 12.80811944 | Q44: 137.4550206
A45: Northampton | C45: 4.181421514 | E45: 9.335788627 | G45: 23.72899392 | I45: 36.24839445 | K45: 27.17768356 | M45: 21.23103694 | O45: 12.64889508 | Q45: 134.5522141
A47: Portsmouth / Southsea | C47: 3.438933487 | E47: 10.28861727 | G47: 17.06339244 | I47: 27.64208756 | K47: 31.97300247 | M47: 31.30197074 | O47: 12.52134119 | Q47: 134.2293452
A48: Maidstone | C48: 4.349188578 | E48: 6.811435442 | G48: 8.774699852 | I48: 41.60299711 | K48: 29.20237948 | M48: 17.48003758 | O48: 11.60950255 | Q48: 119.8302406
A49: Chester | C49: 6.16184623 | E49: 7.976291622 | G49: 24.73584598 | I49: 16.53301568 | K49: 25.45966122 | M49: 19.43358192 | O49: 18.68988073 | Q49: 118.9901234
A50: Salisbury | C50: 14.93242624 | E50: 9.58640246 | G50: 17.15768664 | I50: 22.52797108 | K50: 24.67777246 | M50: 19.07447565 | O50: 8.438468821 | Q50: 116.8698433
A51: Exeter | C51: 3.865201219 | E51: 9.200984128 | G51: 18.91505677 | I51: 18.79066543 | K51: 24.88568676 | M51: 18.41179669 | O51: 15.99755424 | Q51: 110.0669452
A53: Stratford-upon-Avon | C53: 7.808154764 | E53: 12.56181219 | G53: 15.00044592 | I53: 9.204054305 | K53: 19.95611843 | M53: 26.51095084 | O53: 14.02415369 | Q53: 105.0656901
A54: Fort William | C54: 4.533281553 | E54: 5.009825336 | G54: 16.40715426 | I54: 7.344502887 | K54: 45.97818748 | M54: 15.62469401 | O54: 7.281520512 | Q54: 102.653806
A55: Derby | C55: 2.413397806 | E55: 6.066916393 | G55: 17.53850817 | I55: 30.52805893 | K55: 26.31087634 | M55: 8.217072647 | O55: 6.765667609 | Q55: 97.84049789
A56: Perth | C56: 11.84686831 | E56: 1.901378433 | G56: 21.30097045 | I56: 17.1158958 | K56: 20.07880166 | M56: 16.6850327 | O56: 7.919464737 | Q56: 96.84841209
A57: Norwich | C57: 3.439883239 | E57: 5.576827481 | G57: 16.67546431 | I57: 20.86357809 | K57: 32.23634206 | M57: 10.70487334 | O57: 6.300499865 | Q57: 95.79746839
A59: Eastbourne | C59: 14.920515 | E59: 15.98757858 | G59: 4.656498763 | I59: 15.50206206 | K59: 19.84346125 | M59: 14.82828702 | O59: 8.727399939 | Q59: 94.46580261
A60: Guildford | C60: 16.10375187 | E60: 2.984154388 | G60: 9.531927486 | I60: 23.54019975 | K60: 15.90922865 | M60: 15.35746097 | O60: 6.213608805 | Q60: 89.64033193
A61: Stirling | C61: 5.807180039 | E61: 5.39416263 | G61: 11.49386222 | I61: 21.4835242 | K61: 25.96584662 | M61: 11.74403068 | O61: 6.94789886 | Q61: 88.83650525
A62: Colchester | C62: 1.803730871 | E62: 4.533283835 | G62: 15.73558252 | I62: 18.38587726 | K62: 25.98487208 | M62: 13.24369529 | O62: 6.411776608 | Q62: 86.09881846
A63: Winchester | C63: 1.237235 | E63: 8.068361971 | G63: 12.38811471 | I63: 20.11731485 | K63: 18.2651974 | M63: 14.93606192 | O63: 10.22790128 | Q63: 85.24018713
A65: Hastings | C65: 11.4274714 | E65: 15.37369709 | G65: 5.96304982 | I65: 11.22136412 | K65: 21.25413152 | M65: 15.8536305 | O65: 4.069551385 | Q65: 85.16289583
A66: Bradford | C66: 3.02449776 | E66: 8.128469869 | G66: 14.92820285 | I66: 16.58979241 | K66: 21.51922654 | M66: 15.40705781 | O66: 2.58385549 | Q66: 82.18110273
A67: Ipswich | C67: 2.373275027 | E67: 1.182577 | G67: 12.27371958 | I67: 23.03297596 | K67: 14.99624344 | M67: 21.08250798 | O67: 5.013281276 | Q67: 79.95458026
A68: Warwick | C68: 1.450023303 | E68: 4.420936015 | G68: 17.01928337 | I68: 19.41646926 | K68: 13.3041312 | M68: 9.844929071 | O68: 13.57015602 | Q68: 79.02592824
A69: Swansea | C69: 6.127526939 | E69: 9.376144649 | G69: 19.47940343 | I69: 13.06352587 | K69: 14.00110272 | M69: 10.3701243 | O69: 5.072332033 | Q69: 77.49015994
A71: Please note: Totals of age categories may not sum to totals presented because of cases where age is unknown

Sheet Ref.Curr (hidden)
A1: Australia | B1: Oceania | C1: Australian Dollar | D1: English 79%, native and other languages
A2: Austria | B2: European Union | C2: Euro | D2: German (official nationwide); Slovene, Croatian, Hungarian (each official in one region)
A3: Barbados | B3: The Caribbean | C3: Dollar | D3: English
A4: Belgium | B4: European Union | C4: Euro | D4: Dutch (Flemish) 60%, French 40%, German less than 1% (all official)
A5: Brazil | B5: Central and South America | C5: Real | D5: Portuguese (official), Spanish, English, French
A6: Bulgaria | B6: European Union | C6: Lev | D6: Bulgarian 85%, Turkish 10%, Roma 4%
A7: Canada | B7: North America | C7: Canadian Dollar | D7: English 59.3%, French 23.2% (both official); other 17.5%
A8: Cyprus | B8: European Union | C8: Euro | D8: Greek, Turkish (both official); English
A9: Czech Republic | B9: European Union | C9: Koruna | D9: Czech
A10: Denmark | B10: European Union | C10: Kroner | D10: Danish, Faroese, Greenlandic (Inuit dialect), German; English is the predominant second language
A11: Egypt | B11: Northern Africa | C11: Pound | D11: Arabic (official), English and French widely understood by educated classes
A12: Europe | B12: Europe | D12: n/a
A13: Finland | B13: European Union | C13: Euro | D13: Finnish 92%, Swedish 6% (both official); small Sami- (Lapp) and Russian-speaking minorities
A14: France | B14: European Union | C14: Euro | D14: French 100%, rapidly declining regional dialects (Provençal, Breton, Alsatian, Corsican, Catalan, Basque, Flemish)
A15: Germany | B15: European Union | C15: Euro | D15: German
A16: Greece | B16: European Union | C16: Euro | D16: Greek 99% (official), English, French
A17: Hong Kong (China) | B17: Asia | C17: Dollar | D17: Yue (Cantonese), English
A18: Hungary | B18: European Union | C18: Forint | D18: Magyar (Hungarian) 94%, other 6%
A19: India | B19: Asia | C19: Rupee | D19: Hindi 30%, English, Bengali, Gujarati, Kashmiri, Malayalam, Marathi, Oriya, Punjabi, Tamil, Telugu, Urdu, Kannada, Assamese, Sanskrit, Sindhi (all official); Hindi/Urdu; 1,600+ dialects
A20: Irish Republic | B20: European Union | C20: Euro | D20: English, Irish (Gaelic) (both official)
A21: Israel | B21: Middle East | C21: Shekel | D21: Hebrew (official), Arabic, English
A22: Italy | B22: European Union | C22: Euro | D22: Italian (official); German-, French-, and Slovene-speaking minorities
A23: Jamaica | B23: The Caribbean | C23: Dollar | D23: English, Jamaican Creole
A24: Japan | B24: Asia | C24: Yen | D24: Japanese
A25: Lithuania | B25: European Union | C25: Euro | D25: Lithuanian 82% (official), Russian 8%, Polish 6% (2001)
A26: Luxembourg | B26: European Union | C26: Euro | D26: Luxermbourgish (national) French, German (both administrative)
A27: Malta | B27: European Union | C27: Euro | D27: Maltese and English (both official)
A28: Mexico | B28: Central and South America | C28: Peso | D28: Spanish, various Mayan, Nahuatl, and other regional indigenous languages
A29: Morocco | B29: Northern Africa | C29: Dirham | D29: Arabic (official), Berber dialects, French often used for business, government, and diplomacy
A30: Netherlands | B30: European Union | C30: Euro | D30: Dutch, Frisian (both official)
A31: New Zealand | B31: Oceania | C31: New Zealand Dollar | D31: English, Maori (both official)
A32: Nigeria | B32: Western Africa | D32: English (official), Hausa, Yoruba, Ibo, Fulani, and more than 200 others
A33: Norway | B33: Europe | C33: Krone | D33: Bokmål Norwegian, Nynorsk Norwegian (both official); small Sami- and Finnish-speaking minorities (Sami is official in six municipalities)
A34: Other Africa | B34: Other Africa | D34: n/a
A35: Other Asia | B35: Asia | D35: n/a
A36: Other Caribbean | B36: The Caribbean | D36: n/a
A37: Other Central & Sth. America | B37: Central and South America | D37: n/a
A38: Other China | B38: Asia | C38: Yuan Renminbi | D38: n/a
A39: Other Middle East | B39: Middle East | D39: n/a
A40: Other North Africa | B40: Northern Africa | D40: n/a
A41: Pakistan | B41: Asia | C41: Rupee | D41: Urdu 8%, English (both official); Punjabi 48%, Sindhi 12%, Siraiki (a Punjabi variant) 10%, Pashtu 8%, Balochi 3%, Hindko 2%, Brahui 1%, Burushaski, and others 8%
A42: Poland | B42: European Union | C42: Zloty | D42: Polish 98% (2002)
A43: Portugal | B43: European Union | C43: Euro | D43: Portuguese (official), Mirandese (official, but locally used)
A44: Rest of Europe | B44: Europe | D44: n/a
A45: Rest of the World | B45: Rest of World | D45: n/a
A46: Romania | B46: European Union | C46: Leu | D46: Romanian (official), Hungarian, German
A47: Russia | B47: Europe | C47: Ruble | D47: Russian, others
A48: Slovakia | B48: European Union | C48: Euro | D48: Slovak 84% (official), Hungarian 11%, Roma 2%, Ukrainian 1% (2001)
A49: South Africa | B49: South Africa | D49: IsiZulu 23.8%, IsiXhosa 17.6%, Afrikaans 13.3%, Sepedi 9.4%, English 8.2%, Setswana 8.2%, Sesotho 7.9%, Xitsonga 4.4%, other 7.2%
A50: Spain | B50: European Union | C50: Euro | D50: Castilian Spanish 74% (official nationwide); Catalan 17%, Galician 7%, Basque 2% (each official regionally)
A51: Sri Lanka | B51: Asia | C51: Rupee | D51: Sinhala 74% (official and national), Tamil 18% (national), other 8%; English is commonly used in government and spoken competently by about 10%
A52: Sweden | B52: European Union | C52: Krona | D52: Swedish, small Sami- and Finnish-speaking minorities
A53: Switzerland | B53: Europe | C53: Franc | D53: German 64%, French 20%, Italian 7% (all official); Romansch 0.5% (national)
A54: Thailand | B54: Asia | C54: Baht | D54: Thai (Siamese), English (secondary language of the elite), ethnic and regional dialects
A55: Tunisia | B55: Northern Africa | C55: Dinar | D55: Arabic (official, commerce), French (commerce)
A56: Turkey | B56: Europe | C56: Lira | D56: Turkish (official), Kurdish, Dimli, Azeri, Kabardian
A57: United Arab Emirates | B57: Middle East | C57: Dirham | D57: Arabic (official), Persian, English, Hindi, Urdu
A58: USA | B58: North America | C58: US Dollar | D58: English 82%, Spanish 11% (2000)

Sheet Ref.UKRegn (hidden)
A1: Bedfordshire | B1: East England
A2: Berkshire | B2: South East England
A3: Bristol UA | B3: South West England
A4: Buckinghamshire | B4: South East England
A5: Cambridgeshire | B5: East England
A6: Cheshire | B6: North West England
A7: Cornwall | B7: South West England
A8: Cumbria | B8: North West England
A9: Derbyshire | B9: East Midlands
A10: Devon | B10: South West England
A11: Dorset | B11: South West England
A12: Durham | B12: North East England
A13: East Sussex | B13: South East England
A14: East Yorkshire | B14: Yorkshire and Humber
A15: Essex | B15: East England
A16: Gloucestershire | B16: South West England
A17: Hampshire | B17: South East England
A18: Hereford/Worcs | B18: West Midlands
A19: Hertfordshire | B19: East England
A20: Hull UA | B20: Yorkshire and Humber
A21: Isle of Wight | B21: South East England
A22: Kent | B22: South East England
A23: Lancashire | B23: North West England
A24: Leicestershire | B24: East Midlands
A25: Lincolnshire | B25: East Midlands
A26: London | B26: London
A27: Greater Manchester | B27: North West England
A28: Merseyside | B28: North West England
A29: Norfolk | B29: East England
A30: Northamptonshire | B30: East Midlands
A31: Northumberland | B31: North East England
A32: North Yorkshire | B32: Yorkshire and Humber
A33: Nottinghamshire | B33: East Midlands
A34: Oxfordshire | B34: South East England
A35: Shropshire | B35: West Midlands
A36: Somerset | B36: South West England
A37: South Yorkshire | B37: Yorkshire and Humber
A38: Staffordshire | B38: West Midlands
A39: Surrey | B39: South East England
A40: Suffolk | B40: East England
A41: Tees Valley | B41: North East England
A42: Tyne & Wear | B42: North East England
A43: Warwickshire | B43: West Midlands
A44: West Midlands | B44: West Midlands
A45: West Sussex | B45: South East England
A46: West Yorkshire | B46: Yorkshire and Humber
A47: Wiltshire | B47: South West England
A48: England unspecified | B48: England unspecified
A49: Argyle | B49: Scotland
A50: Borders | B50: Scotland
A51: Central | B51: Scotland
A52: Dumfries & Galloway | B52: Scotland
A53: Fife | B53: Scotland
A54: Grampian | B54: Scotland
A55: Greater Glasgow | B55: Scotland
A56: Highlands | B56: Scotland
A57: Islands | B57: Scotland
A58: Lothian | B58: Scotland
A59: Strathclyde | B59: Scotland
A60: Tayside | B60: Scotland
A61: Scotland unspecified | B61: Scotland
A62: Aberconwy/Colwyn | B62: Wales
A63: Anglesey | B63: Wales
A64: Blaenau Gwent | B64: Wales
A65: Bridgend | B65: Wales
A66: Caernarfonshire/Meirionnydd | B66: Wales
A67: Caerphilly | B67: Wales
A68: Cardiff | B68: Wales
A69: Cardiganshire | B69: Wales
A70: Carmarthenshire | B70: Wales
A71: Denbighshire | B71: Wales
A72: Flintshire | B72: Wales
A73: Merthyr Tydfil | B73: Wales
A74: Monmouthshire | B74: Wales
A75: Neath/Port Talbot | B75: Wales
A76: Newport | B76: Wales
A77: Pembrokeshire | B77: Wales
A78: Powys | B78: Wales
A79: Rhondda | B79: Wales
A80: Swansea | B80: Wales
A81: Torfaen | B81: Wales
A82: Vale of Glamorgan | B82: Wales
A83: Wrexham | B83: Wales
A84: Wales unspecified | B84: Wales
A85: Northern Ireland | B85: Northern Ireland
A86: Nights spent Travelling | B86: Travelling
A87: Isle Of Man | B87: Isle of Man
A88: Channel Islands | B88: Channel Islands
A89: UK area unknown | B89: UK unspecified

Sheet Ref.Curr.Rates (hidden)
A1: Currency Rates Provided by MSN Money
A2: Click here to visit MSN Money
A4: Name | B4: In US$ | C4: Per US$
A5: Argentina Peso - United States Dollar | B5: 0.11796 | C5: 8.477
A6: Australian Dollar - United States Dollar | B6: 0.8761 | C6: 1.141
A7: Bahrain Dinar - United States Dollar | B7: 2.6362 | C7: 0.379
A8: Bolivia Bolvianos - United States Dollar | B8: 0.14366 | C8: 6.961
A9: Brazil Real - United States Dollar | B9: 0.40642 | C9: 2.461
A10: United Kingdom Pound - United States Dollar | B10: 1.6015 | C10: 0.624
A11: Canadian Dollar - United States Dollar | B11: 0.88739 | C11: 1.127
A12: Chile Peso - United States Dollar | B12: 0.0017 | C12: 588.2
A13: China Yuan - United States Dollar | B13: 0.16328 | C13: 6.124
A14: Colombia Peso - United States Dollar | B14: 0.00049 | C14: 2041
A15: Czech Koruna - United States Dollar | B15: 0.04651 | C15: 21.501
A16: Denmark Krone - United States Dollar | B16: 0.17207 | C16: 5.812
A17: Euro - United States Dollar | B17: 1.2816 | C17: 0.78
A18: Egypt Pound - United States Dollar | B18: 0.13949 | C18: 7.169
A19: Hong Kong Dollar - United States Dollar | B19: 0.1289 | C19: 7.758
A20: Hungary Forint - United States Dollar | B20: 0.00416 | C20: 240.4
A21: India Rupee - United States Dollar | B21: 0.01622 | C21: 61.652
A22: Indonesia Rupiah - United States Dollar | B22: 0.00815 | C22: 122.7
A23: Japan Yen - United States Dollar | B23: 0.00945 | C23: 105.8
A24: Jordan Dinar - United States Dollar | B24: 1.3972 | C24: 0.716
A25: Kenya Shilling - United States Dollar | B25: 0.01103 | C25: 90.662
A26: Korea Won - United States Dollar | B26: 0.09405 | C26: 10.633
A27: Kuwait Dinar - United States Dollar | B27: 3.4565 | C27: 0.289
A28: Morocco Dihram - United States Dollar | B28: 0.11262 | C28: 8.879
A29: Malaysia Ringgit - United States Dollar | B29: 0.30335 | C29: 3.297
A30: Mexico New Peso - United States Dollar | B30: 0.07381 | C30: 13.548
A31: Norway Krone - United States Dollar | B31: 0.15233 | C31: 6.565
A32: Oman Rial - United States Dollar | B32: 2.5899 | C32: 0.386
A33: Peru Nuevos Soles - United States Dollar | B33: 0.3422 | C33: 2.922
A34: Philippines Peso - United States Dollar | B34: 0.02228 | C34: 44.883
A35: Pakistan Rupee - United States Dollar | B35: 0.00975 | C35: 102.6
A36: Saudi Arabia Riyal - United States Dollar | B36: 0.26633 | C36: 3.755
A37: Singapore Dollar - United States Dollar | B37: 0.78642 | C37: 1.272
A38: South Africa Rand - United States Dollar | B38: 0.08997 | C38: 11.115
A39: Sweden Krona - United States Dollar | B39: 0.1391 | C39: 7.189
A40: Switzerland Franc - United States Dollar | B40: 1.0621 | C40: 0.942
A41: Taiwan New Dollar - United States Dollar | B41: 0.03335 | C41: 29.985
A42: Thailand Bath - United States Dollar | B42: 0.03082 | C42: 32.446
A43: Tunisia Dinar - United States Dollar | B43: 0.5567 | C43: 1.796
A44: UAE Dirham - United States Dollar | B44: 0.27218 | C44: 3.674
A45: United States Dollar | B45: 1 | C45: 1
A46: Venezuela Bolivar Fuertes - United States Dollar | B46: 0.15848 | C46: 6.31
A48: DATA PROVIDERS
A50: Copyright © 2014 Microsoft. All rights reserved.
A52: Fundamental company data and historical chart data provided by Morningstar Inc. Real-time index quotes and delayed quotes supplied by Morningstar Inc. Quotes delayed by up to 15 minutes, except where indicated otherwise. Fund summary, fund performance and dividend data provided by Morningstar Inc. Analyst recommendations provided by Zacks Investment Research. StockScouter data provided by Verus Analytics. IPO data provided by Hoover's Inc. Index membership data provided by Morningstar Inc.
A55: MSN Money | C55: Microsoft Office Update
A56: Discover Investor's tools, columns, and more! | C56: Get the latest from Microsoft Office
A57: MSN Privacy
A58: Legal
A59: Advertise
A60: MSN Worldwide
A61: About our ads
A62: © 2014 Microsoft
